Transaction Number,Service - Fund ,Service  - Function ,Service - Cost Centre,Expense Type ,Expense Description,Supplier Name,Supplier Post Code (first 4 digits),Payment Date,Amount �
59361233,Libraries,"Education, Inclusion and Skills",Library Shop,Supplies and Services,Goods for resale,12TH SWINDON OLD TOWN SCOUT GROUP,SN1 ,23/12/2022,665.00
55116233,Physical Support,Adults,Physical Support 18 - 64,3rd Party Payments,Personal Budget - Domiciliary care,247 HOME CARE LTD,SN5 ,07/12/2022,"1,140.18"
55116235,Physical Support,Adults,Physical Support 65 and over,3rd Party Payments,Personal Budget - Domiciliary care,247 HOME CARE LTD,SN5 ,07/12/2022,-162.87
58812233,Physical Support,Adults,Physical Support 65 and over,3rd Party Payments,Personal Budget - Domiciliary care,247 HOME CARE LTD,SN5 ,21/12/2022,-162.87
57324253,Physical Support,Adults,Physical Support 65 and over,3rd Party Payments,Personal Budget - Domiciliary care,247 HOME CARE LTD,SN5 ,14/12/2022,"1,400.00"
56348243,Physical Support,Adults,Physical Support 65 and over,3rd Party Payments,Personal Budget - Domiciliary care,247 HOME CARE LTD,SN5 ,12/12/2022,"1,400.00"
58811234,Physical Support,Adults,Physical Support 18 - 64,3rd Party Payments,Carers,247 HOME CARE LTD,SN5 ,21/12/2022,151.44
55116233,Physical Support,Adults,Physical Support 18 - 64,3rd Party Payments,Carers,247 HOME CARE LTD,SN5 ,07/12/2022,55.91
57340260,Physical Support,Adults,Physical Support 18 - 64,3rd Party Payments,Personal Budget - Domiciliary care,247 HOME CARE LTD,SN5 ,19/12/2022,-4.34
58811234,Physical Support,Adults,Physical Support 18 - 64,3rd Party Payments,Personal Budget - Domiciliary care,247 HOME CARE LTD,SN5 ,21/12/2022,-3.80
57340260,Physical Support,Adults,Physical Support 18 - 64,3rd Party Payments,Personal Budget - Domiciliary care,247 HOME CARE LTD,SN5 ,19/12/2022,"1,272.35"
55116235,Physical Support,Adults,Physical Support 65 and over,3rd Party Payments,Personal Budget - Domiciliary care,247 HOME CARE LTD,SN5 ,07/12/2022,894.23
56348244,Physical Support,Adults,Physical Support 65 and over,3rd Party Payments,Personal Budget - Domiciliary care,247 HOME CARE LTD,SN5 ,12/12/2022,894.23
59787233,Physical Support,Adults,Physical Support 18 - 64,3rd Party Payments,Personal Budget - Domiciliary care,247 HOME CARE LTD,SN5 ,30/12/2022,-3.80
56348242,Physical Support,Adults,Physical Support 18 - 64,3rd Party Payments,Personal Budget - Domiciliary care,247 HOME CARE LTD,SN5 ,12/12/2022,-3.80
59788233,Physical Support,Adults,Physical Support 65 and over,3rd Party Payments,Personal Budget - Domiciliary care,247 HOME CARE LTD,SN5 ,30/12/2022,"1,400.00"
58812233,Physical Support,Adults,Physical Support 65 and over,3rd Party Payments,Personal Budget - Domiciliary care,247 HOME CARE LTD,SN5 ,21/12/2022,894.23
57340262,Physical Support,Adults,Physical Support 65 and over,3rd Party Payments,Personal Budget - Domiciliary care,247 HOME CARE LTD,SN5 ,19/12/2022,-186.14
56348244,Physical Support,Adults,Physical Support 65 and over,3rd Party Payments,Personal Budget - Domiciliary care,247 HOME CARE LTD,SN5 ,12/12/2022,-162.87
56348242,Physical Support,Adults,Physical Support 18 - 64,3rd Party Payments,Carers,247 HOME CARE LTD,SN5 ,12/12/2022,151.44
59787233,Physical Support,Adults,Physical Support 18 - 64,3rd Party Payments,Personal Budget - Domiciliary care,247 HOME CARE LTD,SN5 ,30/12/2022,"1,079.16"
55116233,Physical Support,Adults,Physical Support 18 - 64,3rd Party Payments,Personal Budget - Domiciliary care,247 HOME CARE LTD,SN5 ,07/12/2022,-3.80
58811234,Physical Support,Adults,Physical Support 18 - 64,3rd Party Payments,Personal Budget - Domiciliary care,247 HOME CARE LTD,SN5 ,21/12/2022,"1,140.18"
59789233,Physical Support,Adults,Physical Support 65 and over,3rd Party Payments,Personal Budget - Domiciliary care,247 HOME CARE LTD,SN5 ,30/12/2022,-162.87
58811235,Physical Support,Adults,Physical Support 65 and over,3rd Party Payments,Personal Budget - Domiciliary care,247 HOME CARE LTD,SN5 ,21/12/2022,"1,400.00"
57340262,Physical Support,Adults,Physical Support 65 and over,3rd Party Payments,Personal Budget - Domiciliary care,247 HOME CARE LTD,SN5 ,19/12/2022,937.31
55116234,Physical Support,Adults,Physical Support 65 and over,3rd Party Payments,Personal Budget - Domiciliary care,247 HOME CARE LTD,SN5 ,07/12/2022,"1,400.00"
59789233,Physical Support,Adults,Physical Support 65 and over,3rd Party Payments,Personal Budget - Domiciliary care,247 HOME CARE LTD,SN5 ,30/12/2022,867.22
57340261,Physical Support,Adults,Physical Support 65 and over,3rd Party Payments,Personal Budget - Domiciliary care,247 HOME CARE LTD,SN5 ,19/12/2022,"1,400.00"
56348242,Physical Support,Adults,Physical Support 18 - 64,3rd Party Payments,Personal Budget - Domiciliary care,247 HOME CARE LTD,SN5 ,12/12/2022,"1,140.18"
57032233,Public Health,Public Health,Public Health Grant,3rd Party Payments,Contract Payments,3B TRAINING LTD,WN2 ,09/12/2022,825.00
57033233,Public Health,Public Health,Public Health Grant,3rd Party Payments,Contract Payments,3B TRAINING LTD,WN2 ,09/12/2022,825.00
57372233,Care Management & Safeguarding,Adults,Mental Capacity & DOL,3rd Party Payments,Contracts - Social Care,3D RECRUIT LTD,TN33,14/12/2022,618.00
58509233,Care Management & Safeguarding,Adults,Mental Capacity & DOL,3rd Party Payments,Contracts - Social Care,3D RECRUIT LTD,TN33,21/12/2022,"2,472.00"
57391233,Local Transport Plan Funded,Strategic Planning and Highways,Rights of way Improvement Plan,Capital,Contractor Payments,4 ACRE ECOLOGY LTD,OX29,14/12/2022,436.20
57253233,School Transport,"Education, Inclusion and Skills",Special Educational Needs Transport,Transport Costs,Home to School Transport,4K TRAVEL,SN2 ,12/12/2022,"2,362.50"
57366233,School Transport,"Education, Inclusion and Skills",Mainstream School Transport,Transport Costs,Home to School Transport,4K TRAVEL,SN2 ,14/12/2022,"5,954.64"
56500233,Property Service Charged Properties,Property,Service Charged - Carriageworks,Premises Costs,Waste,707 LTD T/A CLICK WASTE,NG24,07/12/2022,"2,892.90"
56205233,Property Service Charged Properties,Property,Service Charged - Carriageworks,Premises Costs,Waste,707 LTD T/A CLICK WASTE,NG24,07/12/2022,"3,001.94"
59136233,Human Resources and Organisational Development,"People, Culture and Organisational Resilience",Organisational Development,Employees,Training,A PLUS SAFETY & TRAINING SERVICES LTD,SN3 ,23/12/2022,550.00
57534252,Homelessness and Travellers,Housing Services,Leased Private Managed Accommodation,Transfer Payments,Payment of Costs,REDACTED PERSONAL DATA,SN3 ,21/12/2022,800.00
57534242,Homelessness and Travellers,Housing Services,Leased Private Managed Accommodation,Transfer Payments,Payment of Costs,REDACTED PERSONAL DATA,SN3 ,21/12/2022,800.00
55705233,Highways Schemes,Strategic Planning and Highways,Blunsdon High Street,Capital,Contractor Payments,A.H. WILLIS & SONS LTD,SN7 ,02/12/2022,"1,597.85"
58133233,Other Repairs,Repairs,Cyclical Maintenance,Supplies and Services,Testing / Inspection,ABBEY ELECTRICAL (SWINDON) LTD T/A ABBEY ELECTRICAL UK,SN6 ,19/12/2022,417.92
58136233,Other Repairs,Repairs,Cyclical Maintenance,Supplies and Services,Testing / Inspection,ABBEY ELECTRICAL (SWINDON) LTD T/A ABBEY ELECTRICAL UK,SN6 ,19/12/2022,417.92
59111233,Responsive Repairs,Repairs,Responsive Repairs,3rd Party Payments,Contract Payments,ABBEY ELECTRICAL (SWINDON) LTD T/A ABBEY ELECTRICAL UK,SN6 ,23/12/2022,451.41
55562233,Other Repairs,Repairs,Cyclical Maintenance,Supplies and Services,Testing / Inspection,ABBEY ELECTRICAL (SWINDON) LTD T/A ABBEY ELECTRICAL UK,SN6 ,02/12/2022,417.54
55561233,Other Repairs,Repairs,Cyclical Maintenance,Supplies and Services,Testing / Inspection,ABBEY ELECTRICAL (SWINDON) LTD T/A ABBEY ELECTRICAL UK,SN6 ,02/12/2022,417.15
55565233,Other Repairs,Repairs,Cyclical Maintenance,Supplies and Services,Testing / Inspection,ABBEY ELECTRICAL (SWINDON) LTD T/A ABBEY ELECTRICAL UK,SN6 ,02/12/2022,417.54
58135233,Other Repairs,Repairs,Cyclical Maintenance,Supplies and Services,Testing / Inspection,ABBEY ELECTRICAL (SWINDON) LTD T/A ABBEY ELECTRICAL UK,SN6 ,19/12/2022,428.66
55662234,Early Years Block,DSG Skills and Attainment,Free Nursery Education Commissioning - three & four  year olds,3rd Party Payments,Contracts - Child Care,ABBEY FARM EDUCATE TOGETHER PRIMARY,SN25,07/12/2022,"6,904.80"
55662237,Early Years Block,DSG Skills and Attainment,Free Nursery Education Commissioning - three & four  year olds,3rd Party Payments,Contracts - Child Care,ABBEY MEADS COMMUNITY PRIMARY SCHOOL,SN25,07/12/2022,"5,467.69"
54618237,High Needs Block,DSG Skills and Attainment,SEN Resourcing Assessment Panel,3rd Party Payments,Top up funding - Academies and Free Schools Pre 16,ABBEY MEADS COMMUNITY PRIMARY SCHOOL,SN25,14/12/2022,"4,872.75"
55287235,Physical Support,Adults,Physical Support 18 - 64,3rd Party Payments,Personal Budget - Domiciliary care,ABICARE SERVICES LTD,BS32,07/12/2022,571.78
56989243,Physical Support,Adults,Physical Support 18 - 64,3rd Party Payments,Personal Budget - Domiciliary care,ABICARE SERVICES LTD,BS32,09/12/2022,571.78
57673233,Physical Support,Adults,Physical Support 18 - 64,3rd Party Payments,Personal Budget - Domiciliary care,ABICARE SERVICES LTD,BS32,16/12/2022,571.78
59315233,Physical Support,Adults,Physical Support 18 - 64,3rd Party Payments,Personal Budget - Domiciliary care,ABICARE SERVICES LTD,BS32,23/12/2022,571.78
55287237,Mental Health,Adults,Mental Health 65 and over,3rd Party Payments,Personal Budget - Domiciliary care,ABICARE SERVICES LTD (LIVE IN),SP2 ,07/12/2022,988.68
59316233,Physical Support,Adults,Physical Support 18 - 64,3rd Party Payments,Personal Budget - Domiciliary care,ABICARE SERVICES LTD (LIVE IN),SP2 ,23/12/2022,988.68
56989247,Mental Health,Adults,Mental Health 65 and over,3rd Party Payments,Personal Budget - Domiciliary care,ABICARE SERVICES LTD (LIVE IN),SP2 ,09/12/2022,"1,106.00"
55289233,Memory & Cognition,Adults,Support for Memory and Cognition 65 and over,3rd Party Payments,Personal Budget - Domiciliary care,ABICARE SERVICES LTD (LIVE IN),SP2 ,07/12/2022,"1,106.00"
56989244,Mental Health,Adults,Mental Health 65 and over,3rd Party Payments,Personal Budget - Domiciliary care,ABICARE SERVICES LTD (LIVE IN),SP2 ,09/12/2022,988.68
57676233,Physical Support,Adults,Physical Support 18 - 64,3rd Party Payments,Personal Budget - Domiciliary care,ABICARE SERVICES LTD (LIVE IN),SP2 ,16/12/2022,988.68
57675233,Memory & Cognition,Adults,Support for Memory and Cognition 65 and over,3rd Party Payments,Personal Budget - Domiciliary care,ABICARE SERVICES LTD (LIVE IN),SP2 ,16/12/2022,790.00
57677233,Mental Health,Adults,Mental Health 65 and over,3rd Party Payments,Personal Budget - Domiciliary care,ABICARE SERVICES LTD (LIVE IN),SP2 ,16/12/2022,"1,106.00"
55288233,Physical Support,Adults,Physical Support 18 - 64,3rd Party Payments,Personal Budget - Domiciliary care,ABICARE SERVICES LTD (LIVE IN),SP2 ,07/12/2022,988.68
55289234,Mental Health,Adults,Mental Health 65 and over,3rd Party Payments,Personal Budget - Domiciliary care,ABICARE SERVICES LTD (LIVE IN),SP2 ,07/12/2022,"1,106.00"
56989246,Memory & Cognition,Adults,Support for Memory and Cognition 65 and over,3rd Party Payments,Personal Budget - Domiciliary care,ABICARE SERVICES LTD (LIVE IN),SP2 ,09/12/2022,"1,106.00"
56989245,Physical Support,Adults,Physical Support 18 - 64,3rd Party Payments,Personal Budget - Domiciliary care,ABICARE SERVICES LTD (LIVE IN),SP2 ,09/12/2022,988.68
59316234,Mental Health,Adults,Mental Health 65 and over,3rd Party Payments,Personal Budget - Domiciliary care,ABICARE SERVICES LTD (LIVE IN),SP2 ,23/12/2022,988.68
55662240,Early Years Block,DSG Skills and Attainment,Free Nursery Education Commissioning - three & four  year olds,3rd Party Payments,Contracts - Child Care,REDACTED PERSONAL DATA,SN2 ,07/12/2022,592.20
57611233,DSG Other Funding,DSG Skills and Attainment,LAC pupil premium,3rd Party Payments,Education / Training,AC EDUCATION,AL2 ,16/12/2022,"8,000.00"
56543233,Streetsmart,Streetsmart,Waterside Fleet Hires,Transport Costs,Vehicle Hire / Contract,ACCESS HIRE NATIONWIDE,WF6 ,07/12/2022,"1,281.43"
56544233,Streetsmart,Streetsmart,Waterside Fleet Hires,Transport Costs,Vehicle Hire / Contract,ACCESS HIRE NATIONWIDE,WF6 ,07/12/2022,"1,534.29"
56545233,Streetsmart,Streetsmart,Waterside Fleet Hires,Transport Costs,Vehicle Hire / Contract,ACCESS HIRE NATIONWIDE,WF6 ,07/12/2022,"1,332.86"
57949233,Physical Support,Adults,Physical Support 18 - 64,Income,Client Contribution - Residential,ACCOMPLISH,B45 ,16/12/2022,"-1,049.99"
57949233,Physical Support,Adults,Physical Support 18 - 64,3rd Party Payments,Residential Care,ACCOMPLISH,B45 ,16/12/2022,"5,817.12"
57949233,Physical Support,Adults,Physical Support 18 - 64,Income,Client Contribution - Residential,ACCOMPLISH,B45 ,16/12/2022,-438.80
57949233,Physical Support,Adults,Physical Support 18 - 64,Income,Client Contribution - Residential,ACCOMPLISH,B45 ,16/12/2022,991.12
57537251,Homelessness and Travellers,Housing Services,Leased Private Managed Accommodation,Transfer Payments,Payment of Costs,REDACTED PERSONAL DATA,SN8 ,21/12/2022,650.00
57534268,Homelessness and Travellers,Housing Services,Leased Private Managed Accommodation,Transfer Payments,Payment of Costs,REDACTED PERSONAL DATA,SN8 ,21/12/2022,700.00
60023236,Social Care,"Children, Families and Community Health Services",External Placements,3rd Party Payments,Independent Fostering Agency Placements,ACTION FOR CHILDREN,WD18,30/12/2022,"3,170.99"
60025233,Social Care,"Children, Families and Community Health Services",External Placements,3rd Party Payments,Independent Fostering Agency Placements,ACTION FOR CHILDREN,WD18,30/12/2022,"3,072.90"
60024234,Social Care,"Children, Families and Community Health Services",External Placements,3rd Party Payments,Independent Fostering Agency Placements,ACTION FOR CHILDREN,WD18,30/12/2022,"3,175.33"
60024233,Social Care,"Children, Families and Community Health Services",External Placements,3rd Party Payments,Independent Fostering Agency Placements,ACTION FOR CHILDREN,WD18,30/12/2022,"3,068.70"
60027233,Social Care,"Children, Families and Community Health Services",External Placements,3rd Party Payments,Independent Fostering Agency Placements,ACTION FOR CHILDREN,WD18,30/12/2022,"3,542.10"
60026233,Social Care,"Children, Families and Community Health Services",External Placements,3rd Party Payments,Independent Fostering Agency Placements,ACTION FOR CHILDREN,WD18,30/12/2022,"3,660.17"
60028233,Social Care,"Children, Families and Community Health Services",External Placements,3rd Party Payments,Independent Fostering Agency Placements,ACTION FOR CHILDREN,WD18,30/12/2022,"3,660.17"
60028234,Social Care,"Children, Families and Community Health Services",External Placements,3rd Party Payments,Independent Fostering Agency Placements,ACTION FOR CHILDREN,WD18,30/12/2022,"3,542.10"
54620244,High Needs Block,DSG Skills and Attainment,SEN Resourcing Assessment Panel,3rd Party Payments,Top up funding - Academies and Free Schools Pre 16,ACTIVATE LEARNING EDUCATION TRUST,OX1 ,14/12/2022,570.42
54628238,High Needs Block,DSG Skills and Attainment,SEN Resourcing Assessment Panel,3rd Party Payments,Top up funding - Academies and Free Schools Post 16,ACTIVATE LEARNING EDUCATION TRUST,OX1 ,14/12/2022,"2,372.83"
59187233,Social Care,"Children, Families and Community Health Services",External Placements,3rd Party Payments,Independent Fostering Agency Placements,ACTIVE CARE SOLUTIONS LTD,B60 ,23/12/2022,"6,394.68"
59189233,Social Care,"Children, Families and Community Health Services",External Placements,3rd Party Payments,Independent Fostering Agency Placements,ACTIVE CARE SOLUTIONS LTD,B60 ,23/12/2022,"3,277.01"
59190233,Social Care,"Children, Families and Community Health Services",External Placements,3rd Party Payments,Independent Fostering Agency Placements,ACTIVE CARE SOLUTIONS LTD,B60 ,23/12/2022,"3,365.36"
59188233,Social Care,"Children, Families and Community Health Services",Unaccompanied Asylum Seeking Children (UASC),3rd Party Payments,Independent Fostering Agency Placements,ACTIVE CARE SOLUTIONS LTD,B60 ,23/12/2022,"4,345.58"
59254233,Learning Disabilities,Adults,Learning Disability 26 - 64,Transfer Payments,Personal Budget - Direct Payments - Domiciliary Care,REDACTED PERSONAL DATA,SN4 ,23/12/2022,"1,146.29"
59272481,Learning Disabilities,Adults,Learning Disability 26 - 64,Transfer Payments,Personal Budget - Direct Payments - Domiciliary Care,REDACTED PERSONAL DATA,SN3 ,23/12/2022,"1,958.68"
59817233,Community Health & Wellbeing,Public Health,Community Navigators,Supplies and Services,Hire / Rental,ADELE TAYLOR PSYCHOTHERAPY,SN5 ,30/12/2022,"1,000.00"
57191233,Early Help,Early Intervention and Community Health�,Early Outcomes Fund Grant,Supplies and Services,Services,ADHD AND ASD RESOURCES WITH ROSIE LTD,BS15,12/12/2022,500.00
57534267,Homelessness and Travellers,Housing Services,Leased Private Managed Accommodation,Transfer Payments,Payment of Costs,ADVANCE HOUSING & SUPPORT LTD,OX28,28/12/2022,"1,074.00"
56602233,Social Care,"Children, Families and Community Health Services",No Recourse to Public Funds,3rd Party Payments,Cash Support,AGILE QUARTER ACCOMMODATION LTD,EC1V,07/12/2022,857.14
57958233,Learning Disabilities,Adults,Learning Disability 65 and over,3rd Party Payments,Supported Lodgings (Childrens)/Supported Living (Adults),AGINCARE ENABLE LTD,DT5 ,16/12/2022,"2,462.60"
57958233,Learning Disabilities,Adults,Learning Disability 65 and over,3rd Party Payments,Supported Lodgings (Childrens)/Supported Living (Adults),AGINCARE ENABLE LTD,DT5 ,16/12/2022,"5,835.00"
57958233,Learning Disabilities,Adults,Learning Disability 65 and over,Income,Client Contribution - Supported Living,AGINCARE ENABLE LTD,DT5 ,16/12/2022,-476.60
59277233,Homeline,Special Services,Homeline,Supplies and Services,Equipment,AIDCALL,B19 ,23/12/2022,"4,275.25"
59276233,Homeline,Special Services,Homeline,Supplies and Services,Equipment,AIDCALL,B19 ,23/12/2022,"1,267.56"
Corporate Card Transaction,Early Help,"Children, Families and Community Health Services",Integrated Adolescents Service,3rd Party Payments,Personal Needs,Airbnb * Hmkrfhnh28,,12/12/2022,721.94
57392233,Travel,Highways & Transport,Public Transport,3rd Party Payments,Contract Payments,AKCESS LTD,SN2 ,14/12/2022,"14,973.69"
57332235,School Transport,"Education, Inclusion and Skills",Mainstream School Transport,Transport Costs,Home to School Transport,AKCESS LTD,SN2 ,14/12/2022,"2,313.09"
57332233,School Transport,"Education, Inclusion and Skills",Mainstream School Transport,Transport Costs,Home to School Transport,AKCESS LTD,SN2 ,14/12/2022,"2,165.63"
57332235,School Transport,"Education, Inclusion and Skills",Special Educational Needs Transport,Transport Costs,Home to School Transport,AKCESS LTD,SN2 ,14/12/2022,"93,548.06"
57330233,Physical Support,Adults,Physical Support 65 and over,Transport Costs,Home to Centre Transport,AKCESS LTD,SN2 ,14/12/2022,"5,395.21"
57330233,Physical Support,Adults,Physical Support 65 and over,Transport Costs,Home to Centre Transport,AKCESS LTD,SN2 ,14/12/2022,"5,395.21"
57330233,Learning Disabilities,Adults,Learning Disability 26 - 64,Transport Costs,Home to Centre Transport,AKCESS LTD,SN2 ,14/12/2022,"18,889.76"
58066233,School Transport,"Education, Inclusion and Skills",Special Educational Needs Transport,Employees,Temporary / Agency - by Accounts Payable,AKCESS LTD,SN2 ,19/12/2022,"15,399.72"
57262233,School Transport,"Education, Inclusion and Skills",Special Educational Needs Transport,Transport Costs,Home to School Transport,AKCESS LTD,SN2 ,12/12/2022,"64,598.21"
57330233,Physical Support,Adults,Physical Support 65 and over,Transport Costs,Home to Centre Transport,AKCESS LTD,SN2 ,14/12/2022,"2,698.54"
57263233,School Transport,"Education, Inclusion and Skills",Special Educational Needs Transport,Transport Costs,Home to School Transport,AKCESS LTD,SN2 ,12/12/2022,"31,049.55"
57330233,Learning Disabilities,Adults,Learning Disability 26 - 64,Transport Costs,Home to Centre Transport,AKCESS LTD,SN2 ,14/12/2022,"5,395.21"
57331233,School Transport,"Education, Inclusion and Skills",Special Educational Needs Transport,Transport Costs,Home to School Transport,AKCESS LTD,SN2 ,14/12/2022,"2,853.90"
59367233,Senior Management Team,"Children, Families and Community Health Services",Family Safeguarding Model,Supplies and Services,Services,ALASDAIR CANT & ASSOCIATES LIMITED,CB2 ,23/12/2022,"2,600.00"
59977233,Social Care,"Children, Families and Community Health Services",Placement Fostering Service,3rd Party Payments,Foster Care Basic Payments,REDACTED PERSONAL DATA,SN4 ,30/12/2022,536.00
58054233,Social Care,"Children, Families and Community Health Services",Placement Fostering Service,3rd Party Payments,Foster Care Basic Payments,REDACTED PERSONAL DATA,SN4 ,19/12/2022,536.00
55862233,Social Care,"Children, Families and Community Health Services",Placement Fostering Service,3rd Party Payments,Christmas Payment,REDACTED PERSONAL DATA,SN4 ,05/12/2022,268.00
55862233,Social Care,"Children, Families and Community Health Services",Placement Fostering Service,3rd Party Payments,Foster Care Basic Payments,REDACTED PERSONAL DATA,SN4 ,05/12/2022,"9,112.00"
55862233,Social Care,"Children, Families and Community Health Services",Placement Fostering Service,3rd Party Payments,Foster Care Basic Payments,REDACTED PERSONAL DATA,SN4 ,05/12/2022,536.00
55862233,Social Care,"Children, Families and Community Health Services",Placement Fostering Service,3rd Party Payments,Foster Care Basic Payments,REDACTED PERSONAL DATA,SN4 ,05/12/2022,"-8,843.40"
55862233,Social Care,"Children, Families and Community Health Services",Placement Fostering Service,3rd Party Payments,Carers Skills Payments - Core,REDACTED PERSONAL DATA,SN4 ,05/12/2022,"3,579.43"
55862233,Social Care,"Children, Families and Community Health Services",Placement Fostering Service,3rd Party Payments,Carers Skills Payments - Core,REDACTED PERSONAL DATA,SN4 ,05/12/2022,216.00
58054233,Social Care,"Children, Families and Community Health Services",Placement Fostering Service,3rd Party Payments,Carers Skills Payments - Core,REDACTED PERSONAL DATA,SN4 ,19/12/2022,216.00
55862233,Social Care,"Children, Families and Community Health Services",Placement Fostering Service,3rd Party Payments,Carers Skills Payments - Core,REDACTED PERSONAL DATA,SN4 ,05/12/2022,"-1,922.29"
59977233,Social Care,"Children, Families and Community Health Services",Placement Fostering Service,3rd Party Payments,Carers Skills Payments - Core,REDACTED PERSONAL DATA,SN4 ,30/12/2022,216.00
57706233,Learning Disabilities,Adults,Learning Disability 26 - 64,3rd Party Payments,Supported Accommodation Scheme,REDACTED PERSONAL DATA,SN2 ,16/12/2022,"3,056.20"
57338234,Disabled Children,"Children, Families and Community Health Services",DCT Daytime Short Breaks,Transfer Payments,Personal Budget - Direct Payments - Other,REDACTED PERSONAL DATA,SN1 ,14/12/2022,"1,277.20"
56687233,Disabled Children,"Children, Families and Community Health Services",DCT Daytime Short Breaks,Transfer Payments,Personal Budget - Direct Payments - Other,REDACTED PERSONAL DATA,SN1 ,09/12/2022,635.00
59272498,Learning Disabilities,Adults,Learning Disability 26 - 64,Transfer Payments,Personal Budget - Direct Payments - Domiciliary Care,REDACTED PERSONAL DATA,SN25,23/12/2022,973.45
56350233,Early Years Block,DSG Skills and Attainment,Free Nursery Education Commissioning - three & four  year olds,3rd Party Payments,Contracts - Child Care,ALFRESCO CHILDCARE,SN6 ,07/12/2022,"9,667.43"
56351233,Early Years Block,DSG Skills and Attainment,Free Nursery Education Commissioning - two year olds,3rd Party Payments,Contracts - Child Care,ALFRESCO CHILDCARE,SN6 ,07/12/2022,579.60
57741233,Learning Disabilities,Adults,Learning Disability 26 - 64,3rd Party Payments,Supported Accommodation Scheme,REDACTED PERSONAL DATA,SN1 ,16/12/2022,-611.24
57741233,Learning Disabilities,Adults,Learning Disability 26 - 64,3rd Party Payments,Supported Accommodation Scheme,REDACTED PERSONAL DATA,SN1 ,16/12/2022,"3,056.20"
58985233,School Transport,"Education, Inclusion and Skills",Special Educational Needs Transport,Transport Costs,Home to School Transport,REDACTED PERSONAL DATA,SN5 ,21/12/2022,518.18
57744233,Learning Disabilities,Adults,Learning Disability 26 - 64,3rd Party Payments,Supported Accommodation Scheme,REDACTED PERSONAL DATA,SN2 ,16/12/2022,"2,134.20"
57744233,Learning Disabilities,Adults,Learning Disability 26 - 64,3rd Party Payments,Supported Accommodation Scheme,REDACTED PERSONAL DATA,SN2 ,16/12/2022,"2,088.80"
57744233,Learning Disabilities,Adults,Learning Disability 26 - 64,3rd Party Payments,Supported Accommodation Scheme,REDACTED PERSONAL DATA,SN2 ,16/12/2022,"2,481.75"
59256233,Learning Disabilities,Adults,Learning Disability 26 - 64,Transfer Payments,Personal Budget - Direct Payments - Domiciliary Care,REDACTED PERSONAL DATA,SN5 ,23/12/2022,"8,820.69"
56353233,Early Years Block,DSG Skills and Attainment,Free Nursery Education Commissioning - three & four  year olds,3rd Party Payments,Contracts - Child Care,REDACTED PERSONAL DATA,SN25,07/12/2022,"1,316.00"
56352233,Early Years Block,DSG Skills and Attainment,Free Nursery Education Commissioning - two year olds,3rd Party Payments,Contracts - Child Care,REDACTED PERSONAL DATA,SN25,07/12/2022,"1,117.80"
55662242,Early Years Block,DSG Skills and Attainment,Free Nursery Education Commissioning - three & four  year olds,3rd Party Payments,Contracts - Child Care,REDACTED PERSONAL DATA,SN1 ,07/12/2022,789.60
59272388,Learning Disabilities,Adults,Learning Disability 26 - 64,Transfer Payments,Personal Budget - Direct Payments - Domiciliary Care,REDACTED PERSONAL DATA,SN5 ,23/12/2022,"3,416.22"
Corporate Card Transaction,ASC Finance Services Teams,ASC Finance Services,ASC Money Management Team,Supplies and Services,Services,Allpay *stonewater Limite,,06/12/2022,583.46
57030233,Schools Maintenance,Skills & Attainment,Condition Works,Capital,Contractor Payments,ALL PUMP SOLUTIONS LLP,SY1 ,09/12/2022,"2,658.00"
56159235,Streetsmart,Streetsmart,Waterside Fleet Workshops,Supplies and Services,Equipment,ALLIANCE AUTOMOTIVE UK T/A BRAYMARC,BD4 ,07/12/2022,300.00
59605233,Streetsmart,Streetsmart,Waterside Fleet Workshops,Supplies and Services,Materials,ALLIANCE AUTOMOTIVE UK T/A BRAYMARC,BD4 ,28/12/2022,"1,233.66"
58179233,Streetsmart,Streetsmart,Waterside Fleet Workshops,Supplies and Services,Equipment,ALLIANCE AUTOMOTIVE UK T/A BRAYMARC,BD4 ,19/12/2022,"1,900.00"
56159235,Streetsmart,Streetsmart,Waterside Fleet Workshops,Supplies and Services,Equipment,ALLIANCE AUTOMOTIVE UK T/A BRAYMARC,BD4 ,07/12/2022,"1,900.00"
58179233,Streetsmart,Streetsmart,Waterside Fleet Workshops,Supplies and Services,Equipment,ALLIANCE AUTOMOTIVE UK T/A BRAYMARC,BD4 ,19/12/2022,300.00
58155233,Landlord Services,Supervision & Management,Estate Management Team,Supplies and Services,Contracts,ALLPAY-NET LIMITED,HR1 ,19/12/2022,"1,846.30"
56760233,Treasury,Corporate Finance,Treasury,Supplies and Services,Bank Charges,ALLPAY-NET LIMITED,HR1 ,09/12/2022,"1,208.74"
56423233,Highways Schemes,Strategic Planning and Highways,Whalebridge Junction,Capital,Professional Fees,ALPHA HIGHWAY CONSULTANTS LIMITED,SG5 ,07/12/2022,"1,165.00"
56922233,Highways & Transport,Highways & Transport,Traffic Management & Road Safety,Supplies and Services,Services,ALPHA HIGHWAY CONSULTANTS LIMITED,SG5 ,09/12/2022,"1,125.00"
56896233,Local Transport Plan Funded,Strategic Planning and Highways,Local Safety Schemes,Capital,Contractor Payments,ALPHA HIGHWAY CONSULTANTS LIMITED,SG5 ,09/12/2022,985.00
56353234,Early Years Block,DSG Skills and Attainment,Free Nursery Education Commissioning - three & four  year olds,3rd Party Payments,Contracts - Child Care,ALPHA PRE-SCHOOL,SN5 ,07/12/2022,"2,886.03"
56353235,Early Years Block,DSG Skills and Attainment,Free Nursery Education Commissioning - two year olds,3rd Party Payments,Contracts - Child Care,ALPHA PRE-SCHOOL,SN5 ,07/12/2022,"1,854.72"
55726233,Social Care,"Children, Families and Community Health Services",Legal Fees,Supplies and Services,Fees,ALPHABIOLABS,WA5 ,02/12/2022,467.50
55710233,Social Care,"Children, Families and Community Health Services",Legal Fees,Supplies and Services,Fees,ALPHABIOLABS,WA5 ,02/12/2022,829.40
58057242,Social Care,"Children, Families and Community Health Services",Placement Fostering Service,3rd Party Payments,Foster Care Basic Payments,REDACTED PERSONAL DATA,SN5 ,19/12/2022,506.00
59981234,Social Care,"Children, Families and Community Health Services",Placement Fostering Service,3rd Party Payments,Foster Care Basic Payments,REDACTED PERSONAL DATA,SN5 ,30/12/2022,506.00
55869233,Social Care,"Children, Families and Community Health Services",Placement Fostering Service,3rd Party Payments,Christmas Payment,REDACTED PERSONAL DATA,SN5 ,05/12/2022,253.00
55869233,Social Care,"Children, Families and Community Health Services",Placement Fostering Service,3rd Party Payments,Birthday Payment,REDACTED PERSONAL DATA,SN5 ,05/12/2022,-245.76
55869233,Social Care,"Children, Families and Community Health Services",Placement Fostering Service,3rd Party Payments,Foster Care Basic Payments,REDACTED PERSONAL DATA,SN5 ,05/12/2022,506.00
55869233,Social Care,"Children, Families and Community Health Services",Placement Fostering Service,3rd Party Payments,Foster Care Basic Payments,REDACTED PERSONAL DATA,SN5 ,05/12/2022,831.29
55869233,Social Care,"Children, Families and Community Health Services",Placement Fostering Service,3rd Party Payments,Foster Care Basic Payments,REDACTED PERSONAL DATA,SN5 ,05/12/2022,-807.50
55869233,Social Care,"Children, Families and Community Health Services",Placement Fostering Service,3rd Party Payments,Birthday Payment,REDACTED PERSONAL DATA,SN5 ,05/12/2022,253.00
Corporate Card Transaction,Social Care,"Children, Families and Community Health Services",Placement - Care Leaver Team,3rd Party Payments,Christmas Payment,Amazon.Co.Uk*1i9yn2i24,,01/12/2022,15600
56786233,Social Care,"Children, Families and Community Health Services",External Placements,3rd Party Payments,Residential Care,AMBERLEIGH CARE LTD,TF2 ,09/12/2022,"20,340.00"
56785233,Social Care,"Children, Families and Community Health Services",External Placements,3rd Party Payments,Residential Care,AMBERLEIGH CARE LTD,TF2 ,09/12/2022,"17,628.00"
54852233,Social Care,"Children, Families and Community Health Services",External Placements,3rd Party Payments,Residential Care,AMEGREEN CHILDREN'S SERVICES LTD,RG7 ,02/12/2022,"19,215.00"
57358261,Social Care,"Children, Families and Community Health Services",External Placements,3rd Party Payments,Residential Care,AMEGREEN CHILDREN'S SERVICES LTD,RG7 ,14/12/2022,"17,437.50"
59992233,Responsive Repairs,Repairs,Responsive Repairs,Premises Costs,Repairs - Buildings,AMELIO UTILITIES(GLOU) LTD T/A 3 COUNTIES DRAIN SERVICES,GL1 ,30/12/2022,159.94
56825233,Responsive Repairs,Repairs,Responsive Repairs,Premises Costs,Repairs - Buildings,AMELIO UTILITIES(GLOU) LTD T/A 3 COUNTIES DRAIN SERVICES,GL1 ,09/12/2022,127.35
59992233,Responsive Repairs,Repairs,Responsive Repairs,Premises Costs,Repairs - Buildings,AMELIO UTILITIES(GLOU) LTD T/A 3 COUNTIES DRAIN SERVICES,GL1 ,30/12/2022,510.90
56825233,Responsive Repairs,Repairs,Responsive Repairs,Premises Costs,Repairs - Buildings,AMELIO UTILITIES(GLOU) LTD T/A 3 COUNTIES DRAIN SERVICES,GL1 ,09/12/2022,287.29
59992233,Responsive Repairs,Repairs,Responsive Repairs,Premises Costs,Repairs - Buildings,AMELIO UTILITIES(GLOU) LTD T/A 3 COUNTIES DRAIN SERVICES,GL1 ,30/12/2022,127.35
59992233,Responsive Repairs,Repairs,Responsive Repairs,Premises Costs,Repairs - Buildings,AMELIO UTILITIES(GLOU) LTD T/A 3 COUNTIES DRAIN SERVICES,GL1 ,30/12/2022,319.88
59992233,Responsive Repairs,Repairs,Responsive Repairs,Premises Costs,Repairs - Buildings,AMELIO UTILITIES(GLOU) LTD T/A 3 COUNTIES DRAIN SERVICES,GL1 ,30/12/2022,318.37
56825233,Responsive Repairs,Repairs,Responsive Repairs,Premises Costs,Repairs - Buildings,AMELIO UTILITIES(GLOU) LTD T/A 3 COUNTIES DRAIN SERVICES,GL1 ,09/12/2022,191.02
56825233,Responsive Repairs,Repairs,Responsive Repairs,Premises Costs,Repairs - Buildings,AMELIO UTILITIES(GLOU) LTD T/A 3 COUNTIES DRAIN SERVICES,GL1 ,09/12/2022,350.96
56825233,Responsive Repairs,Repairs,Responsive Repairs,Premises Costs,Repairs - Buildings,AMELIO UTILITIES(GLOU) LTD T/A 3 COUNTIES DRAIN SERVICES,GL1 ,09/12/2022,159.94
59992233,Responsive Repairs,Repairs,Responsive Repairs,Premises Costs,Repairs - Buildings,AMELIO UTILITIES(GLOU) LTD T/A 3 COUNTIES DRAIN SERVICES,GL1 ,30/12/2022,191.02
59992233,Responsive Repairs,Repairs,Responsive Repairs,Premises Costs,Repairs - Buildings,AMELIO UTILITIES(GLOU) LTD T/A 3 COUNTIES DRAIN SERVICES,GL1 ,30/12/2022,"1,080.86"
59992233,Responsive Repairs,Repairs,Responsive Repairs,Premises Costs,Repairs - Buildings,AMELIO UTILITIES(GLOU) LTD T/A 3 COUNTIES DRAIN SERVICES,GL1 ,30/12/2022,141.90
57691233,Highways & Transport,Highways & Transport,Project Delivery,Supplies and Services,Services,AMEY OW LTD,L19 ,16/12/2022,"61,645.97"
57310233,Highways Inspections & Maintenance,Highway Operations and Car Parking,Streetlighting,3rd Party Payments,Contract Payments,AMR TRAFFIC MANAGEMENT LTD,OX13,14/12/2022,930.00
57310233,Highways Inspections & Maintenance,Highway Operations and Car Parking,Streetlighting,3rd Party Payments,Contract Payments,AMR TRAFFIC MANAGEMENT LTD,OX13,14/12/2022,480.00
59272255,Mental Health,Adults,Mental Health 18-64,Transfer Payments,Personal Budget - Direct Payments - Domiciliary Care,REDACTED PERSONAL DATA,SN25,23/12/2022,555.51
55662248,Early Years Block,DSG Skills and Attainment,Free Nursery Education Commissioning - three & four  year olds,3rd Party Payments,Contracts - Child Care,REDACTED PERSONAL DATA,SN25,07/12/2022,625.10
56850233,Social Care,"Children, Families and Community Health Services",Legal Fees,Supplies and Services,Fees,REDACTED PERSONAL DATA,EC4Y,09/12/2022,"1,850.00"
55672233,Social Care,"Children, Families and Community Health Services",Legal Fees,Supplies and Services,Fees,REDACTED PERSONAL DATA,EC4Y,02/12/2022,"1,100.00"
55671233,Social Care,"Children, Families and Community Health Services",Legal Fees,Supplies and Services,Fees,REDACTED PERSONAL DATA,EC4Y,02/12/2022,"2,000.00"
55671233,Social Care,"Children, Families and Community Health Services",Legal Fees,Supplies and Services,Fees,REDACTED PERSONAL DATA,EC4Y,02/12/2022,"1,000.00"
55733233,Social Care,"Children, Families and Community Health Services",Legal Fees,Supplies and Services,Fees,REDACTED PERSONAL DATA,EC4Y,02/12/2022,"3,250.00"
55670233,Social Care,"Children, Families and Community Health Services",Legal Fees,Supplies and Services,Fees,REDACTED PERSONAL DATA,EC4Y,02/12/2022,800.00
55671233,Social Care,"Children, Families and Community Health Services",Legal Fees,Supplies and Services,Fees,REDACTED PERSONAL DATA,EC4Y,02/12/2022,250.00
57136233,Planning & Regulatory,Strategic Planning,Landscape & Countryside Works,Supplies and Services,Discretionary Costs,ANDREW CUNNINGHAM ARBORICULTURAL CONSULTANT LIMITED (ACAC),GL5 ,09/12/2022,"2,450.00"
57135233,Planning & Regulatory,Strategic Planning,Landscape & Countryside Works,Supplies and Services,Discretionary Costs,ANDREW CUNNINGHAM ARBORICULTURAL CONSULTANT LIMITED (ACAC),GL5 ,09/12/2022,"2,100.00"
57512237,Homelessness and Travellers,Housing Services,Leased Private Managed Accommodation,Transfer Payments,Payment of Costs,REDACTED PERSONAL DATA,SN26,21/12/2022,675.00
56377400,Early Years Block,DSG Skills and Attainment,Free Nursery Education Commissioning - three & four  year olds,3rd Party Payments,Contracts - Child Care,REDACTED PERSONAL DATA,SN5 ,07/12/2022,"33,260.91"
56377401,Early Years Block,DSG Skills and Attainment,Free Nursery Education Commissioning - two year olds,3rd Party Payments,Contracts - Child Care,REDACTED PERSONAL DATA,SN5 ,07/12/2022,"6,124.44"
57334237,High Needs Block,DSG Skills and Attainment,SEN Resourcing Assessment Panel,3rd Party Payments,Top up funding - Maintained providers Pre 16,REDACTED PERSONAL DATA,SN5 ,14/12/2022,"1,302.00"
57534255,Homelessness and Travellers,Housing Services,Leased Private Managed Accommodation,Transfer Payments,Payment of Costs,ANGELVIEW PROPERTIES LTD,ALBO,21/12/2022,548.51
57534254,Homelessness and Travellers,Housing Services,Leased Private Managed Accommodation,Transfer Payments,Payment of Costs,ANGELVIEW PROPERTIES LTD,ALBO,21/12/2022,548.45
59204233,Physical Support,Adults,Physical Support 65 and over,3rd Party Payments,Carers,REDACTED PERSONAL DATA,SP11,23/12/2022,505.06
59377233,Early Help,Early Intervention and Community Health�,"Holiday, Activities & Food Grant",3rd Party Payments,Contracts - Child Care,REDACTED PERSONAL DATA,TR16,23/12/2022,"3,000.00"
57362234,Social Care,"Children, Families and Community Health Services",Placement Fostering Service,3rd Party Payments,Foster Care Basic Payments,REDACTED PERSONAL DATA,SN5 ,14/12/2022,460.42
57362234,Social Care,"Children, Families and Community Health Services",Placement Fostering Service,3rd Party Payments,Carers Skills Payments - Advanced,REDACTED PERSONAL DATA,SN5 ,14/12/2022,192.90
59717233,School Transport,"Education, Inclusion and Skills",Special Educational Needs Transport,Transport Costs,Home to School Transport,REDACTED PERSONAL DATA,SN25,30/12/2022,561.81
59272483,Physical Support,Adults,Physical Support 18 - 64,Transfer Payments,Personal Budget - Direct Payments - Domiciliary Care,REDACTED PERSONAL DATA,SN25,23/12/2022,"2,397.79"
57169233,School Transport,"Education, Inclusion and Skills",Mainstream School Transport,Transport Costs,Home to School Transport,REDACTED PERSONAL DATA,SN6 ,12/12/2022,800.97
59104233,HRA Overheads,Supervision & Management,Admin / Management General,Premises Costs,Insurance - Premises,AON UK LIMITED,EC3V,23/12/2022,"4,056.18"
59059233,Supported Employment,Housing Services,Community Meals,Supplies and Services,Food,APETITO LIMITED,BA14,23/12/2022,986.77
56044233,Supported Employment,Housing Services,Community Meals,Supplies and Services,Food,APETITO LIMITED,BA14,05/12/2022,764.18
56047233,Supported Employment,Housing Services,Community Meals,Supplies and Services,Food,APETITO LIMITED,BA14,05/12/2022,"1,014.21"
59058233,Supported Employment,Housing Services,Community Meals,Supplies and Services,Food,APETITO LIMITED,BA14,23/12/2022,868.62
56043233,Supported Employment,Housing Services,Community Meals,Supplies and Services,Food,APETITO LIMITED,BA14,05/12/2022,917.06
59060233,Supported Employment,Housing Services,Community Meals,Supplies and Services,Food,APETITO LIMITED,BA14,23/12/2022,"1,047.12"
59062233,Supported Employment,Housing Services,Community Meals,Supplies and Services,Food,APETITO LIMITED,BA14,23/12/2022,999.19
60000233,Responsive Repairs,Repairs,Responsive Repairs,3rd Party Payments,Contract Payments,APEX SCAFFOLDING SERVICES,SN2 ,30/12/2022,55.00
57326233,Responsive Repairs,Repairs,Responsive Repairs,3rd Party Payments,Contract Payments,APEX SCAFFOLDING SERVICES,SN2 ,14/12/2022,899.00
60006233,Responsive Repairs,Repairs,Responsive Repairs,3rd Party Payments,Contract Payments,APEX SCAFFOLDING SERVICES,SN2 ,30/12/2022,"1,016.00"
60005233,Responsive Repairs,Repairs,Responsive Repairs,3rd Party Payments,Contract Payments,APEX SCAFFOLDING SERVICES,SN2 ,30/12/2022,"1,016.00"
58528233,Responsive Repairs,Repairs,Responsive Repairs,3rd Party Payments,Contract Payments,APEX SCAFFOLDING SERVICES,SN2 ,21/12/2022,550.00
Corporate Card Transaction,ASC Finance Services Teams,ASC Finance Services,ASC Money Management Team,Supplies and Services,Services,Argos Ltd,,02/12/2022,522.95
60079233,,,Balance Sheet,Balance Sheet & Recharge,Resources Recharges,APOGEE CORPORATION LIMITED,EC2A,30/12/2022,"9,805.93"
57494233,,,Balance Sheet,Balance Sheet & Recharge,Resources Recharges,APOGEE CORPORATION LIMITED,EC2A,14/12/2022,"3,893.85"
57930233,Learning Disabilities,Adults,Learning Disability 26 - 64,Income,Client Contribution - Residential,APPLEFORD LTD T/A DANESWOOD,BS25,16/12/2022,"1,191.00"
57930233,Learning Disabilities,Adults,Learning Disability 26 - 64,3rd Party Payments,Residential Care,APPLEFORD LTD T/A DANESWOOD,BS25,16/12/2022,"20,190.92"
57930233,Learning Disabilities,Adults,Learning Disability 26 - 64,Income,Client Contribution - Residential,APPLEFORD LTD T/A DANESWOOD,BS25,16/12/2022,-438.80
57930233,Learning Disabilities,Adults,Learning Disability 26 - 64,Income,Client Contribution - Residential,APPLEFORD LTD T/A DANESWOOD,BS25,16/12/2022,"-1,316.40"
58511233,Adults - Staffing and Supporting People,Adults,Blue Badges,Supplies and Services,Materials,APS GROUP,SK3 ,21/12/2022,"1,059.89"
57299233,Early Years Block,DSG Skills and Attainment,Free Nursery Education Commissioning - three & four  year olds,3rd Party Payments,Contracts - Child Care,REDACTED PERSONAL DATA,SN2 ,14/12/2022,"7,980.00"
57300234,Early Years Block,DSG Skills and Attainment,Free Nursery Education Commissioning - three & four  year olds,3rd Party Payments,Contracts - Child Care,REDACTED PERSONAL DATA,SN2 ,14/12/2022,800.00
57300233,Early Years Block,DSG Skills and Attainment,Free Nursery Education Commissioning - three & four  year olds,3rd Party Payments,Contracts - Child Care,REDACTED PERSONAL DATA,SN2 ,14/12/2022,800.00
57334233,High Needs Block,DSG Skills and Attainment,SEN Resourcing Assessment Panel,3rd Party Payments,Top up funding - Maintained providers Pre 16,REDACTED PERSONAL DATA,SN2 ,14/12/2022,"7,980.00"
57300235,Early Years Block,DSG Skills and Attainment,Free Nursery Education Commissioning - three & four  year olds,3rd Party Payments,Contracts - Child Care,REDACTED PERSONAL DATA,SN2 ,14/12/2022,800.00
56355233,Early Years Block,DSG Skills and Attainment,Free Nursery Education Commissioning - three & four  year olds,3rd Party Payments,Contracts - Child Care,REDACTED PERSONAL DATA,SN2 ,07/12/2022,"7,856.26"
57358237,Social Care,"Children, Families and Community Health Services",External Placements,3rd Party Payments,Residential Care,AREA CAMDEN GROUP,N8 0,14/12/2022,"21,857.10"
58231233,Streetsmart,Streetsmart,Waterside Fleet Hires,Transport Costs,Vehicle Hire / Contract,ARNOLD PLANT HIRE LIMITED,SK6 ,19/12/2022,"1,166.00"
56700233,Streetsmart,Streetsmart,Waterside Fleet Hires,Transport Costs,Vehicle Hire / Contract,ARNOLD PLANT HIRE LIMITED,SK6 ,09/12/2022,"1,540.00"
56704233,Streetsmart,Streetsmart,Waterside Fleet Hires,Transport Costs,Vehicle Hire / Contract,ARNOLD PLANT HIRE LIMITED,SK6 ,09/12/2022,848.00
56622233,Streetsmart,Streetsmart,Waterside Fleet Workshops,Supplies and Services,Materials,ARNOLD PLANT HIRE LIMITED,SK6 ,07/12/2022,"4,758.74"
56703233,Streetsmart,Streetsmart,Waterside Fleet Hires,Transport Costs,Vehicle Hire / Contract,ARNOLD PLANT HIRE LIMITED,SK6 ,09/12/2022,"1,470.00"
58230233,Streetsmart,Streetsmart,Waterside Fleet Hires,Transport Costs,Vehicle Hire / Contract,ARNOLD PLANT HIRE LIMITED,SK6 ,19/12/2022,"1,540.00"
56701233,Streetsmart,Streetsmart,Waterside Fleet Hires,Transport Costs,Vehicle Hire / Contract,ARNOLD PLANT HIRE LIMITED,SK6 ,09/12/2022,"1,166.00"
57268233,Streetsmart,Streetsmart,Waste - Processing,Supplies and Services,Materials,ARROW INDUSTRIAL GROUP LIMITED,RG21,12/12/2022,"100,465.00"
57267234,Streetsmart,Streetsmart,Waste - Processing,Supplies and Services,Materials,ARROW INDUSTRIAL GROUP LIMITED,RG21,12/12/2022,"16,975.00"
59045233,Public Health,Public Health,Public Health,Supplies and Services,Design & Printing Costs,ARTHOUSE 97 & EASY READ UK,WF2 ,23/12/2022,"1,190.00"
56048233,Town Centre,"Economy, Growth and Place",Kimmerfields enabling works,Capital,Contractor Payments,ARTSITE LIMITED,SN1 ,05/12/2022,"12,114.00"
57728233,Public Health,Public Health,DAAT,3rd Party Payments,Contract Payments,ASDA STORES LTD,LS11,19/12/2022,"1,319.31"
Corporate Card Transaction,Community Health & Wellbeing,Public Health,Swindon Circles,Supplies and Services,Food,Asda Superstore,,06/12/2022,1200
57931233,Mental Health,Adults,Mental Health 18-64,3rd Party Payments,Residential Care,ASH VIEW HOUSE,BS15,16/12/2022,"7,476.36"
57931233,Mental Health,Adults,Mental Health 18-64,Income,Client Contribution - Residential,ASH VIEW HOUSE,BS15,16/12/2022,-394.20
57900234,Physical Support,Adults,Physical Support 65 and over,Income,Client Contribution - Residential,ASHBURY LODGE,SN3 ,16/12/2022,"-2,551.20"
57900234,Physical Support,Adults,Physical Support 65 and over,3rd Party Payments,Residential Care,ASHBURY LODGE,SN3 ,16/12/2022,"2,560.12"
57900234,Physical Support,Adults,Physical Support 65 and over,3rd Party Payments,Residential Care,ASHBURY LODGE,SN3 ,16/12/2022,"2,668.72"
57900234,Physical Support,Adults,Physical Support 65 and over,3rd Party Payments,Residential Care,ASHBURY LODGE,SN3 ,16/12/2022,365.73
57900234,Physical Support,Adults,Physical Support 65 and over,Income,Client Contribution - Residential,ASHBURY LODGE,SN3 ,16/12/2022,761.00
57900234,Physical Support,Adults,Physical Support 65 and over,3rd Party Payments,Residential Care,ASHBURY LODGE,SN3 ,16/12/2022,"-7,771.79"
57900234,Physical Support,Adults,Physical Support 65 and over,Income,Client Contribution - Residential,ASHBURY LODGE,SN3 ,16/12/2022,-260.44
57900234,Physical Support,Adults,Physical Support 65 and over,Income,Client Contribution - Residential,ASHBURY LODGE,SN3 ,16/12/2022,-610.00
57900234,Physical Support,Adults,Physical Support 65 and over,3rd Party Payments,Residential Care,ASHBURY LODGE,SN3 ,16/12/2022,"7,935.00"
57900234,Physical Support,Adults,Physical Support 65 and over,3rd Party Payments,Residential Care,ASHBURY LODGE,SN3 ,16/12/2022,"-15,732.00"
57900234,Physical Support,Adults,Physical Support 65 and over,Income,Client Contribution - Residential,ASHBURY LODGE,SN3 ,16/12/2022,-886.60
57900234,Physical Support,Adults,Physical Support 65 and over,Income,Client Contribution - Residential,ASHBURY LODGE,SN3 ,16/12/2022,622.14
57900234,Mental Health,Adults,Mental Health 65 and over,3rd Party Payments,Residential Care,ASHBURY LODGE,SN3 ,16/12/2022,"2,560.12"
57900234,Mental Health,Adults,Mental Health 65 and over,3rd Party Payments,Residential Care,ASHBURY LODGE,SN3 ,16/12/2022,"2,668.72"
57900234,Mental Health,Adults,Mental Health 65 and over,Income,Client Contribution - Residential,ASHBURY LODGE,SN3 ,16/12/2022,-805.32
57900234,Physical Support,Adults,Physical Support 65 and over,3rd Party Payments,Residential Care,ASHBURY LODGE,SN3 ,16/12/2022,"1,932.00"
57900234,Physical Support,Adults,Physical Support 65 and over,3rd Party Payments,Residential Care,ASHBURY LODGE,SN3 ,16/12/2022,"7,314.63"
57900234,Physical Support,Adults,Physical Support 65 and over,3rd Party Payments,Residential Care,ASHBURY LODGE,SN3 ,16/12/2022,"-3,200.15"
57900234,Physical Support,Adults,Physical Support 65 and over,Income,Client Contribution - Residential,ASHBURY LODGE,SN3 ,16/12/2022,-657.68
57900234,Physical Support,Adults,Physical Support 65 and over,Income,Client Contribution - Residential,ASHBURY LODGE,SN3 ,16/12/2022,-730.76
57900234,Physical Support,Adults,Physical Support 65 and over,Income,Client Contribution - Residential,ASHBURY LODGE,SN3 ,16/12/2022,-127.56
57900234,Physical Support,Adults,Physical Support 65 and over,3rd Party Payments,Residential Care,ASHBURY LODGE,SN3 ,16/12/2022,91.43
57900234,Physical Support,Adults,Physical Support 65 and over,Income,Client Contribution - Residential,ASHBURY LODGE,SN3 ,16/12/2022,"1,905.82"
57900234,Physical Support,Adults,Physical Support 65 and over,Income,Client Contribution - Residential,ASHBURY LODGE,SN3 ,16/12/2022,-31.89
57900234,Physical Support,Adults,Physical Support 65 and over,Income,Client Contribution - Residential,ASHBURY LODGE,SN3 ,16/12/2022,-587.40
57900234,Physical Support,Adults,Physical Support 65 and over,Income,Client Contribution - Residential,ASHBURY LODGE,SN3 ,16/12/2022,-623.20
57900234,Physical Support,Adults,Physical Support 65 and over,Income,Client Contribution - Residential,ASHBURY LODGE,SN3 ,16/12/2022,-627.80
57900234,Physical Support,Adults,Physical Support 65 and over,3rd Party Payments,Residential Care,ASHBURY LODGE,SN3 ,16/12/2022,"3,600.00"
57900234,Care Management & Safeguarding,Adults,Community Response Hub,3rd Party Payments,Residential Care,ASHBURY LODGE,SN3 ,16/12/2022,"-7,314.63"
57900234,Physical Support,Adults,Physical Support 65 and over,Income,Client Contribution - Residential,ASHBURY LODGE,SN3 ,16/12/2022,43.49
57900234,Physical Support,Adults,Physical Support 65 and over,Income,Client Contribution - Residential,ASHBURY LODGE,SN3 ,16/12/2022,-875.20
57900233,Physical Support,Adults,Physical Support 65 and over,3rd Party Payments,Nursing Care,ASHGROVE HOUSE NURSING HOME,SN5 ,16/12/2022,"6,080.00"
57900233,Physical Support,Adults,Physical Support 65 and over,Income,Client Contribution - Nursing,ASHGROVE HOUSE NURSING HOME,SN5 ,16/12/2022,-627.80
57485234,Public Health,Public Health,Sexual Health & Health Protection Budget,3rd Party Payments,Contract Payments,ASHINGTON HOUSE SURGERY,SN5 ,14/12/2022,876.00
57729233,Public Health,Public Health,DAAT,3rd Party Payments,Contract Payments,ASHINGTON WAY PHARMACY,SN5 ,19/12/2022,519.31
59272503,Physical Support,Adults,Physical Support 18 - 64,Transfer Payments,Personal Budget - Direct Payments - Domiciliary Care,REDACTED PERSONAL DATA,SN25,23/12/2022,"1,510.97"
56827233,Libraries,"Education, Inclusion and Skills",Library Delivery,Supplies and Services,Materials,ASKEWS AND HOLTS LIBRARY SERVICES LIMITED,PR1 ,09/12/2022,"1,277.78"
57919234,Learning Disabilities,Adults,Learning Disability 26 - 64,Income,Client Contribution - Residential,ASPECTS & MILESTONES TRUST,BS16,16/12/2022,-425.60
57919234,Learning Disabilities,Adults,Learning Disability 26 - 64,3rd Party Payments,Residential Care,ASPECTS & MILESTONES TRUST,BS16,16/12/2022,"6,426.36"
57935234,Learning Disabilities,Adults,Learning Disability 26 - 64,3rd Party Payments,Residential Care,ASPECTS 2 LTD,B70 ,16/12/2022,"8,284.52"
57935234,Mental Health,Adults,Mental Health 65 and over,3rd Party Payments,Supported Lodgings (Childrens)/Supported Living (Adults),ASPECTS 2 LTD,B70 ,16/12/2022,"3,052.80"
57935234,Physical Support,Adults,Physical Support 18 - 64,3rd Party Payments,Supported Lodgings (Childrens)/Supported Living (Adults),ASPECTS 2 LTD,B70 ,16/12/2022,"3,931.20"
57935234,Learning Disabilities,Adults,Learning Disability 26 - 64,Income,Client Contribution - Residential,ASPECTS 2 LTD,B70 ,16/12/2022,-414.20
57944233,Learning Disabilities,Adults,Learning Disability 65 and over,3rd Party Payments,Residential Care,ASTON CARE LIMITED,RG30,16/12/2022,"6,607.12"
57944233,Learning Disabilities,Adults,Learning Disability 26 - 64,Income,Client Contribution - Residential,ASTON CARE LIMITED,RG30,16/12/2022,-410.80
57944234,Learning Disabilities,Adults,Learning Disability 26 - 64,3rd Party Payments,Residential Care,ASTON CARE LIMITED,RG30,16/12/2022,"9,182.84"
57944233,Learning Disabilities,Adults,Learning Disability 26 - 64,Income,Client Contribution - Residential,ASTON CARE LIMITED,RG30,16/12/2022,"-1,033.20"
57944233,Learning Disabilities,Adults,Learning Disability 26 - 64,Income,Client Contribution - Residential,ASTON CARE LIMITED,RG30,16/12/2022,-594.36
57944233,Learning Disabilities,Adults,Learning Disability 26 - 64,3rd Party Payments,Residential Care,ASTON CARE LIMITED,RG30,16/12/2022,"6,909.40"
57944234,Learning Disabilities,Adults,Learning Disability 26 - 64,Income,Client Contribution - Residential,ASTON CARE LIMITED,RG30,16/12/2022,-262.40
57944233,Learning Disabilities,Adults,Learning Disability 26 - 64,3rd Party Payments,Residential Care,ASTON CARE LIMITED,RG30,16/12/2022,"6,350.24"
57944233,Learning Disabilities,Adults,Learning Disability 26 - 64,3rd Party Payments,Residential Care,ASTON CARE LIMITED,RG30,16/12/2022,"9,104.80"
57301233,Early Help,Early Intervention and Community Health�,"Holiday, Activities & Food Grant",3rd Party Payments,Contracts - Child Care,ATBSHOP LTD,SN2 ,14/12/2022,"5,886.00"
57629233,Highways & Transport,Highways & Transport,Project Delivery,Supplies and Services,Services,ATKINS LTD,KT18,16/12/2022,"33,389.26"
57501233,Highways & Transport,Highways & Transport,Project Delivery,Supplies and Services,Services,ATKINS LTD,KT18,14/12/2022,"1,368.84"
59939233,Planned Maintenance Programme,HRA Capital Financing,Contingent Major Repairs,Capital,Contractor Payments,ATLANTIC FIRE LTD,N18 ,30/12/2022,"12,340.08"
59272585,Physical Support,Adults,Physical Support 65 and over,Transfer Payments,Personal Budget - Direct Payments - Domiciliary Care,REDACTED PERSONAL DATA,SP11,23/12/2022,"3,943.39"
57957233,Physical Support,Adults,Physical Support 65 and over,Income,Client Contribution - Nursing,AURA CARE LIVING CIRENCESTER LTD,GL7 ,16/12/2022,"-1,793.72"
57957233,Physical Support,Adults,Physical Support 65 and over,Income,Client Contribution - Nursing,AURA CARE LIVING CIRENCESTER LTD,GL7 ,16/12/2022,-627.80
57957233,Mental Health,Adults,Mental Health 65 and over,3rd Party Payments,Residential Care,AURA CARE LIVING CIRENCESTER LTD,GL7 ,16/12/2022,"5,600.00"
57957233,Physical Support,Adults,Physical Support 65 and over,3rd Party Payments,Nursing Care,AURA CARE LIVING CIRENCESTER LTD,GL7 ,16/12/2022,"4,400.00"
57957233,Mental Health,Adults,Mental Health 18-64,3rd Party Payments,Residential Care,AURA CARE LIVING CIRENCESTER LTD,GL7 ,16/12/2022,"6,720.00"
57957233,Mental Health,Adults,Mental Health 18-64,3rd Party Payments,Residential Care,AURA CARE LIVING CIRENCESTER LTD,GL7 ,16/12/2022,"4,600.00"
57957233,Care Management & Safeguarding,Adults,Community Response Hub,3rd Party Payments,Residential Care,AURA CARE LIVING CIRENCESTER LTD,GL7 ,16/12/2022,"4,400.00"
57957233,Physical Support,Adults,Physical Support 65 and over,Income,Client Contribution - Nursing,AURA CARE LIVING CIRENCESTER LTD,GL7 ,16/12/2022,-396.40
57957233,Physical Support,Adults,Physical Support 65 and over,3rd Party Payments,Nursing Care,AURA CARE LIVING CIRENCESTER LTD,GL7 ,16/12/2022,"12,571.43"
57957233,Care Management & Safeguarding,Adults,Community Response Hub,3rd Party Payments,Residential Care,AURA CARE LIVING CIRENCESTER LTD,GL7 ,16/12/2022,"3,257.14"
57957233,Care Management & Safeguarding,Adults,Community Response Hub,3rd Party Payments,Residential Care,AURA CARE LIVING CIRENCESTER LTD,GL7 ,16/12/2022,"3,800.00"
59119233,High Needs Block,DSG Skills and Attainment,Out of Borough School Fees,3rd Party Payments,Independent Special school- Post 16,AURORA FOXES ACADEMY,GL2 ,23/12/2022,"21,760.00"
59105233,Museums & Heritage,Culture & Heritage,Steam:Income Generation,Supplies and Services,Publicity,AUTOMOBILE ASSOCIATION LTD,RG21,23/12/2022,608.00
57950235,Learning Disabilities,Adults,Learning Disability 65 and over,3rd Party Payments,Residential Care,AUTONOMY LIFE LIMITED,SN12,16/12/2022,"9,460.00"
57950235,Learning Disabilities,Adults,Learning Disability 65 and over,Income,Client Contribution - Residential,AUTONOMY LIFE LIMITED,SN12,16/12/2022,-528.80
57950235,Learning Disabilities,Adults,Learning Disability 65 and over,3rd Party Payments,Residential Care,AUTONOMY LIFE LIMITED,SN12,16/12/2022,"-24,945.11"
57950235,Learning Disabilities,Adults,Learning Disability 65 and over,3rd Party Payments,Residential Care,AUTONOMY LIFE LIMITED,SN12,16/12/2022,"25,339.29"
57273233,Social Care,"Children, Families and Community Health Services",Unaccompanied Asylum Seeking Children (UASC),3rd Party Payments,Semi Independent,AVISANT CONSULTING LTD,EC1V,12/12/2022,"1,607.14"
55714233,Social Care,"Children, Families and Community Health Services",Unaccompanied Asylum Seeking Children (UASC),3rd Party Payments,Semi Independent,AVISANT CONSULTING LTD,EC1V,02/12/2022,"1,660.71"
59138233,Property Management,Property,Property Assets,Supplies and Services,Publicity,AVISON YOUNG (UK) LTD,B1 2,23/12/2022,"3,783.31"
57906240,Learning Disabilities,Adults,Learning Disability 26 - 64,Income,Client Contribution - Residential,AVON AUTISTIC FOUNDATION LTD,BS11,16/12/2022,-414.20
57906241,Learning Disabilities,Adults,Learning Disability 26 - 64,3rd Party Payments,Residential Care,AVON AUTISTIC FOUNDATION LTD,BS11,16/12/2022,"7,100.28"
57906240,Learning Disabilities,Adults,Learning Disability 26 - 64,3rd Party Payments,Residential Care,AVON AUTISTIC FOUNDATION LTD,BS11,16/12/2022,"5,075.96"
57906241,Learning Disabilities,Adults,Learning Disability 26 - 64,Income,Client Contribution - Residential,AVON AUTISTIC FOUNDATION LTD,BS11,16/12/2022,-414.20
57523233,Homelessness and Travellers,Housing Services,Leased Private Managed Accommodation,Transfer Payments,Payment of Costs,AVONPARK PROPERTIES LTD,SN3 ,21/12/2022,650.00
57522245,Homelessness and Travellers,Housing Services,Leased Private Managed Accommodation,Transfer Payments,Payment of Costs,AVONPARK PROPERTIES LTD,SN3 ,21/12/2022,615.00
57537240,Homelessness and Travellers,Housing Services,Leased Private Managed Accommodation,Transfer Payments,Payment of Costs,AVONPARK PROPERTIES LTD,SN3 ,21/12/2022,550.00
59907233,Care Management & Safeguarding,Adults,Community Response Hub,Supplies and Services,Equipment,BACK CARE SOLUTIONS LTD,PR5 ,30/12/2022,511.00
57105233,Care Management & Safeguarding,Adults,Community Response Hub,Supplies and Services,Equipment,BACK CARE SOLUTIONS LTD,PR5 ,09/12/2022,445.00
56060233,Town Centre,"Economy, Growth and Place","No 7, 9 & 11 Carriage works @ Railway Village",Capital,Consultants,BAILEY PARTNERSHIP (CONSULTANTS) LLP,PL1 ,05/12/2022,"3,000.00"
59667233,Streetsmart,Streetsmart,Lydiard House & Hotel Improvements,Capital,Contractor Payments,BAILEY PARTNERSHIP (CONSULTANTS) LLP,PL1 ,28/12/2022,"8,970.00"
58786233,Streetsmart,Streetsmart,Lydiard House & Hotel Improvements,Capital,Contractor Payments,BAILEY PARTNERSHIP (CONSULTANTS) LLP,PL1 ,21/12/2022,"5,249.75"
58787233,Streetsmart,Streetsmart,Lydiard House & Hotel Improvements,Capital,Contractor Payments,BAILEY PARTNERSHIP (CONSULTANTS) LLP,PL1 ,21/12/2022,"35,162.50"
56767233,Senior Management Team,"Children, Families and Community Health Services",Senior Management Team - Non Staffing,Employees,Temporary / Agency - by Accounts Payable,REDACTED PERSONAL DATA,BS1 ,09/12/2022,"3,125.00"
57870233,Senior Management Team,"Children, Families and Community Health Services",Senior Management Team - Non Staffing,Employees,Temporary / Agency - by Accounts Payable,REDACTED PERSONAL DATA,BS1 ,16/12/2022,"3,125.00"
56625233,Senior Management Team,"Children, Families and Community Health Services",Senior Management Team - Non Staffing,Employees,Temporary / Agency - by Accounts Payable,REDACTED PERSONAL DATA,BS1 ,07/12/2022,"3,125.00"
57315234,Senior Management Team,"Children, Families and Community Health Services",Senior Management Team - Non Staffing,Employees,Temporary / Agency - by Accounts Payable,REDACTED PERSONAL DATA,BS1 ,14/12/2022,"3,125.00"
58600233,Social Care,"Children, Families and Community Health Services",Looked After Children Service,3rd Party Payments,Cash Support,REDACTED PERSONAL DATA,MK44,21/12/2022,950.00
57138233,Social Care,"Children, Families and Community Health Services",CP & CIN Social Work - North,3rd Party Payments,Personal Needs,BARBARA LORUSSO PSYCHOTHERAPY,SN25,09/12/2022,600.00
57947233,Memory & Cognition,Adults,Support for Memory and Cognition 65 and over,3rd Party Payments,Nursing Care,BARCHESTER HEALTHCARE HOMES,GL7 ,16/12/2022,"6,271.84"
56356235,Early Years Block,DSG Skills and Attainment,Free Nursery Education Commissioning - three & four  year olds,3rd Party Payments,Contracts - Child Care,BARN OWL PRE-SCHOOL,SN4 ,07/12/2022,"9,242.93"
60093233,Digital & Business Change,Digital & Business Change,IT Systems,Supplies and Services,License Costs,BARTEC MUNICIPAL TECHNOLOGIES LTD,S75 ,30/12/2022,"34,880.00"
60095233,Digital & Business Change,Digital & Business Change,IT Systems,Supplies and Services,License Costs,BARTEC MUNICIPAL TECHNOLOGIES LTD,S75 ,30/12/2022,"10,800.00"
59916233,Highways & Transport,Highways & Transport,Traffic Management & Road Safety,Supplies and Services,Consultants,BASEMAP LTD,GU2 ,30/12/2022,"3,950.00"
57801233,Mental Health,Adults,Mental Health 65 and over,3rd Party Payments,Personal Budget - Respite Care,BASSETT HOUSE CARE HOME,SN4 ,16/12/2022,895.81
57499233,Social Care,"Children, Families and Community Health Services",Childrens Placement Team,Supplies and Services,Fees,BCP COUNCIL,BH2 ,14/12/2022,"2,035.71"
57589233,Schools - Primary,DSG Skills and Attainment,Primary School Budgets,3rd Party Payments,Mainstream Delegated Funding,BEECHCROFT INFANT SCHOOL,SN2 ,16/12/2022,"97,492.00"
56990249,DSG Other Funding,DSG Skills and Attainment,DFE Additional Grants,Supplies and Services,Payments to Educational Bodies,BEECHCROFT INFANT SCHOOL,SN2 ,09/12/2022,"19,392.00"
54615233,High Needs Block,DSG Skills and Attainment,SEN Resourcing Assessment Panel,3rd Party Payments,Top up funding - Maintained providers Pre 16,BEECHCROFT INFANT SCHOOL,SN2 ,14/12/2022,"8,015.42"
56939233,DSG Other Funding,DSG Skills and Attainment,DFE Additional Grants,Supplies and Services,Payments to Educational Bodies,BEECHCROFT INFANT SCHOOL,SN2 ,09/12/2022,"10,325.00"
57562245,DSG Other Funding,DSG Skills and Attainment,DFE Additional Grants,3rd Party Payments,Payment of Pupil Premium to school,BEECHCROFT INFANT SCHOOL,SN2 ,16/12/2022,"8,129.00"
57929234,Learning Disabilities,Adults,Learning Disability 26 - 64,3rd Party Payments,Residential Care,BEECHWOOD COURT LTD,CF10,16/12/2022,"26,739.16"
57929234,Learning Disabilities,Adults,Learning Disability 26 - 64,Income,Client Contribution - Residential,BEECHWOOD COURT LTD,CF10,16/12/2022,-322.56
57929234,Learning Disabilities,Adults,Learning Disability 26 - 64,3rd Party Payments,Residential Care,BEECHWOOD COURT LTD,CF10,16/12/2022,"18,598.72"
57319239,Void Repairs,Supervision & Management,Void Property Repairs,Supplies and Services,Materials,BEESLEYS TOOLS,SN2 ,14/12/2022,552.00
57319239,Void Repairs,Supervision & Management,Void Property Repairs,Supplies and Services,Materials,BEESLEYS TOOLS,SN2 ,14/12/2022,"1,716.00"
57319239,Void Repairs,Supervision & Management,Void Property Repairs,Supplies and Services,Materials,BEESLEYS TOOLS,SN2 ,14/12/2022,"1,080.00"
57319237,Other Repairs,Repairs,Delivery Team & Overheads,Supplies and Services,Materials,BEESLEYS TOOLS,SN2 ,14/12/2022,499.00
57319239,Void Repairs,Supervision & Management,Void Property Repairs,Supplies and Services,Materials,BEESLEYS TOOLS,SN2 ,14/12/2022,792.00
57319239,Void Repairs,Supervision & Management,Void Property Repairs,Supplies and Services,Materials,BEESLEYS TOOLS,SN2 ,14/12/2022,588.00
57319239,Void Repairs,Supervision & Management,Void Property Repairs,Supplies and Services,Materials,BEESLEYS TOOLS,SN2 ,14/12/2022,"4,240.00"
57319239,Void Repairs,Supervision & Management,Void Property Repairs,Supplies and Services,Materials,BEESLEYS TOOLS,SN2 ,14/12/2022,332.00
57319239,Void Repairs,Supervision & Management,Void Property Repairs,Supplies and Services,Materials,BEESLEYS TOOLS,SN2 ,14/12/2022,176.00
57319239,Void Repairs,Supervision & Management,Void Property Repairs,Supplies and Services,Materials,BEESLEYS TOOLS,SN2 ,14/12/2022,664.00
60021233,Social Care,"Children, Families and Community Health Services",External Placements,3rd Party Payments,Residential Care,BENJAMIN UK LIMITED,HP23,30/12/2022,"17,692.01"
60020236,Social Care,"Children, Families and Community Health Services",External Placements,3rd Party Payments,Residential Care,BENJAMIN UK LIMITED,HP23,30/12/2022,"17,692.01"
60020235,Social Care,"Children, Families and Community Health Services",External Placements,3rd Party Payments,Residential Care,BENJAMIN UK LIMITED,HP23,30/12/2022,"17,121.30"
60020237,Social Care,"Children, Families and Community Health Services",External Placements,3rd Party Payments,Residential Care,BENJAMIN UK LIMITED,HP23,30/12/2022,"17,121.30"
59160233,Social Care,"Children, Families and Community Health Services",External Placements,3rd Party Payments,Residential Care,BENJAMIN UK LIMITED,HP23,23/12/2022,"16,264.20"
56223233,Social Care,"Children, Families and Community Health Services",Legal Fees,Supplies and Services,Fees,BERKSHIRE PSYCHOLOGY,RG41,07/12/2022,655.20
56358233,Early Years Block,DSG Skills and Attainment,Free Nursery Education Commissioning - three & four  year olds,3rd Party Payments,Contracts - Child Care,REDACTED PERSONAL DATA,SN4 ,07/12/2022,"2,319.45"
59040233,Public Health,Public Health,Health Checks,Supplies and Services,Testing / Inspection,BHR PHARMACEUTICALS LTD,CV11,23/12/2022,"1,000.00"
55704233,Learning Disabilities,Adults,LD Day Services (OK4U),Premises Costs,Waste,BIFFA WASTE SERVICES LTD,HP12,02/12/2022,"1,111.74"
57182233,School Transport,"Education, Inclusion and Skills",Mainstream School Transport,Transport Costs,Home to School Transport,REDACTED PERSONAL DATA,SN2 ,12/12/2022,"3,248.64"
59008233,School Transport,"Education, Inclusion and Skills",Special Educational Needs Transport,Transport Costs,Home to School Transport,REDACTED PERSONAL DATA,SN2 ,21/12/2022,812.16
56932234,DSG Other Funding,DSG Skills and Attainment,DFE Additional Grants,Supplies and Services,Payments to Educational Bodies,BISHOPSTONE C E PRIMARY SCHOOL,SN6 ,09/12/2022,"9,567.00"
57562236,DSG Other Funding,DSG Skills and Attainment,DFE Additional Grants,3rd Party Payments,Payment of Pupil Premium to school,BISHOPSTONE C E PRIMARY SCHOOL,SN6 ,16/12/2022,915.00
56990240,DSG Other Funding,DSG Skills and Attainment,DFE Additional Grants,Supplies and Services,Payments to Educational Bodies,BISHOPSTONE C E PRIMARY SCHOOL,SN6 ,09/12/2022,"4,905.00"
57581233,Schools - Primary,DSG Skills and Attainment,Primary School Budgets,3rd Party Payments,Mainstream Delegated Funding,BISHOPSTONE C E PRIMARY SCHOOL,SN6 ,16/12/2022,"26,319.00"
56546233,Streetsmart,Streetsmart,Waterside Fleet Hires,Transport Costs,Vehicle Hire / Contract,BLAKEDALE LTD,PR7 ,07/12/2022,770.00
56794233,Social Care,"Children, Families and Community Health Services",External Placements,3rd Party Payments,Independent Fostering Agency Placements,BLUE SKY,HA1 ,09/12/2022,"3,645.60"
56792233,Social Care,"Children, Families and Community Health Services",External Placements,3rd Party Payments,Independent Fostering Agency Placements,BLUE SKY,HA1 ,09/12/2022,"6,300.00"
56791234,Social Care,"Children, Families and Community Health Services",External Placements,3rd Party Payments,Independent Fostering Agency Placements,BLUE SKY,HA1 ,09/12/2022,"5,742.60"
56793233,Social Care,"Children, Families and Community Health Services",External Placements,3rd Party Payments,Independent Fostering Agency Placements,BLUE SKY,HA1 ,09/12/2022,"3,645.60"
57340256,Learning Disabilities,Adults,Learning Disability 26 - 64,3rd Party Payments,Personal Budget - Domiciliary care,BLUEBIRD CARE (SWINDON),SN25,14/12/2022,"1,092.96"
57340253,Learning Disabilities,Adults,Learning Disability 26 - 64,3rd Party Payments,Personal Budget - Domiciliary care,BLUEBIRD CARE (SWINDON),SN25,14/12/2022,971.52
57340249,Physical Support,Adults,Physical Support 65 and over,3rd Party Payments,Personal Budget - Domiciliary care,BLUEBIRD CARE (SWINDON),SN25,14/12/2022,809.60
57340254,Physical Support,Adults,Physical Support 18 - 64,3rd Party Payments,Personal Budget - Domiciliary care,BLUEBIRD CARE (SWINDON),SN25,14/12/2022,971.52
57340255,Learning Disabilities,Adults,Learning Disability 26 - 64,3rd Party Payments,Personal Budget - Domiciliary care,BLUEBIRD CARE (SWINDON),SN25,14/12/2022,"1,234.64"
57340251,Learning Disabilities,Adults,Learning Disability 26 - 64,3rd Party Payments,Personal Budget - Domiciliary care,BLUEBIRD CARE (SWINDON),SN25,14/12/2022,526.24
57340257,Learning Disabilities,Adults,Learning Disability 26 - 64,3rd Party Payments,Personal Budget - Domiciliary care,BLUEBIRD CARE (SWINDON),SN25,14/12/2022,728.64
56359237,Early Years Block,DSG Skills and Attainment,Free Nursery Education Commissioning - three & four  year olds,3rd Party Payments,Contracts - Child Care,REDACTED PERSONAL DATA,SN3 ,07/12/2022,"6,830.73"
56359238,Early Years Block,DSG Skills and Attainment,Free Nursery Education Commissioning - two year olds,3rd Party Payments,Contracts - Child Care,REDACTED PERSONAL DATA,SN3 ,07/12/2022,"1,506.96"
57940235,Mental Health,Adults,Mental Health 65 and over,3rd Party Payments,Residential Care,BOLEALLER HOUSE LTD,EX15,16/12/2022,"4,719.32"
55810233,Libraries,"Education, Inclusion and Skills",Library Delivery,Supplies and Services,Materials,BOLINDA UK LTD,RG14,05/12/2022,439.40
59818233,Physical Support,Adults,Fessey House,Supplies and Services,Food,BOOKER LIMITED,CH5 ,30/12/2022,644.62
58638233,Physical Support,Adults,Fessey House,Supplies and Services,Food,BOOKER LIMITED,CH5 ,21/12/2022,449.34
58638233,Physical Support,Adults,Fessey House,Supplies and Services,Food,BOOKER LIMITED,CH5 ,21/12/2022,81.03
59818233,Physical Support,Adults,Fessey House,Supplies and Services,Food,BOOKER LIMITED,CH5 ,30/12/2022,153.63
58885233,Lydiard Park,Streetsmart,Lydiard : Hotel Operations,Supplies and Services,Fees,BOOKING.COM B.V.,,21/12/2022,"1,038.00"
58890233,Lydiard Park,Streetsmart,Lydiard : Hotel Operations,Supplies and Services,Fees,BOOKING.COM B.V.,,21/12/2022,"5,085.60"
42572233,Lydiard Park,Streetsmart,Lydiard : Hotel Operations,Supplies and Services,Fees,BOOKING.COM B.V.,,21/12/2022,"3,444.78"
58888233,Lydiard Park,Streetsmart,Lydiard : Hotel Operations,Supplies and Services,Fees,BOOKING.COM B.V.,,21/12/2022,"3,404.25"
58889233,Lydiard Park,Streetsmart,Lydiard : Hotel Operations,Supplies and Services,Fees,BOOKING.COM B.V.,,21/12/2022,"1,857.60"
58886233,Lydiard Park,Streetsmart,Lydiard : Hotel Operations,Supplies and Services,Fees,BOOKING.COM B.V.,,21/12/2022,"2,212.06"
57915236,Physical Support,Adults,Physical Support 18 - 64,3rd Party Payments,Nursing Care,BOTHWELLS LTD,HA6 ,16/12/2022,"-9,876.74"
57915236,Learning Disabilities,Adults,Learning Disability 26 - 64,3rd Party Payments,Nursing Care,BOTHWELLS LTD,HA6 ,16/12/2022,"4,079.08"
57915236,Physical Support,Adults,Physical Support 65 and over,Income,Client Contribution - Nursing,BOTHWELLS LTD,HA6 ,16/12/2022,-608.80
57915236,Physical Support,Adults,Physical Support 18 - 64,3rd Party Payments,Nursing Care,BOTHWELLS LTD,HA6 ,16/12/2022,"3,316.12"
57915236,Physical Support,Adults,Physical Support 18 - 64,3rd Party Payments,Nursing Care,BOTHWELLS LTD,HA6 ,16/12/2022,"2,560.12"
57915236,Physical Support,Adults,Physical Support 65 and over,3rd Party Payments,Nursing Care,BOTHWELLS LTD,HA6 ,16/12/2022,"3,733.20"
57915236,Physical Support,Adults,Physical Support 65 and over,Income,Client Contribution - Nursing,BOTHWELLS LTD,HA6 ,16/12/2022,-659.80
57915236,Physical Support,Adults,Physical Support 65 and over,Income,Client Contribution - Nursing,BOTHWELLS LTD,HA6 ,16/12/2022,-909.16
57915236,Physical Support,Adults,Physical Support 65 and over,Income,Client Contribution - Nursing,BOTHWELLS LTD,HA6 ,16/12/2022,-781.40
57915236,Physical Support,Adults,Physical Support 18 - 64,Income,Client Contribution - Nursing,BOTHWELLS LTD,HA6 ,16/12/2022,-414.20
57915236,Physical Support,Adults,Physical Support 65 and over,Income,Client Contribution - Nursing,BOTHWELLS LTD,HA6 ,16/12/2022,-648.28
57915236,Physical Support,Adults,Physical Support 65 and over,3rd Party Payments,Nursing Care,BOTHWELLS LTD,HA6 ,16/12/2022,"2,560.12"
57915236,Physical Support,Adults,Physical Support 65 and over,3rd Party Payments,Nursing Care,BOTHWELLS LTD,HA6 ,16/12/2022,"2,920.32"
57915236,Physical Support,Adults,Physical Support 18 - 64,3rd Party Payments,Nursing Care,BOTHWELLS LTD,HA6 ,16/12/2022,"13,738.21"
57915236,Physical Support,Adults,Physical Support 18 - 64,Income,Client Contribution - Nursing,BOTHWELLS LTD,HA6 ,16/12/2022,-425.60
59791233,Acquisitions,HRA Capital Financing,HRA Acquisitions Programme,Capital,Acquisitions,BPE SOLICITORS LLP,GL50,30/12/2022,30.00
57270233,Property Estates,Property,Investment Properties,Supplies and Services,Fees,BPE SOLICITORS LLP,GL50,12/12/2022,"1,500.00"
58072233,Property Estates,Property,Investment Properties,Supplies and Services,Fees,BPE SOLICITORS LLP,GL50,19/12/2022,"2,500.00"
59791233,Acquisitions,HRA Capital Financing,HRA Acquisitions Programme,Capital,Acquisitions,BPE SOLICITORS LLP,GL50,30/12/2022,655.00
57334234,High Needs Block,DSG Skills and Attainment,SEN Resourcing Assessment Panel,3rd Party Payments,Top up funding - Maintained providers Pre 16,BRAMBLE HOUSE DAY NURSERY LTD,SN2 ,14/12/2022,630.00
56361235,Early Years Block,DSG Skills and Attainment,Free Nursery Education Commissioning - two year olds,3rd Party Payments,Contracts - Child Care,BRAMBLE HOUSE DAY NURSERY LTD,SN2 ,07/12/2022,"1,738.80"
56361234,Early Years Block,DSG Skills and Attainment,Free Nursery Education Commissioning - three & four  year olds,3rd Party Payments,Contracts - Child Care,BRAMBLE HOUSE DAY NURSERY LTD,SN2 ,07/12/2022,"11,206.50"
57299247,Early Years Block,DSG Skills and Attainment,Free Nursery Education Commissioning - three & four  year olds,3rd Party Payments,Contracts - Child Care,BRAMBLE HOUSE DAY NURSERY LTD,SN2 ,14/12/2022,627.00
57358244,Social Care,"Children, Families and Community Health Services",External Placements,3rd Party Payments,Residential Care,BRANAS ISAF LIMITED,EN6 ,14/12/2022,"24,578.66"
58814234,Planned Maintenance Programme,HRA Capital Financing,Roofs,Capital,Contractor Payments,BREYER GROUP PLC,RM3 ,21/12/2022,"7,569.52"
58814234,Planned Maintenance Programme,HRA Capital Financing,Roofs,Capital,Contractor Payments,BREYER GROUP PLC,RM3 ,21/12/2022,"7,097.73"
58814234,Planned Maintenance Programme,HRA Capital Financing,Roofs,Capital,Contractor Payments,BREYER GROUP PLC,RM3 ,21/12/2022,"7,094.65"
58814234,Planned Maintenance Programme,HRA Capital Financing,Roofs,Capital,Contractor Payments,BREYER GROUP PLC,RM3 ,21/12/2022,"7,589.44"
58409233,Planned Maintenance Programme,HRA Capital Financing,Roofs,Capital,Contractor Payments,BREYER GROUP PLC,RM3 ,19/12/2022,"3,414.98"
58814234,Planned Maintenance Programme,HRA Capital Financing,Roofs,Capital,Contractor Payments,BREYER GROUP PLC,RM3 ,21/12/2022,"7,780.28"
58814234,Planned Maintenance Programme,HRA Capital Financing,Roofs,Capital,Contractor Payments,BREYER GROUP PLC,RM3 ,21/12/2022,"7,332.48"
58814234,Planned Maintenance Programme,HRA Capital Financing,Roofs,Capital,Contractor Payments,BREYER GROUP PLC,RM3 ,21/12/2022,"7,824.66"
58814234,Planned Maintenance Programme,HRA Capital Financing,Roofs,Capital,Contractor Payments,BREYER GROUP PLC,RM3 ,21/12/2022,"7,492.44"
58814234,Planned Maintenance Programme,HRA Capital Financing,Roofs,Capital,Contractor Payments,BREYER GROUP PLC,RM3 ,21/12/2022,"7,388.85"
56990245,DSG Other Funding,DSG Skills and Attainment,DFE Additional Grants,Supplies and Services,Payments to Educational Bodies,BRIDLEWOOD PRIMARY SCHOOL,SN25,09/12/2022,"16,081.00"
55662253,Early Years Block,DSG Skills and Attainment,Free Nursery Education Commissioning - three & four  year olds,3rd Party Payments,Contracts - Child Care,BRIDLEWOOD PRIMARY SCHOOL,SN25,07/12/2022,"6,771.69"
56953233,DSG Other Funding,DSG Skills and Attainment,DFE Additional Grants,Supplies and Services,Payments to Educational Bodies,BRIDLEWOOD PRIMARY SCHOOL,SN25,09/12/2022,713.00
56941233,DSG Other Funding,DSG Skills and Attainment,DFE Additional Grants,Supplies and Services,Payments to Educational Bodies,BRIDLEWOOD PRIMARY SCHOOL,SN25,09/12/2022,"10,389.00"
56921233,DSG Other Funding,DSG Skills and Attainment,DFE Additional Grants,Supplies and Services,Payments to Educational Bodies,BRIDLEWOOD PRIMARY SCHOOL,SN25,09/12/2022,"2,015.00"
57310237,Streetsmart,Streetsmart,Coate Water,Supplies and Services,Materials,BRISTOL CITY COUNCIL,BS1 ,14/12/2022,"1,500.00"
57319236,Streetsmart,Streetsmart,Grounds Maintenance,Supplies and Services,Materials,BRISTOL CITY COUNCIL,BS1 ,14/12/2022,"6,507.55"
58067233,Homelessness and Travellers,Housing Services,ASC Rental Properties,Transfer Payments,Payment of Costs,BRITISH GAS TRADING LTD,NN4 ,19/12/2022,"1,377.67"
59953233,Revenues & Benefits,Revenues & Benefits,Swindon Emergency Assistance Fund,Supplies and Services,Materials,BRITISH HEART FOUNDATION,NW1 ,30/12/2022,"1,931.00"
58076233,Corporate,Corporate Finance,Corporate Financial Management,Supplies and Services,Fees,BROADSTONE CONSULTANTS & ACTUARIES LTD,BS1 ,19/12/2022,"1,268.75"
56504233,Corporate,Corporate Finance,Corporate Financial Management,Supplies and Services,Fees,BROADSTONE CONSULTANTS & ACTUARIES LTD,BS1 ,07/12/2022,"5,568.45"
57482233,Corporate,Corporate Finance,Corporate Financial Management,Supplies and Services,Fees,BROADSTONE CONSULTANTS & ACTUARIES LTD,BS1 ,14/12/2022,"4,400.98"
59476233,Public Health,Public Health,DAAT,3rd Party Payments,Contract Payments,BROADWAY LODGE LTD,BS24,23/12/2022,"4,400.00"
57394233,Public Health,Public Health,DAAT,3rd Party Payments,Contract Payments,BROADWAY LODGE LTD,BS24,14/12/2022,"4,400.00"
54628242,High Needs Block,DSG Skills and Attainment,Post 16 - New Responsibilties,3rd Party Payments,Independent Service Provider- Post 16,BRUNEL EDUCATION,SN25,14/12/2022,"119,529.08"
56994239,High Needs Block,DSG Skills and Attainment,DSG Retained High Needs,Supplies and Services,Payments to Educational Bodies,REDACTED PERSONAL DATA,SN25,09/12/2022,"1,608.52"
56994235,High Needs Block,DSG Skills and Attainment,DSG Retained High Needs,Supplies and Services,Payments to Educational Bodies,REDACTED PERSONAL DATA,SN25,09/12/2022,"8,007.86"
56994237,High Needs Block,DSG Skills and Attainment,DSG Retained High Needs,Supplies and Services,Payments to Educational Bodies,REDACTED PERSONAL DATA,SN25,09/12/2022,"2,277.18"
57006235,High Needs Block,DSG Skills and Attainment,DSG Retained High Needs,Supplies and Services,Payments to Educational Bodies,REDACTED PERSONAL DATA,SN25,09/12/2022,"8,370.36"
57000233,High Needs Block,DSG Skills and Attainment,DSG Retained High Needs,Supplies and Services,Payments to Educational Bodies,REDACTED PERSONAL DATA,SN25,09/12/2022,"43,281.79"
57006238,High Needs Block,DSG Skills and Attainment,DSG Retained High Needs,Supplies and Services,Payments to Educational Bodies,REDACTED PERSONAL DATA,SN25,09/12/2022,"9,186.98"
56998233,High Needs Block,DSG Skills and Attainment,DSG Retained High Needs,Supplies and Services,Payments to Educational Bodies,REDACTED PERSONAL DATA,SN25,09/12/2022,"30,551.85"
57544234,High Needs Block,DSG Skills and Attainment,Advisory Teacher Services,Supplies and Services,Payments to Educational Bodies,REDACTED PERSONAL DATA,SN25,16/12/2022,"7,250.00"
57002233,High Needs Block,DSG Skills and Attainment,DSG Retained High Needs,Supplies and Services,Payments to Educational Bodies,REDACTED PERSONAL DATA,SN25,09/12/2022,"25,459.88"
57006236,High Needs Block,DSG Skills and Attainment,DSG Retained High Needs,Supplies and Services,Payments to Educational Bodies,REDACTED PERSONAL DATA,SN25,09/12/2022,"15,617.86"
56999233,High Needs Block,DSG Skills and Attainment,DSG Retained High Needs,Supplies and Services,Payments to Educational Bodies,REDACTED PERSONAL DATA,SN25,09/12/2022,"23,196.78"
57006234,High Needs Block,DSG Skills and Attainment,DSG Retained High Needs,Supplies and Services,Payments to Educational Bodies,REDACTED PERSONAL DATA,SN25,09/12/2022,"11,024.37"
54620241,High Needs Block,DSG Skills and Attainment,SEN Resourcing Assessment Panel,3rd Party Payments,Top up funding - Academies and Free Schools Pre 16,REDACTED PERSONAL DATA,SN25,14/12/2022,"76,987.69"
54621233,High Needs Block,DSG Skills and Attainment,SEN Resourcing Assessment Panel,3rd Party Payments,Top up funding - Academies and Free Schools Pre 16,REDACTED PERSONAL DATA,SN25,14/12/2022,"140,211.27"
54620242,High Needs Block,DSG Skills and Attainment,SEN Resourcing Assessment Panel,3rd Party Payments,Top up funding - Academies and Free Schools Pre 16,REDACTED PERSONAL DATA,SN25,14/12/2022,"159,289.51"
54620240,High Needs Block,DSG Skills and Attainment,SEN Resourcing Assessment Panel,3rd Party Payments,Top up funding - Academies and Free Schools Pre 16,REDACTED PERSONAL DATA,SN25,14/12/2022,"109,504.05"
54622234,High Needs Block,DSG Skills and Attainment,SEN Resourcing Assessment Panel,3rd Party Payments,Top up funding - Academies and Free Schools Pre 16,REDACTED PERSONAL DATA,SN25,14/12/2022,"38,167.41"
54628233,High Needs Block,DSG Skills and Attainment,SEN Resourcing Assessment Panel,3rd Party Payments,Top up funding - Academies and Free Schools Pre 16,REDACTED PERSONAL DATA,SN25,14/12/2022,"21,503.03"
54628234,High Needs Block,DSG Skills and Attainment,SEN Resourcing Assessment Panel,3rd Party Payments,Top up funding - Academies and Free Schools Pre 16,REDACTED PERSONAL DATA,SN25,14/12/2022,"17,535.65"
54625234,High Needs Block,DSG Skills and Attainment,SEN Resourcing Assessment Panel,3rd Party Payments,Top up funding - Academies and Free Schools Pre 16,REDACTED PERSONAL DATA,SN25,14/12/2022,"9,249.73"
54628237,High Needs Block,DSG Skills and Attainment,SEN Resourcing Assessment Panel,3rd Party Payments,Top up funding - Academies and Free Schools Post 16,REDACTED PERSONAL DATA,SN25,14/12/2022,"58,093.48"
57545233,High Needs Block,DSG Skills and Attainment,Advisory Teacher Services,Supplies and Services,Payments to Educational Bodies,REDACTED PERSONAL DATA,SN25,16/12/2022,"11,317.00"
58080233,Mainstream Schools Extension,Skills & Attainment,South Marston Primary School,Capital,Professional Fees,BRUNEL SURVEYS LTD,CM20,19/12/2022,"7,835.50"
56443233,NEV,"Economy, Growth and Place",Southern Connector Road,Capital,Consultants,BRUTON KNOWLES,GL2 ,07/12/2022,958.35
57057233,Non-HRA Vehicles,Transport,Vehicle & Plant replacement strategy,Capital,Contractor Payments,BSP TEX LTD,IP6 ,09/12/2022,"20,500.00"
57310238,Supported Employment,Housing Services,EW - Timber,Supplies and Services,Materials,BSW TIMBER LIMITED,TD4 ,14/12/2022,"8,386.66"
57310239,Supported Employment,Housing Services,EW - Timber,Supplies and Services,Materials,BSW TIMBER LIMITED,TD4 ,14/12/2022,"11,150.45"
58880233,NEV,"Economy, Growth and Place",Southern Connector Road,Capital,Contractor Payments,BUCKINGHAM GROUP CONTRACTING LIMITED,MK18,21/12/2022,"982,454.01"
57139233,Small New Build Schemes,HRA Capital Financing,Ventnor Close,Capital,Contractor Payments,BUILDTECH SW LIMITED,GL53,09/12/2022,"1,260.00"
56218233,Neighbourhood Wardens,Special Services,Neighbourhood Wardens,Supplies and Services,Hire / Rental,BUNZL CLEANING & HYGIENE SUPPLIES,SL3 ,07/12/2022,926.94
56364233,Early Years Block,DSG Skills and Attainment,Free Nursery Education Commissioning - three & four  year olds,3rd Party Payments,Contracts - Child Care,"BUSY BEES, BROOME MANOR",SN3 ,07/12/2022,"14,292.90"
56365235,Early Years Block,DSG Skills and Attainment,Free Nursery Education Commissioning - three & four  year olds,3rd Party Payments,Contracts - Child Care,"BUSY BEES, PEATMOOR",SN5 ,07/12/2022,"10,944.15"
56365236,Early Years Block,DSG Skills and Attainment,Free Nursery Education Commissioning - two year olds,3rd Party Payments,Contracts - Child Care,"BUSY BEES, PEATMOOR",SN5 ,07/12/2022,"2,801.40"
56366234,Early Years Block,DSG Skills and Attainment,Free Nursery Education Commissioning - three & four  year olds,3rd Party Payments,Contracts - Child Care,"BUSY BEES, ST ANDREWS RIDGE",SN25,07/12/2022,"16,370.48"
56366233,Early Years Block,DSG Skills and Attainment,Free Nursery Education Commissioning - two year olds,3rd Party Payments,Contracts - Child Care,"BUSY BEES, ST ANDREWS RIDGE",SN25,07/12/2022,"1,932.00"
57923235,Learning Disabilities,Adults,Learning Disability 26 - 64,Income,Client Contribution - Residential,C.H.O.I.C.E LTD,RG12,16/12/2022,-207.60
57923233,Learning Disabilities,Adults,Learning Disability 65 and over,Income,Client Contribution - Residential,C.H.O.I.C.E LTD,RG12,16/12/2022,-607.60
57922234,Learning Disabilities,Adults,Learning Disability 26 - 64,Income,Client Contribution - Residential,C.H.O.I.C.E LTD,RG12,16/12/2022,-415.00
57923234,Learning Disabilities,Adults,Learning Disability 65 and over,3rd Party Payments,Residential Care,C.H.O.I.C.E LTD,RG12,16/12/2022,"9,474.20"
57923233,Learning Disabilities,Adults,Learning Disability 65 and over,3rd Party Payments,Residential Care,C.H.O.I.C.E LTD,RG12,16/12/2022,"-26,378.47"
57923233,Learning Disabilities,Adults,Learning Disability 65 and over,Income,Client Contribution - Residential,C.H.O.I.C.E LTD,RG12,16/12/2022,-773.20
57921233,Learning Disabilities,Adults,Learning Disability 26 - 64,Income,Client Contribution - Residential,C.H.O.I.C.E LTD,RG12,16/12/2022,-298.20
57922233,Learning Disabilities,Adults,Learning Disability 26 - 64,Income,Client Contribution - Residential,C.H.O.I.C.E LTD,RG12,16/12/2022,-423.00
57921233,Learning Disabilities,Adults,Learning Disability 26 - 64,3rd Party Payments,Residential Care,C.H.O.I.C.E LTD,RG12,16/12/2022,"9,147.40"
57923233,Learning Disabilities,Adults,Learning Disability 65 and over,Income,Client Contribution - Residential,C.H.O.I.C.E LTD,RG12,16/12/2022,"-1,546.40"
57923235,Learning Disabilities,Adults,Learning Disability 26 - 64,3rd Party Payments,Residential Care,C.H.O.I.C.E LTD,RG12,16/12/2022,"10,934.04"
57923234,Learning Disabilities,Adults,Learning Disability 65 and over,3rd Party Payments,Residential Care,C.H.O.I.C.E LTD,RG12,16/12/2022,"8,340.72"
57923233,Learning Disabilities,Adults,Learning Disability 65 and over,3rd Party Payments,Residential Care,C.H.O.I.C.E LTD,RG12,16/12/2022,"8,447.72"
57923235,Physical Support,Adults,Physical Support 18 - 64,Income,Client Contribution - Residential,C.H.O.I.C.E LTD,RG12,16/12/2022,-414.20
57923235,Learning Disabilities,Adults,Learning Disability 26 - 64,3rd Party Payments,Residential Care,C.H.O.I.C.E LTD,RG12,16/12/2022,"11,677.40"
57923233,Learning Disabilities,Adults,Learning Disability 65 and over,3rd Party Payments,Residential Care,C.H.O.I.C.E LTD,RG12,16/12/2022,"8,898.76"
57923234,Learning Disabilities,Adults,Learning Disability 65 and over,Income,Client Contribution - Residential,C.H.O.I.C.E LTD,RG12,16/12/2022,-636.32
57922233,Learning Disabilities,Adults,Learning Disability 26 - 64,3rd Party Payments,Residential Care,C.H.O.I.C.E LTD,RG12,16/12/2022,"6,691.00"
57923235,Learning Disabilities,Adults,Learning Disability 26 - 64,Income,Client Contribution - Residential,C.H.O.I.C.E LTD,RG12,16/12/2022,-454.80
57923234,Learning Disabilities,Adults,Learning Disability 26 - 64,3rd Party Payments,Residential Care,C.H.O.I.C.E LTD,RG12,16/12/2022,"6,825.52"
57922234,Learning Disabilities,Adults,Learning Disability 26 - 64,3rd Party Payments,Residential Care,C.H.O.I.C.E LTD,RG12,16/12/2022,"10,940.40"
57923233,Learning Disabilities,Adults,Learning Disability 65 and over,3rd Party Payments,Residential Care,C.H.O.I.C.E LTD,RG12,16/12/2022,"17,797.52"
57923235,Physical Support,Adults,Physical Support 18 - 64,3rd Party Payments,Residential Care,C.H.O.I.C.E LTD,RG12,16/12/2022,"10,222.80"
57923233,Learning Disabilities,Adults,Learning Disability 26 - 64,Income,Client Contribution - Residential,C.H.O.I.C.E LTD,RG12,16/12/2022,"1,764.70"
57923234,Learning Disabilities,Adults,Learning Disability 65 and over,Income,Client Contribution - Residential,C.H.O.I.C.E LTD,RG12,16/12/2022,-550.84
57923234,Learning Disabilities,Adults,Learning Disability 26 - 64,Income,Client Contribution - Residential,C.H.O.I.C.E LTD,RG12,16/12/2022,-391.00
59140233,Homeline,Special Services,Homeline,Supplies and Services,Materials,CAIR (UK) LTD,HX1 ,23/12/2022,"1,750.00"
57358242,Social Care,"Children, Families and Community Health Services",External Placements,3rd Party Payments,Residential Care,CALCOT SERVICES FOR CHILDREN LTD,RG7 ,14/12/2022,"29,892.68"
57358241,Social Care,"Children, Families and Community Health Services",External Placements,3rd Party Payments,Residential Care,CALCOT SERVICES FOR CHILDREN LTD,RG7 ,14/12/2022,"29,361.34"
59272427,Learning Disabilities,Adults,Learning Disability 26 - 64,Transfer Payments,Personal Budget - Direct Payments - Domiciliary Care,REDACTED PERSONAL DATA,SP11,23/12/2022,"1,844.32"
59272515,Learning Disabilities,Adults,Learning Disability 26 - 64,Transfer Payments,Personal Budget - Direct Payments - Domiciliary Care,REDACTED PERSONAL DATA,SP11,23/12/2022,631.33
55494233,Lydiard Park,Streetsmart,Lydiard : Hotel Operations,Premises Costs,Gas,CALOR GAS LTD,CV34,02/12/2022,"1,188.00"
59707233,Lydiard Park,Streetsmart,Lydiard : Hotel Operations,Premises Costs,Gas,CALOR GAS LTD,CV34,28/12/2022,"1,230.90"
59205233,Physical Support,Adults,Physical Support 18 - 64,Transfer Payments,Personal Budget - Direct Payments - Domiciliary Care,REDACTED PERSONAL DATA,SN25,23/12/2022,824.47
58407234,Void Repairs,Supervision & Management,Void Property Repairs,3rd Party Payments,Contract Payments,CANTILLON GROUP LTD,SN25,19/12/2022,"5,456.56"
58407234,Void Repairs,Supervision & Management,Void Property Repairs,3rd Party Payments,Contract Payments,CANTILLON GROUP LTD,SN25,19/12/2022,"4,435.13"
58407234,Planned Maintenance Programme,HRA Capital Financing,Bathrooms,Capital,Contractor Payments,CANTILLON GROUP LTD,SN25,19/12/2022,"2,232.29"
58407234,Planned Maintenance Programme,HRA Capital Financing,Bathrooms,Capital,Contractor Payments,CANTILLON GROUP LTD,SN25,19/12/2022,"1,127.25"
58407234,Planned Maintenance Programme,HRA Capital Financing,Bathrooms,Capital,Contractor Payments,CANTILLON GROUP LTD,SN25,19/12/2022,"1,526.69"
58407234,Planned Maintenance Programme,HRA Capital Financing,Bathrooms,Capital,Contractor Payments,CANTILLON GROUP LTD,SN25,19/12/2022,"2,209.90"
55504233,Other Repairs,Repairs,Cyclical Maintenance,Supplies and Services,Testing / Inspection,CANTILLON GROUP LTD,SN25,02/12/2022,518.20
55789233,Other Repairs,Repairs,Cyclical Maintenance,Supplies and Services,Testing / Inspection,CANTILLON GROUP LTD,SN25,02/12/2022,"1,309.23"
55503233,Other Repairs,Repairs,Cyclical Maintenance,Supplies and Services,Testing / Inspection,CANTILLON GROUP LTD,SN25,02/12/2022,593.85
58407234,Planned Maintenance Programme,HRA Capital Financing,Kitchens,Capital,Contractor Payments,CANTILLON GROUP LTD,SN25,19/12/2022,"3,449.09"
58407234,Void Repairs,Supervision & Management,Void Property Repairs,3rd Party Payments,Contract Payments,CANTILLON GROUP LTD,SN25,19/12/2022,"5,193.67"
58407234,Void Repairs,Supervision & Management,Void Property Repairs,3rd Party Payments,Contract Payments,CANTILLON GROUP LTD,SN25,19/12/2022,"4,839.57"
55791233,Other Repairs,Repairs,Cyclical Maintenance,Supplies and Services,Testing / Inspection,CANTILLON GROUP LTD,SN25,02/12/2022,"1,168.28"
58407234,Planned Maintenance Programme,HRA Capital Financing,Kitchens,Capital,Contractor Payments,CANTILLON GROUP LTD,SN25,19/12/2022,"2,563.05"
58407234,Planned Maintenance Programme,HRA Capital Financing,Kitchens,Capital,Contractor Payments,CANTILLON GROUP LTD,SN25,19/12/2022,"3,098.85"
58407234,Void Repairs,Supervision & Management,Void Property Repairs,3rd Party Payments,Contract Payments,CANTILLON GROUP LTD,SN25,19/12/2022,"1,412.35"
58407234,Void Repairs,Supervision & Management,Void Property Repairs,3rd Party Payments,Contract Payments,CANTILLON GROUP LTD,SN25,19/12/2022,"2,969.22"
58407234,Planned Maintenance Programme,HRA Capital Financing,Bathrooms,Capital,Contractor Payments,CANTILLON GROUP LTD,SN25,19/12/2022,"1,119.90"
56140233,Other Repairs,Repairs,Cyclical Maintenance,Supplies and Services,Testing / Inspection,CANTILLON GROUP LTD,SN25,07/12/2022,"1,313.69"
58407234,Void Repairs,Supervision & Management,Void Property Repairs,3rd Party Payments,Contract Payments,CANTILLON GROUP LTD,SN25,19/12/2022,"2,121.40"
58407234,Void Repairs,Supervision & Management,Void Property Repairs,3rd Party Payments,Contract Payments,CANTILLON GROUP LTD,SN25,19/12/2022,"5,072.42"
58407234,Void Repairs,Supervision & Management,Void Property Repairs,3rd Party Payments,Contract Payments,CANTILLON GROUP LTD,SN25,19/12/2022,"-50,000.00"
58407234,Acquisitions,HRA Capital Financing,HRA Acquisitions Programme,Capital,Contractor Payments,CANTILLON GROUP LTD,SN25,19/12/2022,"4,704.67"
58407234,Void Repairs,Supervision & Management,Void Property Repairs,3rd Party Payments,Contract Payments,CANTILLON GROUP LTD,SN25,19/12/2022,"6,797.77"
58407234,Void Repairs,Supervision & Management,Void Property Repairs,3rd Party Payments,Contract Payments,CANTILLON GROUP LTD,SN25,19/12/2022,"13,256.91"
55790233,Other Repairs,Repairs,Cyclical Maintenance,Supplies and Services,Testing / Inspection,CANTILLON GROUP LTD,SN25,02/12/2022,516.76
55501233,Other Repairs,Repairs,Cyclical Maintenance,Supplies and Services,Testing / Inspection,CANTILLON GROUP LTD,SN25,02/12/2022,503.78
58407234,Acquisitions,HRA Capital Financing,HRA Acquisitions Programme,Capital,Contractor Payments,CANTILLON GROUP LTD,SN25,19/12/2022,"2,384.78"
58407234,Planned Maintenance Programme,HRA Capital Financing,Kitchens,Capital,Contractor Payments,CANTILLON GROUP LTD,SN25,19/12/2022,"3,290.47"
58407234,Void Repairs,Supervision & Management,Void Property Repairs,3rd Party Payments,Contract Payments,CANTILLON GROUP LTD,SN25,19/12/2022,45.40
58407234,Void Repairs,Supervision & Management,Void Property Repairs,3rd Party Payments,Contract Payments,CANTILLON GROUP LTD,SN25,19/12/2022,"13,534.07"
55502233,Other Repairs,Repairs,Cyclical Maintenance,Supplies and Services,Testing / Inspection,CANTILLON GROUP LTD,SN25,02/12/2022,465.38
58407234,Void Repairs,Supervision & Management,Void Property Repairs,3rd Party Payments,Contract Payments,CANTILLON GROUP LTD,SN25,19/12/2022,"50,000.00"
58407234,Void Repairs,Supervision & Management,Void Property Repairs,3rd Party Payments,Contract Payments,CANTILLON GROUP LTD,SN25,19/12/2022,"6,546.94"
58407234,Void Repairs,Supervision & Management,Void Property Repairs,3rd Party Payments,Contract Payments,CANTILLON GROUP LTD,SN25,19/12/2022,"4,164.17"
58407234,Void Repairs,Supervision & Management,Void Property Repairs,3rd Party Payments,Contract Payments,CANTILLON GROUP LTD,SN25,19/12/2022,"8,376.36"
58665233,Revenues & Benefits,Revenues & Benefits,Revenues,3rd Party Payments,Strategic Partnership Service Charges,CAPITA BUSINESS SERVICES LTD,DL1 ,21/12/2022,"12,838.24"
59757233,Revenues & Benefits,Revenues & Benefits,Benefits,3rd Party Payments,Strategic Partnership Service Charges,CAPITA BUSINESS SERVICES LTD,DL1 ,30/12/2022,"145,102.17"
57822233,Digital & Business Change,Digital & Business Change,IT Operations,3rd Party Payments,Strategic Partnership Service Charges,CAPITA BUSINESS SERVICES LTD,DL1 ,16/12/2022,"12,974.81"
58665233,Revenues & Benefits,Revenues & Benefits,Benefits,3rd Party Payments,Strategic Partnership Service Charges,CAPITA BUSINESS SERVICES LTD,DL1 ,21/12/2022,"196,361.57"
58665233,Revenues & Benefits,Revenues & Benefits,Benefits,3rd Party Payments,Strategic Partnership Service Charges,CAPITA BUSINESS SERVICES LTD,DL1 ,21/12/2022,"2,613.00"
59757233,Revenues & Benefits,Revenues & Benefits,Revenues,3rd Party Payments,Strategic Partnership Service Charges,CAPITA BUSINESS SERVICES LTD,DL1 ,30/12/2022,"9,486.87"
58652233,Digital & Business Change,Digital & Business Change,IT Operations,3rd Party Payments,Semi Independent,CAPITA BUSINESS SERVICES LTD,DL1 ,21/12/2022,"12,974.81"
58524233,Digital & Business Change,Digital & Business Change,IT Operations,3rd Party Payments,Strategic Partnership Service Charges,CAPITA BUSINESS SERVICES LTD,DL1 ,21/12/2022,"13,028.19"
58148233,Digital & Business Change,Digital & Business Change,IT Operations,3rd Party Payments,Strategic Partnership Service Charges,CAPITA BUSINESS SERVICES LTD,DL1 ,19/12/2022,"12,974.81"
59757233,Revenues & Benefits,Revenues & Benefits,Revenues,3rd Party Payments,Strategic Partnership Service Charges,CAPITA BUSINESS SERVICES LTD,DL1 ,30/12/2022,"82,012.33"
58936233,Revenues & Benefits,Revenues & Benefits,Revenues,3rd Party Payments,Strategic Partnership Service Charges,CAPITA BUSINESS SERVICES LTD,DL1 ,21/12/2022,"11,225.00"
58936233,Revenues & Benefits,Revenues & Benefits,Benefits,3rd Party Payments,Strategic Partnership Service Charges,CAPITA BUSINESS SERVICES LTD,DL1 ,21/12/2022,"10,518.00"
58665233,Revenues & Benefits,Revenues & Benefits,Revenues,3rd Party Payments,Strategic Partnership Service Charges,CAPITA BUSINESS SERVICES LTD,DL1 ,21/12/2022,"110,984.36"
58523233,Digital & Business Change,Digital & Business Change,IT Operations,3rd Party Payments,Strategic Partnership Service Charges,CAPITA BUSINESS SERVICES LTD,DL1 ,21/12/2022,"12,974.81"
58077233,Human Resources and Organisational Development,"People, Culture and Organisational Resilience",HR Systems & Strategy,Supplies and Services,Fees,CAPITA RESOURCING LTD,RG22,19/12/2022,"1,074.96"
58077233,Human Resources and Organisational Development,"People, Culture and Organisational Resilience",HR Systems & Strategy,Supplies and Services,Fees,CAPITA RESOURCING LTD,RG22,19/12/2022,"3,470.00"
60039233,Social Care,"Children, Families and Community Health Services",External Placements,3rd Party Payments,Independent Fostering Agency Placements,CAPSTONE FOSTER CARE (SW) LTD,TQ12,30/12/2022,"7,506.34"
57960233,Physical Support,Adults,Physical Support 65 and over,Income,Client Contribution - Residential,CARE UK COMMUNITY PARTNERSHIPS LIMITED,OX16,16/12/2022,"-2,983.73"
57960233,Physical Support,Adults,Physical Support 65 and over,3rd Party Payments,Residential Care,CARE UK COMMUNITY PARTNERSHIPS LIMITED,OX16,16/12/2022,"6,583.00"
57960233,Physical Support,Adults,Physical Support 65 and over,3rd Party Payments,Residential Care,CARE UK COMMUNITY PARTNERSHIPS LIMITED,OX16,16/12/2022,"7,588.93"
57956234,Learning Disabilities,Adults,Learning Disability 26 - 64,3rd Party Payments,Supported Lodgings (Childrens)/Supported Living (Adults),CAREFORYOU LTD,N13 ,16/12/2022,"4,882.00"
57657233,Physical Support,Adults,Physical Support 18 - 64,3rd Party Payments,Personal Budget - Domiciliary care,CAREWATCH (SWINDON),BA14,19/12/2022,"2,827.00"
57651233,Physical Support,Adults,Physical Support 65 and over,3rd Party Payments,Personal Budget - Domiciliary care,CAREWATCH (SWINDON),BA14,19/12/2022,925.20
57835237,Physical Support,Adults,Physical Support 65 and over,3rd Party Payments,Personal Budget - Domiciliary care,CAREWATCH (SWINDON),BA14,19/12/2022,"1,110.24"
57650233,Physical Support,Adults,Physical Support 65 and over,3rd Party Payments,Personal Budget - Domiciliary care,CAREWATCH (SWINDON),BA14,19/12/2022,842.96
57658233,Physical Support,Adults,Physical Support 65 and over,3rd Party Payments,Personal Budget - Domiciliary care,CAREWATCH (SWINDON),BA14,19/12/2022,"2,384.96"
57655233,Physical Support,Adults,Physical Support 65 and over,3rd Party Payments,Personal Budget - Domiciliary care,CAREWATCH (SWINDON),BA14,19/12/2022,"3,084.00"
57653233,Physical Support,Adults,Physical Support 65 and over,3rd Party Payments,Personal Budget - Domiciliary care,CAREWATCH (SWINDON),BA14,19/12/2022,796.70
57656233,Physical Support,Adults,Physical Support 65 and over,3rd Party Payments,Personal Budget - Domiciliary care,CAREWATCH (SWINDON),BA14,19/12/2022,"1,310.70"
57835238,Physical Support,Adults,Physical Support 65 and over,3rd Party Payments,Personal Budget - Domiciliary care,CAREWATCH (SWINDON),BA14,19/12/2022,"1,480.32"
4796222,Public Health,Public Health,Smoking & Tobacco,3rd Party Payments,Contract Payments,CARFAX HEALTH ENTERPRISE CIC,SN5 ,28/12/2022,500.00
58005237,Social Care,"Children, Families and Community Health Services",External Placements,3rd Party Payments,Residential Care,CARING FOR COMMUNITIES AND PEOPLE (CCP),GL50,19/12/2022,800.00
58006233,Social Care,"Children, Families and Community Health Services",Placement - Care Leaver Team,3rd Party Payments,Semi Independent,CARING FOR COMMUNITIES AND PEOPLE (CCP),GL50,19/12/2022,"2,460.00"
58676233,Disabled Children,"Children, Families and Community Health Services",DCT Daytime Short Breaks,3rd Party Payments,Respite Care,CARING FOR COMMUNITIES AND PEOPLE (CCP),GL50,21/12/2022,"3,882.40"
58006237,Social Care,"Children, Families and Community Health Services",Placement - Care Leaver Team,3rd Party Payments,Semi Independent,CARING FOR COMMUNITIES AND PEOPLE (CCP),GL50,19/12/2022,"2,460.00"
58006238,Social Care,"Children, Families and Community Health Services",Unaccompanied Asylum Seeking Children (UASC),3rd Party Payments,Semi Independent,CARING FOR COMMUNITIES AND PEOPLE (CCP),GL50,19/12/2022,"2,460.00"
58005235,Social Care,"Children, Families and Community Health Services",External Placements,3rd Party Payments,Residential Care,CARING FOR COMMUNITIES AND PEOPLE (CCP),GL50,19/12/2022,"3,128.00"
58006236,Social Care,"Children, Families and Community Health Services",Unaccompanied Asylum Seeking Children (UASC),3rd Party Payments,Semi Independent,CARING FOR COMMUNITIES AND PEOPLE (CCP),GL50,19/12/2022,"3,540.00"
58006234,Social Care,"Children, Families and Community Health Services",Placement - Care Leaver Team,3rd Party Payments,Semi Independent,CARING FOR COMMUNITIES AND PEOPLE (CCP),GL50,19/12/2022,"2,460.00"
58006235,Social Care,"Children, Families and Community Health Services",Placement - Care Leaver Team,3rd Party Payments,Semi Independent,CARING FOR COMMUNITIES AND PEOPLE (CCP),GL50,19/12/2022,"3,540.00"
58006239,Social Care,"Children, Families and Community Health Services",Placement - Care Leaver Team,3rd Party Payments,Semi Independent,CARING FOR COMMUNITIES AND PEOPLE (CCP),GL50,19/12/2022,"5,520.00"
57768233,Disabled Children,"Children, Families and Community Health Services",DCT Daytime Short Breaks,3rd Party Payments,Respite Care,CARING FOR COMMUNITIES AND PEOPLE (CCP),GL50,16/12/2022,815.20
58677234,Disabled Children,"Children, Families and Community Health Services",DCT Daytime Short Breaks,3rd Party Payments,Respite Care,CARING FOR COMMUNITIES AND PEOPLE (CCP),GL50,21/12/2022,"2,022.90"
58005236,Social Care,"Children, Families and Community Health Services",External Placements,3rd Party Payments,Residential Care,CARING FOR COMMUNITIES AND PEOPLE (CCP),GL50,19/12/2022,"14,910.00"
56676233,Physical Support,Adults,Physical Support 65 and over,3rd Party Payments,Personal Budget - Domiciliary care,CARING HEART CARERS LIMITED,SN25,07/12/2022,"1,002.30"
56677233,Physical Support,Adults,Physical Support 18 - 64,3rd Party Payments,Personal Budget - Domiciliary care,CARING HEART CARERS LIMITED,SN25,07/12/2022,"1,151.36"
56675233,Physical Support,Adults,Physical Support 18 - 64,3rd Party Payments,Personal Budget - Domiciliary care,CARING HEART CARERS LIMITED,SN25,07/12/2022,925.20
58921239,Physical Support,Adults,Physical Support 65 and over,3rd Party Payments,Personal Budget - Domiciliary care,CARING HEART CARERS LIMITED,SN25,21/12/2022,"1,182.20"
55518233,Lydiard Park,Streetsmart,Lydiard : Hotel Operations,Supplies and Services,Repairs & Maintenance,CARLTON SERVICES (UK) LTD,SN3 ,02/12/2022,487.00
59708233,Streetsmart,Streetsmart,Courtyard Caf�,Supplies and Services,Repairs & Maintenance,CARLTON SERVICES (UK) LTD,SN3 ,28/12/2022,450.00
59264233,Learning Disabilities,Adults,Learning Disability 26 - 64,Transfer Payments,Personal Budget - Direct Payments - Domiciliary Care,REDACTED PERSONAL DATA,SN2 ,23/12/2022,"2,357.21"
59272468,Physical Support,Adults,Physical Support 65 and over,3rd Party Payments,Carers,REDACTED PERSONAL DATA,SP11,23/12/2022,527.66
58430233,Social Care,"Children, Families and Community Health Services",Placement - Care Leaver Team,3rd Party Payments,Supported Lodgings (Childrens)/Supported Living (Adults),REDACTED PERSONAL DATA,SN1 ,19/12/2022,540.00
56366238,Early Years Block,DSG Skills and Attainment,Free Nursery Education Commissioning - three & four  year olds,3rd Party Payments,Contracts - Child Care,REDACTED PERSONAL DATA,SN25,07/12/2022,937.65
59272471,Learning Disabilities,Adults,Learning Disability 26 - 64,Transfer Payments,Personal Budget - Direct Payments - Domiciliary Care,REDACTED PERSONAL DATA,SN2 ,23/12/2022,"1,407.87"
59272472,Learning Disabilities,Adults,Learning Disability 26 - 64,Transfer Payments,Personal Budget - Direct Payments - Other,REDACTED PERSONAL DATA,SN2 ,23/12/2022,"2,598.70"
55662256,Early Years Block,DSG Skills and Attainment,Free Nursery Education Commissioning - three & four  year olds,3rd Party Payments,Contracts - Child Care,REDACTED PERSONAL DATA,SN3 ,07/12/2022,740.25
60047234,Other Repairs,Repairs,Unallocated job costs from OPEN system,3rd Party Payments,Contract Payments,CARPET WAREHOUSE SWINDON LTD,SN2 ,30/12/2022,667.51
55683237,Responsive Repairs,Repairs,Responsive Repairs,3rd Party Payments,Contract Payments,CARPET WAREHOUSE SWINDON LTD,SN2 ,02/12/2022,822.39
55683233,Responsive Repairs,Repairs,Responsive Repairs,3rd Party Payments,Contract Payments,CARPET WAREHOUSE SWINDON LTD,SN2 ,02/12/2022,977.92
55683243,Responsive Repairs,Repairs,Responsive Repairs,3rd Party Payments,Contract Payments,CARPET WAREHOUSE SWINDON LTD,SN2 ,02/12/2022,954.17
60046234,Responsive Repairs,Repairs,Responsive Repairs,3rd Party Payments,Contract Payments,CARPET WAREHOUSE SWINDON LTD,SN2 ,30/12/2022,961.10
57325233,Responsive Repairs,Repairs,Responsive Repairs,3rd Party Payments,Contract Payments,CARPET WAREHOUSE SWINDON LTD,SN2 ,14/12/2022,"1,105.87"
55683242,Responsive Repairs,Repairs,Responsive Repairs,3rd Party Payments,Contract Payments,CARPET WAREHOUSE SWINDON LTD,SN2 ,02/12/2022,"1,010.11"
55683236,Responsive Repairs,Repairs,Responsive Repairs,3rd Party Payments,Contract Payments,CARPET WAREHOUSE SWINDON LTD,SN2 ,02/12/2022,794.78
57325234,Responsive Repairs,Repairs,Responsive Repairs,3rd Party Payments,Contract Payments,CARPET WAREHOUSE SWINDON LTD,SN2 ,14/12/2022,900.00
57239234,Disabled Children,"Children, Families and Community Health Services",DCT Daytime Short Breaks,3rd Party Payments,Respite Care,CARTER BROWN LTD,B15 ,12/12/2022,561.60
57316233,Other Repairs,Repairs,Unallocated job costs from OPEN system,3rd Party Payments,Contract Payments,CARTER PUMPS LTD,SN10,14/12/2022,795.00
59272244,Learning Disabilities,Adults,Learning Disability 26 - 64,Transfer Payments,Personal Budget - Direct Payments - Domiciliary Care,REDACTED PERSONAL DATA,SN6 ,23/12/2022,"2,453.36"
56508255,Treasury,Corporate Finance,Private Finance Initiatives (PFI),Supplies and Services,Services,CASTLE GATE LEGAL & COMMERCIAL LTD,NG12,07/12/2022,"2,000.00"
57172233,,,Balance Sheet,Balance Sheet & Recharge,Water invoices,CASTLE WATER LTD,PH10,12/12/2022,"174,296.88"
54761233,Property Estates,Property,Borough Farms,Premises Costs,Water,CASTLE WATER LTD,PH10,12/12/2022,"17,797.63"
59952234,,,Balance Sheet,Balance Sheet & Recharge,Water invoices,CASTLE WATER LTD,PH10,30/12/2022,"5,411.89"
49121233,,,Balance Sheet,Balance Sheet & Recharge,Water invoices,CASTLE WATER LTD,PH10,12/12/2022,"-12,393.80"
53791233,,,Balance Sheet,Balance Sheet & Recharge,Water invoices,CASTLE WATER LTD,PH10,12/12/2022,-664.28
54778233,Property Estates,Property,Borough Farms,Premises Costs,Water,CASTLE WATER LTD,PH10,12/12/2022,"-6,924.02"
53797233,Lydiard Park,Streetsmart,Lydiard : Hotel Operations,Premises Costs,Water,CASTLE WATER LTD,PH10,12/12/2022,"-68,410.55"
53794233,,,Balance Sheet,Balance Sheet & Recharge,Water invoices,CASTLE WATER LTD,PH10,12/12/2022,"-1,925.16"
57174233,,,Balance Sheet,Balance Sheet & Recharge,Water invoices,CASTLE WATER LTD,PH10,12/12/2022,"56,796.18"
59952234,,,Balance Sheet,Balance Sheet & Recharge,Water invoices,CASTLE WATER LTD,PH10,30/12/2022,964.25
57173233,,,Balance Sheet,Balance Sheet & Recharge,Water invoices,CASTLE WATER LTD,PH10,12/12/2022,"15,713.05"
57909233,Learning Disabilities,Adults,Learning Disability 26 - 64,Income,Client Contribution - Personal Budget - Fairer Charging,CATHEDRAL HOMES,GL1 ,16/12/2022,-206.00
57909233,Learning Disabilities,Adults,Learning Disability 26 - 64,Income,Client Contribution - Personal Budget - Fairer Charging,CATHEDRAL HOMES,GL1 ,16/12/2022,-41.20
57909233,Learning Disabilities,Adults,Learning Disability 26 - 64,3rd Party Payments,Supported Lodgings (Childrens)/Supported Living (Adults),CATHEDRAL HOMES,GL1 ,16/12/2022,"1,597.04"
57909233,Learning Disabilities,Adults,Learning Disability 26 - 64,Income,Client Contribution - Supported Living,CATHEDRAL HOMES,GL1 ,16/12/2022,-414.20
57909233,Learning Disabilities,Adults,Learning Disability 26 - 64,3rd Party Payments,Supported Lodgings (Childrens)/Supported Living (Adults),CATHEDRAL HOMES,GL1 ,16/12/2022,"4,176.92"
57909233,Learning Disabilities,Adults,Learning Disability 26 - 64,Income,Client Contribution - Personal Budget - Fairer Charging,CATHEDRAL HOMES,GL1 ,16/12/2022,-164.80
57909233,Learning Disabilities,Adults,Learning Disability 26 - 64,Income,Client Contribution - Personal Budget - Fairer Charging,CATHEDRAL HOMES,GL1 ,16/12/2022,"-1,606.80"
57909233,Learning Disabilities,Adults,Learning Disability 26 - 64,Income,Client Contribution - Supported Living,CATHEDRAL HOMES,GL1 ,16/12/2022,"4,733.71"
57909233,Learning Disabilities,Adults,Learning Disability 26 - 64,3rd Party Payments,Supported Lodgings (Childrens)/Supported Living (Adults),CATHEDRAL HOMES,GL1 ,16/12/2022,"2,176.20"
57909233,Learning Disabilities,Adults,Learning Disability 26 - 64,3rd Party Payments,Supported Lodgings (Childrens)/Supported Living (Adults),CATHEDRAL HOMES,GL1 ,16/12/2022,"3,018.60"
57909233,Learning Disabilities,Adults,Learning Disability 26 - 64,3rd Party Payments,Supported Lodgings (Childrens)/Supported Living (Adults),CATHEDRAL HOMES,GL1 ,16/12/2022,631.80
55662261,Early Years Block,DSG Skills and Attainment,Free Nursery Education Commissioning - two year olds,3rd Party Payments,Contracts - Child Care,REDACTED PERSONAL DATA,SN5 ,07/12/2022,579.60
57740233,Learning Disabilities,Adults,Learning Disability 26 - 64,3rd Party Payments,Supported Accommodation Scheme,REDACTED PERSONAL DATA,SN6 ,16/12/2022,"3,056.20"
57740233,Learning Disabilities,Adults,Learning Disability 26 - 64,3rd Party Payments,Supported Accommodation Scheme,REDACTED PERSONAL DATA,SN6 ,16/12/2022,"2,088.80"
57740233,Learning Disabilities,Adults,Learning Disability 26 - 64,3rd Party Payments,Supported Accommodation Scheme,REDACTED PERSONAL DATA,SN6 ,16/12/2022,"2,573.70"
56670233,Physical Support,Adults,Physical Support 65 and over,3rd Party Payments,Personal Budget - Domiciliary care,CELTIC CARE SERVICES LTD,SN15,07/12/2022,"2,590.56"
56672233,Physical Support,Adults,Physical Support 65 and over,3rd Party Payments,Personal Budget - Domiciliary care,CELTIC CARE SERVICES LTD,SN15,07/12/2022,"1,439.20"
56674233,Physical Support,Adults,Physical Support 65 and over,3rd Party Payments,Personal Budget - Domiciliary care,CELTIC CARE SERVICES LTD,SN15,07/12/2022,616.80
56671233,Mental Health,Adults,Mental Health 65 and over,3rd Party Payments,Personal Budget - Domiciliary care,CELTIC CARE SERVICES LTD,SN15,07/12/2022,575.68
56367233,Early Years Block,DSG Skills and Attainment,Free Nursery Education Commissioning - two year olds,3rd Party Payments,Contracts - Child Care,CENTRAL PRE-SCHOOL,SN1 ,07/12/2022,"4,049.47"
57299236,Early Years Block,DSG Skills and Attainment,Free Nursery Education Commissioning - three & four  year olds,3rd Party Payments,Contracts - Child Care,CENTRAL PRE-SCHOOL,SN1 ,14/12/2022,"2,280.00"
56366242,Early Years Block,DSG Skills and Attainment,Free Nursery Education Commissioning - three & four  year olds,3rd Party Payments,Contracts - Child Care,CENTRAL PRE-SCHOOL,SN1 ,07/12/2022,"6,810.49"
58671233,Homelessness and Travellers,Housing Services,Ukrainian Support Scheme,Supplies and Services,Discretionary Costs,CHANCELLORS GROUP OF ESTATE AGENTS LTD,RG12,21/12/2022,"1,686.34"
56686233,Streetsmart,Streetsmart,Waterside Canteen,Supplies and Services,Confectionary,CHAPPLE & JENKINS LTD,BS15,09/12/2022,679.06
58413234,Void Repairs,Supervision & Management,Void Property Repairs,3rd Party Payments,Contract Payments,CHARLES HARDING ESTATE AGENTS LIMITED,SN1 ,19/12/2022,35.00
55499233,Lydiard Park,Streetsmart,Lydiard : Hotel Operations,Supplies and Services,Materials,CHARLES SAUNDERS LTD,BS37,02/12/2022,14.98
59948233,Museums & Heritage,Culture & Heritage,Steam:Operations,Supplies and Services,Materials,CHARLES SAUNDERS LTD,BS37,30/12/2022,455.62
55499233,Lydiard Park,Streetsmart,Lydiard : Hotel Operations,Supplies and Services,Food,CHARLES SAUNDERS LTD,BS37,02/12/2022,58.16
55499233,Lydiard Park,Streetsmart,Lydiard : Hotel Operations,Supplies and Services,Food,CHARLES SAUNDERS LTD,BS37,02/12/2022,452.85
56377438,Early Years Block,DSG Skills and Attainment,Free Nursery Education Commissioning - two year olds,3rd Party Payments,Contracts - Child Care,CHEEKY CHIMPS,SN2 ,07/12/2022,"2,318.40"
57299240,Early Years Block,DSG Skills and Attainment,Free Nursery Education Commissioning - three & four  year olds,3rd Party Payments,Contracts - Child Care,CHEEKY CHIMPS,SN2 ,14/12/2022,750.00
56377437,Early Years Block,DSG Skills and Attainment,Free Nursery Education Commissioning - three & four  year olds,3rd Party Payments,Contracts - Child Care,CHEEKY CHIMPS,SN2 ,07/12/2022,"9,769.18"
57898234,Physical Support,Adults,Physical Support 65 and over,Income,Client Contribution - Nursing,CHERITON (SW CARE) LTD,GL52,16/12/2022,-678.48
57898234,Physical Support,Adults,Physical Support 65 and over,Income,Client Contribution - Residential,CHERITON (SW CARE) LTD,GL52,16/12/2022,-627.80
57898234,Physical Support,Adults,Physical Support 65 and over,3rd Party Payments,Residential Care,CHERITON (SW CARE) LTD,GL52,16/12/2022,"2,560.12"
57898234,Physical Support,Adults,Physical Support 65 and over,3rd Party Payments,Nursing Care,CHERITON (SW CARE) LTD,GL52,16/12/2022,"3,032.93"
57898234,Physical Support,Adults,Physical Support 65 and over,Income,Client Contribution - Residential,CHERITON (SW CARE) LTD,GL52,16/12/2022,-605.40
57898234,Physical Support,Adults,Physical Support 65 and over,Income,Client Contribution - Nursing,CHERITON (SW CARE) LTD,GL52,16/12/2022,"1,771.29"
57898234,Physical Support,Adults,Physical Support 65 and over,Income,Client Contribution - Residential,CHERITON (SW CARE) LTD,GL52,16/12/2022,-610.00
57898234,Physical Support,Adults,Physical Support 65 and over,3rd Party Payments,Residential Care,CHERITON (SW CARE) LTD,GL52,16/12/2022,"-8,896.93"
57898234,Physical Support,Adults,Physical Support 65 and over,3rd Party Payments,Residential Care,CHERITON (SW CARE) LTD,GL52,16/12/2022,"2,384.04"
57898234,Physical Support,Adults,Physical Support 65 and over,3rd Party Payments,Nursing Care,CHERITON (SW CARE) LTD,GL52,16/12/2022,"-7,223.20"
57898234,Physical Support,Adults,Physical Support 65 and over,Income,Client Contribution - Residential,CHERITON (SW CARE) LTD,GL52,16/12/2022,40.87
57898234,Physical Support,Adults,Physical Support 65 and over,3rd Party Payments,Residential Care,CHERITON (SW CARE) LTD,GL52,16/12/2022,"2,668.72"
57898234,Physical Support,Adults,Physical Support 65 and over,3rd Party Payments,Nursing Care,CHERITON (SW CARE) LTD,GL52,16/12/2022,"2,560.12"
57898234,Physical Support,Adults,Physical Support 65 and over,Income,Client Contribution - Nursing,CHERITON (SW CARE) LTD,GL52,16/12/2022,-627.80
57898234,Physical Support,Adults,Physical Support 65 and over,Income,Client Contribution - Nursing,CHERITON (SW CARE) LTD,GL52,16/12/2022,"-1,479.52"
57898234,Physical Support,Adults,Physical Support 18 - 64,3rd Party Payments,Residential Care,CHERITON (SW CARE) LTD,GL52,16/12/2022,"2,384.04"
57898234,Physical Support,Adults,Physical Support 65 and over,3rd Party Payments,Nursing Care,CHERITON (SW CARE) LTD,GL52,16/12/2022,"3,396.88"
57898234,Physical Support,Adults,Physical Support 65 and over,Income,Client Contribution - Nursing,CHERITON (SW CARE) LTD,GL52,16/12/2022,-925.64
57898234,Physical Support,Adults,Physical Support 65 and over,Income,Client Contribution - Residential,CHERITON (SW CARE) LTD,GL52,16/12/2022,"4,965.88"
57898234,Physical Support,Adults,Physical Support 65 and over,Income,Client Contribution - Residential,CHERITON (SW CARE) LTD,GL52,16/12/2022,-608.80
57898234,Physical Support,Adults,Physical Support 65 and over,3rd Party Payments,Nursing Care,CHERITON (SW CARE) LTD,GL52,16/12/2022,"2,384.04"
56214233,Landscaping & Open Space,Culture & Heritage & Art,GWCF - Trees for Climate,Capital,Contractor Payments,CHEVIOT TREES LTD,TD15,07/12/2022,"2,161.92"
56377475,Early Years Block,DSG Skills and Attainment,Free Nursery Education Commissioning - three & four  year olds,3rd Party Payments,Contracts - Child Care,CHILD BASE NURSERIES,MK16,07/12/2022,"11,933.21"
57326235,Responsive Repairs,Repairs,Responsive Repairs,3rd Party Payments,Contract Payments,CHILD SCAFFOLDING LTD,SN1 ,14/12/2022,440.00
57326234,Responsive Repairs,Repairs,Responsive Repairs,3rd Party Payments,Contract Payments,CHILD SCAFFOLDING LTD,SN1 ,14/12/2022,65.00
56864233,Responsive Repairs,Repairs,Responsive Repairs,3rd Party Payments,Contract Payments,CHILD SCAFFOLDING LTD,SN1 ,09/12/2022,480.00
57326234,Responsive Repairs,Repairs,Responsive Repairs,3rd Party Payments,Contract Payments,CHILD SCAFFOLDING LTD,SN1 ,14/12/2022,195.00
57326234,Responsive Repairs,Repairs,Responsive Repairs,3rd Party Payments,Contract Payments,CHILD SCAFFOLDING LTD,SN1 ,14/12/2022,130.00
56867233,Responsive Repairs,Repairs,Responsive Repairs,3rd Party Payments,Contract Payments,CHILD SCAFFOLDING LTD,SN1 ,09/12/2022,420.00
56868233,Responsive Repairs,Repairs,Responsive Repairs,3rd Party Payments,Contract Payments,CHILD SCAFFOLDING LTD,SN1 ,09/12/2022,420.00
56865233,Responsive Repairs,Repairs,Responsive Repairs,3rd Party Payments,Contract Payments,CHILD SCAFFOLDING LTD,SN1 ,09/12/2022,840.00
57326234,Responsive Repairs,Repairs,Responsive Repairs,3rd Party Payments,Contract Payments,CHILD SCAFFOLDING LTD,SN1 ,14/12/2022,260.00
57627233,Social Care,"Children, Families and Community Health Services",Looked After Children Service,3rd Party Payments,Personal Needs,CHILDREN'S CONTACT SERVICES LTD,BS9 ,16/12/2022,539.00
55031234,Social Care,"Children, Families and Community Health Services",Unaccompanied Asylum Seeking Children (UASC),3rd Party Payments,Independent Fostering Agency Placements,REDACTED PERSONAL DATA,B60 ,02/12/2022,"3,393.00"
59416233,Parking & Bus lanes,Highway Operations and Car Parking,Street Parking,Supplies and Services,Materials,CHIPSIDE LTD,SN15,23/12/2022,682.86
59416233,Parking & Bus lanes,Highway Operations and Car Parking,Street Parking,Supplies and Services,Materials,CHIPSIDE LTD,SN15,23/12/2022,489.30
58518233,Parking & Bus lanes,Highway Operations and Car Parking,Street Parking,Supplies and Services,Fees,CHIPSIDE LTD,SN15,21/12/2022,981.96
59416233,Parking & Bus lanes,Highway Operations and Car Parking,Bus Lane Enforcement,Supplies and Services,Materials,CHIPSIDE LTD,SN15,23/12/2022,"2,812.38"
59416233,Parking & Bus lanes,Highway Operations and Car Parking,Bus Lane Enforcement,Supplies and Services,Materials,CHIPSIDE LTD,SN15,23/12/2022,317.10
57562237,DSG Other Funding,DSG Skills and Attainment,DFE Additional Grants,3rd Party Payments,Payment of Pupil Premium to school,CHISELDON PRIMARY SCHOOL,SN4 ,16/12/2022,"3,679.00"
56932235,DSG Other Funding,DSG Skills and Attainment,DFE Additional Grants,Supplies and Services,Payments to Educational Bodies,CHISELDON PRIMARY SCHOOL,SN4 ,09/12/2022,"10,168.00"
56919235,DSG Other Funding,DSG Skills and Attainment,DFE Additional Grants,Supplies and Services,Payments to Educational Bodies,CHISELDON PRIMARY SCHOOL,SN4 ,09/12/2022,"1,860.00"
57582233,Schools - Primary,DSG Skills and Attainment,Primary School Budgets,3rd Party Payments,Mainstream Delegated Funding,CHISELDON PRIMARY SCHOOL,SN4 ,16/12/2022,"62,190.00"
56990241,DSG Other Funding,DSG Skills and Attainment,DFE Additional Grants,Supplies and Services,Payments to Educational Bodies,CHISELDON PRIMARY SCHOOL,SN4 ,09/12/2022,"13,316.00"
55662263,Early Years Block,DSG Skills and Attainment,Free Nursery Education Commissioning - three & four  year olds,3rd Party Payments,Contracts - Child Care,CHISELDON PRIMARY SCHOOL,SN4 ,07/12/2022,"6,802.09"
56950233,DSG Other Funding,DSG Skills and Attainment,DFE Additional Grants,Supplies and Services,Payments to Educational Bodies,CHISELDON PRIMARY SCHOOL,SN4 ,09/12/2022,658.00
57916233,Learning Disabilities,Adults,Learning Disability 65 and over,Income,Client Contribution - Residential,CHOSEN CARE LTD,GL3 ,16/12/2022,-605.80
57916233,Learning Disabilities,Adults,Learning Disability 65 and over,3rd Party Payments,Residential Care,CHOSEN CARE LTD,GL3 ,16/12/2022,"7,297.20"
57916233,Learning Disabilities,Adults,Learning Disability 26 - 64,Income,Client Contribution - Residential,CHOSEN CARE LTD,GL3 ,16/12/2022,-319.00
57916233,Learning Disabilities,Adults,Learning Disability 26 - 64,3rd Party Payments,Residential Care,CHOSEN CARE LTD,GL3 ,16/12/2022,"7,145.08"
57916233,Learning Disabilities,Adults,Learning Disability 26 - 64,3rd Party Payments,Residential Care,CHOSEN CARE LTD,GL3 ,16/12/2022,"7,137.76"
57916233,Learning Disabilities,Adults,Learning Disability 26 - 64,Income,Client Contribution - Residential,CHOSEN CARE LTD,GL3 ,16/12/2022,-359.00
57916233,Learning Disabilities,Adults,Learning Disability 26 - 64,3rd Party Payments,Residential Care,CHOSEN CARE LTD,GL3 ,16/12/2022,"11,209.16"
57479269,Care Management & Safeguarding,Adults,Mental Capacity & DOL,3rd Party Payments,Contracts - Social Care,CHRIS HORNE BIA/AMHP LIMITED,OX18,14/12/2022,518.00
59272332,Physical Support,Adults,Physical Support 18 - 64,Transfer Payments,Personal Budget - Direct Payments - Domiciliary Care,REDACTED PERSONAL DATA,SN25,23/12/2022,763.29
58425265,Social Care,"Children, Families and Community Health Services",Placement Adoption Service,3rd Party Payments,Adoption Allowances,REDACTED PERSONAL DATA,SN6 ,19/12/2022,699.84
55967235,Social Care,"Children, Families and Community Health Services",Placement Adoption Service,3rd Party Payments,Adoption Allowances,REDACTED PERSONAL DATA,SN6 ,05/12/2022,699.84
58425266,Social Care,"Children, Families and Community Health Services",Placement Adoption Service,3rd Party Payments,Adoption Allowances,REDACTED PERSONAL DATA,SN6 ,19/12/2022,"1,055.64"
55967236,Social Care,"Children, Families and Community Health Services",Placement Adoption Service,3rd Party Payments,Adoption Allowances,REDACTED PERSONAL DATA,SN6 ,05/12/2022,"1,055.64"
60029233,Social Care,"Children, Families and Community Health Services",External Placements,3rd Party Payments,Independent Fostering Agency Placements,CHRYSALISCARE LTD,DA7 ,30/12/2022,"6,377.10"
60029234,Social Care,"Children, Families and Community Health Services",External Placements,3rd Party Payments,Independent Fostering Agency Placements,CHRYSALISCARE LTD,DA7 ,30/12/2022,"5,691.30"
59807234,Planned Maintenance Programme,HRA Capital Financing,Electrics,Capital,Contractor Payments,CHUBB FIRE & SECURITY T/A CHUBB COMMUNITY CARE,BB1 ,30/12/2022,"3,958.84"
59292233,Planned Maintenance Programme,HRA Capital Financing,Electrics,Capital,Contractor Payments,CHUBB FIRE & SECURITY T/A CHUBB COMMUNITY CARE,BB1 ,23/12/2022,"4,154.77"
57931235,Physical Support,Adults,Physical Support 65 and over,3rd Party Payments,Nursing Care,CHURCH VIEW,SN3 ,16/12/2022,"2,560.12"
57931235,Physical Support,Adults,Physical Support 65 and over,3rd Party Payments,Nursing Care,CHURCH VIEW,SN3 ,16/12/2022,"2,668.72"
57931235,Physical Support,Adults,Physical Support 65 and over,Income,Client Contribution - Nursing,CHURCH VIEW,SN3 ,16/12/2022,-606.52
57931235,Physical Support,Adults,Physical Support 65 and over,3rd Party Payments,Nursing Care,CHURCH VIEW,SN3 ,16/12/2022,"-3,931.61"
57931235,Physical Support,Adults,Physical Support 65 and over,3rd Party Payments,Nursing Care,CHURCH VIEW,SN3 ,16/12/2022,"5,235.68"
57931235,Physical Support,Adults,Physical Support 65 and over,Income,Client Contribution - Nursing,CHURCH VIEW,SN3 ,16/12/2022,-999.64
57931235,Physical Support,Adults,Physical Support 65 and over,Income,Client Contribution - Nursing,CHURCH VIEW,SN3 ,16/12/2022,-610.00
57931235,Physical Support,Adults,Physical Support 65 and over,Income,Client Contribution - Nursing,CHURCH VIEW,SN3 ,16/12/2022,-930.44
57931235,Mental Health,Adults,Mental Health 65 and over,3rd Party Payments,Nursing Care,CHURCH VIEW,SN3 ,16/12/2022,"-15,178.57"
57931235,Physical Support,Adults,Physical Support 65 and over,3rd Party Payments,Nursing Care,CHURCH VIEW,SN3 ,16/12/2022,"4,670.26"
57931235,Physical Support,Adults,Physical Support 65 and over,3rd Party Payments,Nursing Care,CHURCH VIEW,SN3 ,16/12/2022,"3,396.88"
57931235,Physical Support,Adults,Physical Support 65 and over,Income,Client Contribution - Nursing,CHURCH VIEW,SN3 ,16/12/2022,"1,200.83"
57931235,Physical Support,Adults,Physical Support 65 and over,Income,Client Contribution - Nursing,CHURCH VIEW,SN3 ,16/12/2022,-984.92
57931235,Physical Support,Adults,Physical Support 18 - 64,Income,Client Contribution - Nursing,CHURCH VIEW,SN3 ,16/12/2022,"1,613.71"
57931235,Physical Support,Adults,Physical Support 65 and over,3rd Party Payments,Nursing Care,CHURCH VIEW,SN3 ,16/12/2022,"-7,338.98"
57931235,Physical Support,Adults,Physical Support 65 and over,Income,Client Contribution - Nursing,CHURCH VIEW,SN3 ,16/12/2022,35.32
57931235,Physical Support,Adults,Physical Support 65 and over,Income,Client Contribution - Nursing,CHURCH VIEW,SN3 ,16/12/2022,128.75
57931235,Physical Support,Adults,Physical Support 65 and over,Income,Client Contribution - Nursing,CHURCH VIEW,SN3 ,16/12/2022,-979.88
57931235,Physical Support,Adults,Physical Support 65 and over,Income,Client Contribution - Nursing,CHURCH VIEW,SN3 ,16/12/2022,-741.88
57931235,Physical Support,Adults,Physical Support 65 and over,Income,Client Contribution - Nursing,CHURCH VIEW,SN3 ,16/12/2022,"-1,231.15"
57931235,Physical Support,Adults,Physical Support 18 - 64,3rd Party Payments,Nursing Care,CHURCH VIEW,SN3 ,16/12/2022,"-4,670.26"
57931235,Physical Support,Adults,Physical Support 18 - 64,Income,Client Contribution - Nursing,CHURCH VIEW,SN3 ,16/12/2022,"-2,535.83"
57931235,Physical Support,Adults,Physical Support 65 and over,3rd Party Payments,Nursing Care,CHURCH VIEW,SN3 ,16/12/2022,"-4,557.14"
57931235,Physical Support,Adults,Physical Support 65 and over,3rd Party Payments,Nursing Care,CHURCH VIEW,SN3 ,16/12/2022,"-3,108.72"
57931235,Physical Support,Adults,Physical Support 65 and over,3rd Party Payments,Nursing Care,CHURCH VIEW,SN3 ,16/12/2022,-121.32
57931235,Physical Support,Adults,Physical Support 65 and over,3rd Party Payments,Nursing Care,CHURCH VIEW,SN3 ,16/12/2022,-91.43
57931235,Physical Support,Adults,Physical Support 65 and over,3rd Party Payments,Nursing Care,CHURCH VIEW,SN3 ,16/12/2022,"3,200.15"
57931235,Physical Support,Adults,Physical Support 65 and over,3rd Party Payments,Nursing Care,CHURCH VIEW,SN3 ,16/12/2022,"4,003.47"
57931235,Physical Support,Adults,Physical Support 65 and over,Income,Client Contribution - Nursing,CHURCH VIEW,SN3 ,16/12/2022,-477.36
57931235,Physical Support,Adults,Physical Support 18 - 64,3rd Party Payments,Nursing Care,CHURCH VIEW,SN3 ,16/12/2022,"14,677.96"
57931235,Physical Support,Adults,Physical Support 65 and over,3rd Party Payments,Nursing Care,CHURCH VIEW,SN3 ,16/12/2022,"-12,617.73"
57931235,Physical Support,Adults,Physical Support 65 and over,3rd Party Payments,Nursing Care,CHURCH VIEW,SN3 ,16/12/2022,"3,505.48"
57931235,Physical Support,Adults,Physical Support 65 and over,Income,Client Contribution - Nursing,CHURCH VIEW,SN3 ,16/12/2022,"2,768.09"
57931235,Physical Support,Adults,Physical Support 65 and over,Income,Client Contribution - Nursing,CHURCH VIEW,SN3 ,16/12/2022,-763.24
57931235,Physical Support,Adults,Physical Support 65 and over,Income,Client Contribution - Nursing,CHURCH VIEW,SN3 ,16/12/2022,-668.44
57931235,Physical Support,Adults,Physical Support 65 and over,Income,Client Contribution - Nursing,CHURCH VIEW,SN3 ,16/12/2022,-620.28
57931235,Physical Support,Adults,Physical Support 65 and over,Income,Client Contribution - Nursing,CHURCH VIEW,SN3 ,16/12/2022,-535.88
57931235,Mental Health,Adults,Mental Health 65 and over,Income,Client Contribution - Nursing,CHURCH VIEW,SN3 ,16/12/2022,"1,905.82"
57931235,Physical Support,Adults,Physical Support 18 - 64,Income,Client Contribution - Nursing,CHURCH VIEW,SN3 ,16/12/2022,-966.91
57931235,Physical Support,Adults,Physical Support 65 and over,3rd Party Payments,Nursing Care,CHURCH VIEW,SN3 ,16/12/2022,"4,200.00"
57931235,Physical Support,Adults,Physical Support 65 and over,Income,Client Contribution - Nursing,CHURCH VIEW,SN3 ,16/12/2022,"-1,288.96"
57931235,Physical Support,Adults,Physical Support 65 and over,Income,Client Contribution - Nursing,CHURCH VIEW,SN3 ,16/12/2022,-833.52
57931235,Mental Health,Adults,Mental Health 65 and over,3rd Party Payments,Nursing Care,CHURCH VIEW,SN3 ,16/12/2022,"15,178.57"
57931235,Physical Support,Adults,Physical Support 18 - 64,3rd Party Payments,Nursing Care,CHURCH VIEW,SN3 ,16/12/2022,"2,668.72"
57931235,Physical Support,Adults,Physical Support 18 - 64,Income,Client Contribution - Nursing,CHURCH VIEW,SN3 ,16/12/2022,-552.52
57942235,Learning Disabilities,Adults,Learning Disability 26 - 64,Income,Client Contribution - Residential,CIDERSTONE HOUSE,SN25,16/12/2022,-677.60
57942235,Learning Disabilities,Adults,Learning Disability 26 - 64,Income,Client Contribution - Residential,CIDERSTONE HOUSE,SN25,16/12/2022,-438.80
57942235,Learning Disabilities,Adults,Learning Disability 26 - 64,3rd Party Payments,Residential Care,CIDERSTONE HOUSE,SN25,16/12/2022,"10,495.76"
57942235,Learning Disabilities,Adults,Learning Disability 26 - 64,Income,Client Contribution - Residential,CIDERSTONE HOUSE,SN25,16/12/2022,-414.20
57942235,Learning Disabilities,Adults,Learning Disability 26 - 64,3rd Party Payments,Residential Care,CIDERSTONE HOUSE,SN25,16/12/2022,"11,049.40"
57942235,Learning Disabilities,Adults,Learning Disability 26 - 64,3rd Party Payments,Residential Care,CIDERSTONE HOUSE,SN25,16/12/2022,"9,703.96"
57942235,Learning Disabilities,Adults,Learning Disability 26 - 64,3rd Party Payments,Residential Care,CIDERSTONE HOUSE,SN25,16/12/2022,"10,018.48"
57942235,Learning Disabilities,Adults,Learning Disability 26 - 64,Income,Client Contribution - Residential,CIDERSTONE HOUSE,SN25,16/12/2022,-425.60
57942235,Learning Disabilities,Adults,Learning Disability 26 - 64,3rd Party Payments,Residential Care,CIDERSTONE HOUSE,SN25,16/12/2022,"9,895.88"
57942235,Learning Disabilities,Adults,Learning Disability 26 - 64,Income,Client Contribution - Residential,CIDERSTONE HOUSE,SN25,16/12/2022,-423.00
54628245,High Needs Block,DSG Skills and Attainment,Post 16 - New Responsibilties,3rd Party Payments,FE Colleges,CIRENCESTER COLLEGE,GL7 ,14/12/2022,"3,213.42"
54628241,High Needs Block,DSG Skills and Attainment,Out of Borough School Fees,3rd Party Payments,Other Local Authority Mainstream Schools- Pre 16,CIRENCESTER KINGSHILL SCHOOL,GL7 ,14/12/2022,582.00
54628240,High Needs Block,DSG Skills and Attainment,Out of Borough School Fees,3rd Party Payments,Other Local Authority Mainstream Schools- Pre 16,CIRENCESTER KINGSHILL SCHOOL,GL7 ,14/12/2022,582.00
57512235,Homelessness and Travellers,Housing Services,Leased Private Managed Accommodation,Transfer Payments,Payment of Costs,REDACTED PERSONAL DATA,SN5 ,21/12/2022,575.00
56611233,Public Protection,Public Health,Healthy Neighbourhoods,Supplies and Services,Equipment,CIRRUS RESEARCH PLC,YO14,07/12/2022,"1,640.00"
56216233,Elections & Democracy,Elections and Democracy,Register of Electors,Supplies and Services,Post,CIVICA ELECTION SERVICES LIMITED,N8 0,07/12/2022,"1,242.00"
56216233,Elections & Democracy,Elections and Democracy,Register of Electors,Supplies and Services,Materials,CIVICA ELECTION SERVICES LIMITED,N8 0,07/12/2022,"1,798.08"
56695233,Planning & Regulatory,Strategic Planning,Economy & Development Management,Employees,Temporary / Agency - by Accounts Payable,REDACTED PERSONAL DATA,BS37,09/12/2022,"9,715.20"
55662266,Early Years Block,DSG Skills and Attainment,Free Nursery Education Commissioning - three & four  year olds,3rd Party Payments,Contracts - Child Care,REDACTED PERSONAL DATA,SN2 ,07/12/2022,682.67
58096233,Care Management & Safeguarding,Adults,Swindon Safeguarding Partnershiph,Supplies and Services,Fees,CLARK WARD ASSOCIATES LTD,SN1 ,19/12/2022,580.00
57731233,NEV,"Economy, Growth and Place",Southern Connector Road,Capital,Professional Fees,CLARKE WILLMOTT LLP,BS1 ,16/12/2022,"2,151.00"
57615233,Education,"Education, Inclusion and Skills",Education Standards and Quality,Supplies and Services,Fees,CLARKE WILLMOTT LLP,BS1 ,16/12/2022,"5,197.50"
57168233,Highways Schemes,Strategic Planning and Highways,"Rapid Transit - QBC Wichelstowe, North and UTMC",Capital,Contractor Payments,CLEAR CHANNEL UK LTD,GU22,12/12/2022,"2,379.76"
56367238,Early Years Block,DSG Skills and Attainment,Free Nursery Education Commissioning - three & four  year olds,3rd Party Payments,Contracts - Child Care,CLIFTON ST PRE-SCHOOL,SN1 ,07/12/2022,"4,144.62"
57927234,Physical Support,Adults,Physical Support 65 and over,Income,Client Contribution - Residential,COATE WATER CARE CO LTD,SN3 ,16/12/2022,-732.00
57927234,Physical Support,Adults,Physical Support 65 and over,3rd Party Payments,Residential Care,COATE WATER CARE CO LTD,SN3 ,16/12/2022,"2,668.72"
57927234,Mental Health,Adults,Mental Health 65 and over,Income,Client Contribution - Residential,COATE WATER CARE CO LTD,SN3 ,16/12/2022,-627.80
57927234,Physical Support,Adults,Physical Support 65 and over,Income,Client Contribution - Residential,COATE WATER CARE CO LTD,SN3 ,16/12/2022,-954.00
57927234,Physical Support,Adults,Physical Support 65 and over,Income,Client Contribution - Residential,COATE WATER CARE CO LTD,SN3 ,16/12/2022,-713.24
57927234,Physical Support,Adults,Physical Support 65 and over,Income,Client Contribution - Residential,COATE WATER CARE CO LTD,SN3 ,16/12/2022,-506.20
57927234,Physical Support,Adults,Physical Support 65 and over,Income,Client Contribution - Residential,COATE WATER CARE CO LTD,SN3 ,16/12/2022,-955.48
57927234,Physical Support,Adults,Physical Support 65 and over,3rd Party Payments,Residential Care,COATE WATER CARE CO LTD,SN3 ,16/12/2022,"3,328.00"
57927234,Physical Support,Adults,Physical Support 18 - 64,Income,Client Contribution - Residential,COATE WATER CARE CO LTD,SN3 ,16/12/2022,-359.00
57927234,Physical Support,Adults,Physical Support 65 and over,3rd Party Payments,Residential Care,COATE WATER CARE CO LTD,SN3 ,16/12/2022,"3,474.45"
57927234,Physical Support,Adults,Physical Support 18 - 64,3rd Party Payments,Residential Care,COATE WATER CARE CO LTD,SN3 ,16/12/2022,"2,560.12"
57927234,Physical Support,Adults,Physical Support 65 and over,3rd Party Payments,Residential Care,COATE WATER CARE CO LTD,SN3 ,16/12/2022,"3,918.54"
57927234,Mental Health,Adults,Mental Health 65 and over,3rd Party Payments,Residential Care,COATE WATER CARE CO LTD,SN3 ,16/12/2022,503.71
57927234,Mental Health,Adults,Mental Health 65 and over,3rd Party Payments,Residential Care,COATE WATER CARE CO LTD,SN3 ,16/12/2022,344.00
57927234,Care Management & Safeguarding,Adults,Community Response Hub,3rd Party Payments,Residential Care,COATE WATER CARE CO LTD,SN3 ,16/12/2022,"2,560.12"
57927234,Physical Support,Adults,Physical Support 65 and over,Income,Client Contribution - Residential,COATE WATER CARE CO LTD,SN3 ,16/12/2022,-510.92
57927234,Physical Support,Adults,Physical Support 65 and over,Income,Client Contribution - Residential,COATE WATER CARE CO LTD,SN3 ,16/12/2022,-559.40
57927234,Physical Support,Adults,Physical Support 65 and over,3rd Party Payments,Residential Care,COATE WATER CARE CO LTD,SN3 ,16/12/2022,"-3,474.45"
57927234,Mental Health,Adults,Mental Health 65 and over,3rd Party Payments,Residential Care,COATE WATER CARE CO LTD,SN3 ,16/12/2022,"2,560.12"
57927234,Mental Health,Adults,Mental Health 65 and over,3rd Party Payments,Residential Care,COATE WATER CARE CO LTD,SN3 ,16/12/2022,"2,800.00"
57927234,Physical Support,Adults,Physical Support 65 and over,Income,Client Contribution - Residential,COATE WATER CARE CO LTD,SN3 ,16/12/2022,-597.40
57927234,Physical Support,Adults,Physical Support 65 and over,Income,Client Contribution - Residential,COATE WATER CARE CO LTD,SN3 ,16/12/2022,-539.40
57927234,Physical Support,Adults,Physical Support 65 and over,3rd Party Payments,Residential Care,COATE WATER CARE CO LTD,SN3 ,16/12/2022,"2,560.12"
57927234,Physical Support,Adults,Physical Support 65 and over,3rd Party Payments,Residential Care,COATE WATER CARE CO LTD,SN3 ,16/12/2022,"3,657.31"
57927234,Physical Support,Adults,Physical Support 65 and over,3rd Party Payments,Residential Care,COATE WATER CARE CO LTD,SN3 ,16/12/2022,"3,840.18"
57927234,Physical Support,Adults,Physical Support 65 and over,Income,Client Contribution - Residential,COATE WATER CARE CO LTD,SN3 ,16/12/2022,"-1,434.76"
57927234,Physical Support,Adults,Physical Support 65 and over,Income,Client Contribution - Residential,COATE WATER CARE CO LTD,SN3 ,16/12/2022,-727.20
57927234,Physical Support,Adults,Physical Support 65 and over,Income,Client Contribution - Residential,COATE WATER CARE CO LTD,SN3 ,16/12/2022,-630.56
57907238,Learning Disabilities,Adults,Learning Disability 26 - 64,3rd Party Payments,Residential Care,COCKLEBURY FARMHOUSE,SN15,16/12/2022,"8,288.00"
57907238,Learning Disabilities,Adults,Learning Disability 26 - 64,Income,Client Contribution - Residential,COCKLEBURY FARMHOUSE,SN15,16/12/2022,-425.60
57750233,Town Centre,"Economy, Growth and Place",Fleming Way Improvement Scheme,Capital,Contractor Payments,COLAS LTD,B37 ,16/12/2022,"311,354.01"
56367241,Early Years Block,DSG Skills and Attainment,Free Nursery Education Commissioning - three & four  year olds,3rd Party Payments,Contracts - Child Care,COLEVIEW PRE-SCHOOL,SN3 ,07/12/2022,"7,374.74"
56068233,Disabled Children,"Children, Families and Community Health Services",DCT Daytime Short Breaks,3rd Party Payments,Respite Care,COLLABORATIVE CARE SERVICES LTD,SN2 ,05/12/2022,"58,476.00"
56067233,Disabled Children,"Children, Families and Community Health Services",DCT Daytime Short Breaks,3rd Party Payments,Respite Care,COLLABORATIVE CARE SERVICES LTD,SN2 ,05/12/2022,"21,888.00"
56368235,Early Years Block,DSG Skills and Attainment,Free Nursery Education Commissioning - three & four  year olds,3rd Party Payments,Contracts - Child Care,COLOURFUL TIME DAY NURSERY LTD,SN5 ,07/12/2022,"9,893.03"
56368236,Early Years Block,DSG Skills and Attainment,Free Nursery Education Commissioning - two year olds,3rd Party Payments,Contracts - Child Care,COLOURFUL TIME DAY NURSERY LTD,SN5 ,07/12/2022,"1,821.60"
57906236,Learning Disabilities,Adults,Learning Disability 26 - 64,3rd Party Payments,Residential Care,COMMUNITY ACCESS NETWORK LTD,SN25,16/12/2022,"4,820.08"
57906237,Learning Disabilities,Adults,Learning Disability 26 - 64,Income,Client Contribution - Supported Living,COMMUNITY ACCESS NETWORK LTD,SN25,16/12/2022,15.30
57906237,Learning Disabilities,Adults,Learning Disability 26 - 64,Income,Client Contribution - Supported Living,COMMUNITY ACCESS NETWORK LTD,SN25,16/12/2022,178.50
57906237,Learning Disabilities,Adults,Learning Disability 26 - 64,3rd Party Payments,Supported Lodgings (Childrens)/Supported Living (Adults),COMMUNITY ACCESS NETWORK LTD,SN25,16/12/2022,500.36
57906237,Learning Disabilities,Adults,Learning Disability 26 - 64,3rd Party Payments,Supported Lodgings (Childrens)/Supported Living (Adults),COMMUNITY ACCESS NETWORK LTD,SN25,16/12/2022,"-1,534.58"
57906237,Learning Disabilities,Adults,Learning Disability 26 - 64,3rd Party Payments,Supported Lodgings (Childrens)/Supported Living (Adults),COMMUNITY ACCESS NETWORK LTD,SN25,16/12/2022,-568.32
57906237,Learning Disabilities,Adults,Learning Disability 26 - 64,Income,Client Contribution - Supported Living,COMMUNITY ACCESS NETWORK LTD,SN25,16/12/2022,-35.70
57906237,Learning Disabilities,Adults,Learning Disability 26 - 64,3rd Party Payments,Supported Lodgings (Childrens)/Supported Living (Adults),COMMUNITY ACCESS NETWORK LTD,SN25,16/12/2022,"1,388.75"
57906236,Learning Disabilities,Adults,Learning Disability 26 - 64,Income,Client Contribution - Residential,COMMUNITY ACCESS NETWORK LTD,SN25,16/12/2022,-293.60
57906237,Learning Disabilities,Adults,Learning Disability 26 - 64,Income,Client Contribution - Supported Living,COMMUNITY ACCESS NETWORK LTD,SN25,16/12/2022,-142.80
57906237,Learning Disabilities,Adults,Learning Disability 26 - 64,3rd Party Payments,Supported Lodgings (Childrens)/Supported Living (Adults),COMMUNITY ACCESS NETWORK LTD,SN25,16/12/2022,28.21
57906237,Learning Disabilities,Adults,Learning Disability 26 - 64,3rd Party Payments,Supported Lodgings (Childrens)/Supported Living (Adults),COMMUNITY ACCESS NETWORK LTD,SN25,16/12/2022,24.68
57906237,Learning Disabilities,Adults,Learning Disability 26 - 64,Income,Client Contribution - Supported Living,COMMUNITY ACCESS NETWORK LTD,SN25,16/12/2022,20.40
57906237,Learning Disabilities,Adults,Learning Disability 26 - 64,3rd Party Payments,Supported Lodgings (Childrens)/Supported Living (Adults),COMMUNITY ACCESS NETWORK LTD,SN25,16/12/2022,24.00
57906237,Learning Disabilities,Adults,Learning Disability 26 - 64,3rd Party Payments,Supported Lodgings (Childrens)/Supported Living (Adults),COMMUNITY ACCESS NETWORK LTD,SN25,16/12/2022,"-1,342.76"
57906237,Learning Disabilities,Adults,Learning Disability 26 - 64,3rd Party Payments,Supported Lodgings (Childrens)/Supported Living (Adults),COMMUNITY ACCESS NETWORK LTD,SN25,16/12/2022,27.43
57906237,Learning Disabilities,Adults,Learning Disability 26 - 64,3rd Party Payments,Supported Lodgings (Childrens)/Supported Living (Adults),COMMUNITY ACCESS NETWORK LTD,SN25,16/12/2022,"-4,209.23"
57906237,Learning Disabilities,Adults,Learning Disability 26 - 64,3rd Party Payments,Supported Lodgings (Childrens)/Supported Living (Adults),COMMUNITY ACCESS NETWORK LTD,SN25,16/12/2022,"4,207.13"
57906237,Learning Disabilities,Adults,Learning Disability 26 - 64,3rd Party Payments,Supported Lodgings (Childrens)/Supported Living (Adults),COMMUNITY ACCESS NETWORK LTD,SN25,16/12/2022,-191.82
57906237,Learning Disabilities,Adults,Learning Disability 26 - 64,3rd Party Payments,Supported Lodgings (Childrens)/Supported Living (Adults),COMMUNITY ACCESS NETWORK LTD,SN25,16/12/2022,"-1,380.21"
57906237,Learning Disabilities,Adults,Learning Disability 26 - 64,3rd Party Payments,Supported Lodgings (Childrens)/Supported Living (Adults),COMMUNITY ACCESS NETWORK LTD,SN25,16/12/2022,"1,534.58"
57906237,Learning Disabilities,Adults,Learning Disability 26 - 64,3rd Party Payments,Supported Lodgings (Childrens)/Supported Living (Adults),COMMUNITY ACCESS NETWORK LTD,SN25,16/12/2022,"1,342.76"
57906237,Learning Disabilities,Adults,Learning Disability 26 - 64,3rd Party Payments,Supported Lodgings (Childrens)/Supported Living (Adults),COMMUNITY ACCESS NETWORK LTD,SN25,16/12/2022,"3,681.24"
57906236,Learning Disabilities,Adults,Learning Disability 65 and over,Income,Client Contribution - Residential,COMMUNITY ACCESS NETWORK LTD,SN25,16/12/2022,206.50
57906237,Learning Disabilities,Adults,Learning Disability 26 - 64,3rd Party Payments,Supported Lodgings (Childrens)/Supported Living (Adults),COMMUNITY ACCESS NETWORK LTD,SN25,16/12/2022,-27.43
57906237,Learning Disabilities,Adults,Learning Disability 26 - 64,3rd Party Payments,Supported Lodgings (Childrens)/Supported Living (Adults),COMMUNITY ACCESS NETWORK LTD,SN25,16/12/2022,571.84
57906237,Learning Disabilities,Adults,Learning Disability 26 - 64,3rd Party Payments,Supported Lodgings (Childrens)/Supported Living (Adults),COMMUNITY ACCESS NETWORK LTD,SN25,16/12/2022,"1,215.16"
57906236,Learning Disabilities,Adults,Learning Disability 65 and over,3rd Party Payments,Residential Care,COMMUNITY ACCESS NETWORK LTD,SN25,16/12/2022,"-1,720.39"
59172233,Social Care,"Children, Families and Community Health Services",External Placements,3rd Party Payments,Independent Fostering Agency Placements,COMMUNITY FOSTER CARE,GL1 ,23/12/2022,"3,927.30"
59171233,Social Care,"Children, Families and Community Health Services",External Placements,3rd Party Payments,Independent Fostering Agency Placements,COMMUNITY FOSTER CARE,GL1 ,23/12/2022,"3,825.90"
59173233,Social Care,"Children, Families and Community Health Services",External Placements,3rd Party Payments,Independent Fostering Agency Placements,COMMUNITY FOSTER CARE,GL1 ,23/12/2022,"4,974.00"
57928233,Learning Disabilities,Adults,Learning Disability 26 - 64,3rd Party Payments,Residential Care,COMMUNITY THERAPEUTIC SERVICES LTD,BS22,16/12/2022,"11,398.08"
57349234,Human Resources and Organisational Development,"People, Culture and Organisational Resilience",Pay & Reward,Employees,Temporary / Agency - by Accounts Payable,COMPAWISE LIMITED,WA14,14/12/2022,"3,000.00"
56628233,Human Resources and Organisational Development,"People, Culture and Organisational Resilience",Pay & Reward,Employees,Temporary / Agency - by Accounts Payable,COMPAWISE LIMITED,WA14,07/12/2022,"3,000.00"
58068233,Human Resources and Organisational Development,"People, Culture and Organisational Resilience",Pay & Reward,Employees,Temporary / Agency - by Accounts Payable,COMPAWISE LIMITED,WA14,19/12/2022,"3,000.00"
58790233,Highways Schemes,Strategic Planning and Highways,Key Routes East,Capital,Contractor Payments,CONNOR CONSTRUCTION (SOUTH WEST) LTD,BA11,21/12/2022,797.15
58790233,Highways Schemes,Strategic Planning and Highways,Key Routes East,Capital,Contractor Payments,CONNOR CONSTRUCTION (SOUTH WEST) LTD,BA11,21/12/2022,"1,421.42"
58790233,Local Transport Plan Funded,Strategic Planning and Highways,Minor Road Maintenance,Capital,Contractor Payments,CONNOR CONSTRUCTION (SOUTH WEST) LTD,BA11,21/12/2022,883.14
58790233,Local Transport Plan Funded,Strategic Planning and Highways,Minor Road Maintenance,Capital,Contractor Payments,CONNOR CONSTRUCTION (SOUTH WEST) LTD,BA11,21/12/2022,639.08
58790233,Local Transport Plan Funded,Strategic Planning and Highways,Minor Road Maintenance,Capital,Contractor Payments,CONNOR CONSTRUCTION (SOUTH WEST) LTD,BA11,21/12/2022,596.53
58790233,Local Transport Plan Funded,Strategic Planning and Highways,Minor Road Maintenance,Capital,Contractor Payments,CONNOR CONSTRUCTION (SOUTH WEST) LTD,BA11,21/12/2022,956.89
58790233,Local Transport Plan Funded,Strategic Planning and Highways,Minor Road Maintenance,Capital,Contractor Payments,CONNOR CONSTRUCTION (SOUTH WEST) LTD,BA11,21/12/2022,"1,702.56"
58790233,Highways Schemes,Strategic Planning and Highways,Key Routes East,Capital,Contractor Payments,CONNOR CONSTRUCTION (SOUTH WEST) LTD,BA11,21/12/2022,379.00
58790233,Highways Schemes,Strategic Planning and Highways,Key Routes East,Capital,Contractor Payments,CONNOR CONSTRUCTION (SOUTH WEST) LTD,BA11,21/12/2022,"2,382.71"
58790233,Local Transport Plan Funded,Strategic Planning and Highways,Minor Road Maintenance,Capital,Contractor Payments,CONNOR CONSTRUCTION (SOUTH WEST) LTD,BA11,21/12/2022,697.96
58790233,Local Transport Plan Funded,Strategic Planning and Highways,Minor Road Maintenance,Capital,Contractor Payments,CONNOR CONSTRUCTION (SOUTH WEST) LTD,BA11,21/12/2022,814.93
58790233,Local Transport Plan Funded,Strategic Planning and Highways,Minor Road Maintenance,Capital,Contractor Payments,CONNOR CONSTRUCTION (SOUTH WEST) LTD,BA11,21/12/2022,518.92
58790233,Highways Schemes,Strategic Planning and Highways,Key Routes East,Capital,Contractor Payments,CONNOR CONSTRUCTION (SOUTH WEST) LTD,BA11,21/12/2022,972.16
58790233,Highways Schemes,Strategic Planning and Highways,Key Routes East,Capital,Contractor Payments,CONNOR CONSTRUCTION (SOUTH WEST) LTD,BA11,21/12/2022,"1,197.89"
58790233,Highways Schemes,Strategic Planning and Highways,Key Routes East,Capital,Contractor Payments,CONNOR CONSTRUCTION (SOUTH WEST) LTD,BA11,21/12/2022,"6,099.38"
58790233,Local Transport Plan Funded,Strategic Planning and Highways,Minor Road Maintenance,Capital,Contractor Payments,CONNOR CONSTRUCTION (SOUTH WEST) LTD,BA11,21/12/2022,"2,201.26"
58790233,Local Transport Plan Funded,Strategic Planning and Highways,Minor Road Maintenance,Capital,Contractor Payments,CONNOR CONSTRUCTION (SOUTH WEST) LTD,BA11,21/12/2022,197.83
58790233,Highways Schemes,Strategic Planning and Highways,Key Routes East,Capital,Contractor Payments,CONNOR CONSTRUCTION (SOUTH WEST) LTD,BA11,21/12/2022,660.00
58790233,Local Transport Plan Funded,Strategic Planning and Highways,Minor Road Maintenance,Capital,Contractor Payments,CONNOR CONSTRUCTION (SOUTH WEST) LTD,BA11,21/12/2022,529.75
58790233,Local Transport Plan Funded,Strategic Planning and Highways,Minor Road Maintenance,Capital,Contractor Payments,CONNOR CONSTRUCTION (SOUTH WEST) LTD,BA11,21/12/2022,"1,269.60"
58790233,Local Transport Plan Funded,Strategic Planning and Highways,Highway Maintenance,Capital,Contractor Payments,CONNOR CONSTRUCTION (SOUTH WEST) LTD,BA11,21/12/2022,"1,325.10"
59259233,Learning Disabilities,Adults,Learning Disability 26 - 64,Transfer Payments,Personal Budget - Direct Payments - Domiciliary Care,REDACTED PERSONAL DATA,GL2 ,23/12/2022,"4,199.53"
59297233,Property Management,Property,Corporate Repairs & Maintenance Programme,Premises Costs,Maintenance - Buildings,COOLINK LTD,SN11,23/12/2022,392.00
59297233,Property Management,Property,Corporate Repairs & Maintenance Programme,Premises Costs,Maintenance - Buildings,COOLINK LTD,SN11,23/12/2022,"4,529.00"
59296233,Other Repairs,Repairs,Unallocated job costs from OPEN system,Premises Costs,Maintenance - Buildings,COOLINK LTD,SN11,23/12/2022,548.48
55913233,Social Care,"Children, Families and Community Health Services",Placement Adoption Service,3rd Party Payments,Adoption Allowances,REDACTED PERSONAL DATA,BA15,05/12/2022,860.00
58375235,Social Care,"Children, Families and Community Health Services",Placement Adoption Service,3rd Party Payments,Adoption Allowances,REDACTED PERSONAL DATA,BA15,19/12/2022,860.00
57919233,Learning Disabilities,Adults,Learning Disability 26 - 64,3rd Party Payments,Residential Care,CORNERSTONES UK LTD,SN9 ,16/12/2022,"4,178.84"
57919233,Learning Disabilities,Adults,Learning Disability 26 - 64,3rd Party Payments,Residential Care,CORNERSTONES UK LTD,SN9 ,16/12/2022,"5,322.56"
57919233,Learning Disabilities,Adults,Learning Disability 26 - 64,3rd Party Payments,Residential Care,CORNERSTONES UK LTD,SN9 ,16/12/2022,"6,922.20"
57919233,Learning Disabilities,Adults,Learning Disability 26 - 64,3rd Party Payments,Residential Care,CORNERSTONES UK LTD,SN9 ,16/12/2022,"6,120.57"
57919233,Learning Disabilities,Adults,Learning Disability 26 - 64,Income,Client Contribution - Residential,CORNERSTONES UK LTD,SN9 ,16/12/2022,-487.80
57919233,Learning Disabilities,Adults,Learning Disability 26 - 64,Income,Client Contribution - Residential,CORNERSTONES UK LTD,SN9 ,16/12/2022,-381.00
57919233,Learning Disabilities,Adults,Learning Disability 26 - 64,3rd Party Payments,Residential Care,CORNERSTONES UK LTD,SN9 ,16/12/2022,"-13,698.42"
57919233,Learning Disabilities,Adults,Learning Disability 26 - 64,Income,Client Contribution - Residential,CORNERSTONES UK LTD,SN9 ,16/12/2022,-365.85
57919233,Learning Disabilities,Adults,Learning Disability 26 - 64,Income,Client Contribution - Residential,CORNERSTONES UK LTD,SN9 ,16/12/2022,605.96
57919233,Learning Disabilities,Adults,Learning Disability 26 - 64,3rd Party Payments,Residential Care,CORNERSTONES UK LTD,SN9 ,16/12/2022,"7,986.12"
57919233,Learning Disabilities,Adults,Learning Disability 26 - 64,Income,Client Contribution - Residential,CORNERSTONES UK LTD,SN9 ,16/12/2022,-414.20
57919233,Learning Disabilities,Adults,Learning Disability 26 - 64,Income,Client Contribution - Residential,CORNERSTONES UK LTD,SN9 ,16/12/2022,-423.00
57919233,Learning Disabilities,Adults,Learning Disability 26 - 64,3rd Party Payments,Residential Care,CORNERSTONES UK LTD,SN9 ,16/12/2022,"8,160.76"
57919233,Learning Disabilities,Adults,Learning Disability 26 - 64,3rd Party Payments,Residential Care,CORNERSTONES UK LTD,SN9 ,16/12/2022,"6,251.16"
56818233,High Needs Block,DSG Skills and Attainment,Out of Borough School Fees,3rd Party Payments,Independent Special School- Pre 16,COTSWOLD CHINE SCHOOL,GL5 ,09/12/2022,"27,553.76"
56819233,High Needs Block,DSG Skills and Attainment,Out of Borough School Fees,3rd Party Payments,Independent Special School- Pre 16,COTSWOLD CHINE SCHOOL,GL5 ,09/12/2022,"27,553.76"
58233233,Streetsmart,Streetsmart,Waterside Fleet Hires,Transport Costs,Vehicle Hire / Contract,COTSWOLD RECYCLING COMPANY LTD,GL12,19/12/2022,"2,375.00"
59272492,Learning Disabilities,Adults,Learning Disability 26 - 64,Transfer Payments,Personal Budget - Direct Payments - Domiciliary Care,REDACTED PERSONAL DATA,SP11,23/12/2022,"1,604.83"
59825233,Streetsmart,Streetsmart,Waste - Processing,Supplies and Services,Repairs & Maintenance,COVEYA LTD,BS30,30/12/2022,"1,146.60"
59824233,Streetsmart,Streetsmart,Waste - Processing,Supplies and Services,Repairs & Maintenance,COVEYA LTD,BS30,30/12/2022,"1,201.20"
56370234,Early Years Block,DSG Skills and Attainment,Free Nursery Education Commissioning - two year olds,3rd Party Payments,Contracts - Child Care,COVINGHAM KINGFISHER PRE-SCHOOL,SN3 ,07/12/2022,"8,222.04"
56370233,Early Years Block,DSG Skills and Attainment,Free Nursery Education Commissioning - three & four  year olds,3rd Party Payments,Contracts - Child Care,COVINGHAM KINGFISHER PRE-SCHOOL,SN3 ,07/12/2022,"11,523.82"
56368239,Early Years Block,DSG Skills and Attainment,Free Nursery Education Commissioning - three & four  year olds,3rd Party Payments,Contracts - Child Care,COVINGHAM KINGFISHER PRE-SCHOOL,SN3 ,07/12/2022,"4,097.31"
54611233,High Needs Block,DSG Skills and Attainment,SEN Resourcing Assessment Panel,3rd Party Payments,Top up funding - Maintained providers Pre 16,COVINGHAM PARK PRIMARY SCHOOL,SN3 ,14/12/2022,"1,380.83"
56933233,DSG Other Funding,DSG Skills and Attainment,DFE Additional Grants,Supplies and Services,Payments to Educational Bodies,COVINGHAM PARK PRIMARY SCHOOL,SN3 ,09/12/2022,"11,165.00"
56990242,DSG Other Funding,DSG Skills and Attainment,DFE Additional Grants,Supplies and Services,Payments to Educational Bodies,COVINGHAM PARK PRIMARY SCHOOL,SN3 ,09/12/2022,"26,132.00"
57583233,Schools - Primary,DSG Skills and Attainment,Primary School Budgets,3rd Party Payments,Mainstream Delegated Funding,COVINGHAM PARK PRIMARY SCHOOL,SN3 ,16/12/2022,"130,174.00"
57562238,DSG Other Funding,DSG Skills and Attainment,DFE Additional Grants,3rd Party Payments,Payment of Pupil Premium to school,COVINGHAM PARK PRIMARY SCHOOL,SN3 ,16/12/2022,"7,354.00"
57951235,Memory & Cognition,Adults,Support for Memory and Cognition 65 and over,3rd Party Payments,Residential Care,COXWELL HALL AND MEWS NURSING HOME,TW20,16/12/2022,"5,968.24"
57951235,Mental Health,Adults,Mental Health 65 and over,3rd Party Payments,Nursing Care,COXWELL HALL AND MEWS NURSING HOME,TW20,16/12/2022,"5,920.00"
60008233,Responsive Repairs,Repairs,Responsive Repairs,3rd Party Payments,Contract Payments,CPS CONSTRUCTION LTD,BS15,30/12/2022,"4,380.00"
57326236,Responsive Repairs,Repairs,Responsive Repairs,3rd Party Payments,Contract Payments,CPS CONSTRUCTION LTD,BS15,14/12/2022,"5,689.00"
55760233,Responsive Repairs,Repairs,Responsive Repairs,3rd Party Payments,Contract Payments,CPS CONSTRUCTION LTD,BS15,02/12/2022,"2,735.00"
55881233,Planned Maintenance Programme,HRA Capital Financing,Contingent Major Repairs,Capital,Contractor Payments,CPS CONSTRUCTION LTD,BS15,05/12/2022,"4,372.50"
60009233,Responsive Repairs,Repairs,Responsive Repairs,3rd Party Payments,Contract Payments,CPS CONSTRUCTION LTD,BS15,30/12/2022,780.00
58597233,Responsive Repairs,Repairs,Responsive Repairs,Supplies and Services,Materials,CPS CONSTRUCTION LTD,BS15,21/12/2022,"19,790.00"
57326237,Other Repairs,Repairs,Unallocated job costs from OPEN system,3rd Party Payments,Contract Payments,CPS CONSTRUCTION LTD,BS15,14/12/2022,"1,000.00"
59118233,Other Repairs,Repairs,Unallocated job costs from OPEN system,3rd Party Payments,Contract Payments,CPS CONSTRUCTION LTD,BS15,23/12/2022,"12,832.60"
57326237,Other Repairs,Repairs,Unallocated job costs from OPEN system,3rd Party Payments,Contract Payments,CPS CONSTRUCTION LTD,BS15,14/12/2022,"3,780.00"
58563233,Responsive Repairs,Repairs,Responsive Repairs,3rd Party Payments,Contract Payments,CPS CONSTRUCTION LTD,BS15,21/12/2022,780.00
57906243,Learning Disabilities,Adults,Learning Disability 26 - 64,Income,Client Contribution - Residential,CRAEGMOOR HEALTHCARE,BA14,16/12/2022,-414.20
57906243,Learning Disabilities,Adults,Learning Disability 26 - 64,3rd Party Payments,Residential Care,CRAEGMOOR HEALTHCARE,BA14,16/12/2022,"8,639.88"
57301237,Early Help,Early Intervention and Community Health�,"Holiday, Activities & Food Grant",3rd Party Payments,Contracts - Child Care,CRAFTING TREASURES - TANYA MEDCROFT,SN2 ,14/12/2022,"1,152.00"
57814233,Streetsmart,Streetsmart,Waste - Disposal,3rd Party Payments,Contract Payments,CRAPPER & SONS LANDFILL LTD,SN4 ,16/12/2022,"7,845.58"
57804233,Streetsmart,Streetsmart,Waste - Disposal,3rd Party Payments,Contract Payments,CRAPPER & SONS LANDFILL LTD,SN4 ,16/12/2022,"9,227.60"
58659234,Town Centre,"Economy, Growth and Place",Create,Capital,Consultants,CREATE STUDIOS DIGITAL MEDIA LTD,SN1 ,21/12/2022,"400,000.00"
57632233,Treasury,Corporate Finance,Treasury,Supplies and Services,Contracts,CREDITSAFE UK LTD,CF83,16/12/2022,"1,200.00"
59508233,Physical Support,Adults,Fessey House,Supplies and Services,Food,CREED CATERING SUPPLIES LTD,GL51,23/12/2022,125.06
56587233,Physical Support,Adults,Fessey House,Supplies and Services,Food,CREED CATERING SUPPLIES LTD,GL51,07/12/2022,652.46
59487233,Physical Support,Adults,Fessey House,Supplies and Services,Food,CREED CATERING SUPPLIES LTD,GL51,23/12/2022,732.26
59511233,Physical Support,Adults,Fessey House,Supplies and Services,Food,CREED CATERING SUPPLIES LTD,GL51,23/12/2022,435.45
59508233,Physical Support,Adults,Fessey House,Supplies and Services,Food,CREED CATERING SUPPLIES LTD,GL51,23/12/2022,595.23
59487233,Physical Support,Adults,Fessey House,Supplies and Services,Food,CREED CATERING SUPPLIES LTD,GL51,23/12/2022,42.60
56587233,Physical Support,Adults,Fessey House,Supplies and Services,Food,CREED CATERING SUPPLIES LTD,GL51,07/12/2022,7.79
59511233,Physical Support,Adults,Fessey House,Supplies and Services,Food,CREED CATERING SUPPLIES LTD,GL51,23/12/2022,102.75
60143238,Property & Assets,Property & Assets,General Enhancement Works Corporate Buildings,Capital,Contractor Payments,CRL SURVEYS LIMITED,CR4 ,30/12/2022,"14,180.00"
56372234,Early Years Block,DSG Skills and Attainment,Free Nursery Education Commissioning - three & four  year olds,3rd Party Payments,Contracts - Child Care,CROFT PLAYGROUP,SN3 ,07/12/2022,"17,308.99"
59669233,Licencing,Regulatory Services,Taxis & Private Hire,Supplies and Services,Testing / Inspection,CROSS STREET GARAGE (SWINDON) LTD,SN1 ,28/12/2022,715.00
59135233,School Transport,"Education, Inclusion and Skills",Special Educational Needs Transport,Transport Costs,Home to School Transport,CROSS STREET RADIO CARS,SN1 ,23/12/2022,"2,145.00"
59132233,School Transport,"Education, Inclusion and Skills",Special Educational Needs Transport,Transport Costs,Home to School Transport,CROSS STREET RADIO CARS,SN1 ,23/12/2022,"3,480.00"
59727233,School Transport,"Education, Inclusion and Skills",Special Educational Needs Transport,Transport Costs,Home to School Transport,CROSS STREET RADIO CARS,SN1 ,30/12/2022,"2,280.00"
57249233,School Transport,"Education, Inclusion and Skills",Special Educational Needs Transport,Transport Costs,Home to School Transport,CROSS STREET RADIO CARS,SN1 ,12/12/2022,580.00
57252233,School Transport,"Education, Inclusion and Skills",Mainstream School Transport,Transport Costs,Home to School Transport,CROSS STREET RADIO CARS,SN1 ,12/12/2022,"2,420.00"
59632233,School Transport,"Education, Inclusion and Skills",Special Educational Needs Transport,Transport Costs,Home to School Transport,CROSS STREET RADIO CARS,SN1 ,28/12/2022,"1,320.00"
57251233,School Transport,"Education, Inclusion and Skills",Special Educational Needs Transport,Transport Costs,Home to School Transport,CROSS STREET RADIO CARS,SN1 ,12/12/2022,"4,455.00"
57250233,School Transport,"Education, Inclusion and Skills",Mainstream School Transport,Transport Costs,Home to School Transport,CROSS STREET RADIO CARS,SN1 ,12/12/2022,"1,980.00"
54617234,High Needs Block,DSG Skills and Attainment,SEN Resourcing Assessment Panel,3rd Party Payments,Top up funding - Maintained providers Pre 16,CROWDYS HILL SCHOOL,SN2 ,14/12/2022,"80,173.03"
57004233,High Needs Block,DSG Skills and Attainment,DSG Retained High Needs,Supplies and Services,Payments to Educational Bodies,CROWDYS HILL SCHOOL,SN2 ,09/12/2022,"70,721.88"
56943233,DSG Other Funding,DSG Skills and Attainment,DFE Additional Grants,Supplies and Services,Payments to Educational Bodies,CROWDYS HILL SCHOOL,SN2 ,09/12/2022,"9,596.00"
57562248,DSG Other Funding,DSG Skills and Attainment,DFE Additional Grants,3rd Party Payments,Payment of Pupil Premium to school,CROWDYS HILL SCHOOL,SN2 ,16/12/2022,"9,078.00"
57593233,High Needs Block,DSG Skills and Attainment,Special School Place,3rd Party Payments,HNB- Place Funding pre 16,CROWDYS HILL SCHOOL,SN2 ,16/12/2022,"170,000.00"
57592233,High Needs Block,DSG Skills and Attainment,Special School Place,3rd Party Payments,HNB- Place Funding post 16,CROWDYS HILL SCHOOL,SN2 ,16/12/2022,"38,333.00"
54617239,High Needs Block,DSG Skills and Attainment,SEN Resourcing Assessment Panel,3rd Party Payments,Top up funding - Maintained providers Post 16,CROWDYS HILL SCHOOL,SN2 ,14/12/2022,"47,020.20"
57007233,High Needs Block,DSG Skills and Attainment,DSG Retained High Needs,Supplies and Services,Payments to Educational Bodies,CROWDYS HILL SCHOOL,SN2 ,09/12/2022,"25,519.38"
54617235,High Needs Block,DSG Skills and Attainment,SEN Resourcing Assessment Panel,3rd Party Payments,Top up funding - Maintained providers Pre 16,CROWDYS HILL SCHOOL,SN2 ,14/12/2022,"247,771.98"
56136236,Physical Support,Adults,Physical Support 65 and over,3rd Party Payments,Personal Budget - Domiciliary care,CRYSTAL CARING LIMITED,SN2 ,07/12/2022,"1,454.62"
56136234,Physical Support,Adults,Physical Support 65 and over,3rd Party Payments,Personal Budget - Domiciliary care,CRYSTAL CARING LIMITED,SN2 ,07/12/2022,"1,408.36"
56136237,Physical Support,Adults,Physical Support 18 - 64,3rd Party Payments,Personal Budget - Domiciliary care,CRYSTAL CARING LIMITED,SN2 ,07/12/2022,"4,317.60"
56136235,Physical Support,Adults,Physical Support 65 and over,3rd Party Payments,Personal Budget - Domiciliary care,CRYSTAL CARING LIMITED,SN2 ,07/12/2022,"2,775.60"
56418233,Other Repairs,Repairs,Asbestos Services,Premises Costs,Permanent Fixtures and Fittings,CRYSTAL ELECTRONICS LTD,NN6 ,07/12/2022,525.00
Corporate Card Transaction,Community Health & Wellbeing,Public Health,Swindon Circles,Supplies and Services,Food,Cs* Tesco Stores Gc,,09/12/2022,1400
57272233,Schools Maintenance,Skills & Attainment,Condition Works,Capital,Contractor Payments,CSG CONSULTING ENGINEERS LTD,B98 ,12/12/2022,825.00
59272261,Physical Support,Adults,Physical Support 18 - 64,Transfer Payments,Personal Budget - Direct Payments - Domiciliary Care,REDACTED PERSONAL DATA,SN25,23/12/2022,"3,076.26"
59272567,Physical Support,Adults,Physical Support 18 - 64,Transfer Payments,Personal Budget - Direct Payments - Domiciliary Care,REDACTED PERSONAL DATA,SP11,23/12/2022,"4,690.60"
59250233,Physical Support,Adults,Physical Support 18 - 64,Transfer Payments,Personal Budget - Direct Payments - Domiciliary Care,REDACTED PERSONAL DATA,SN3 ,23/12/2022,"2,686.43"
59272394,Learning Disabilities,Adults,Learning Disability 26 - 64,Transfer Payments,Personal Budget - Direct Payments - Domiciliary Care,REDACTED PERSONAL DATA,SN2 ,23/12/2022,"1,445.84"
59272432,Learning Disabilities,Adults,Learning Disability 26 - 64,Transfer Payments,Personal Budget - Direct Payments - Domiciliary Care,REDACTED PERSONAL DATA,SN2 ,23/12/2022,"9,937.71"
59272308,Physical Support,Adults,Physical Support 18 - 64,Transfer Payments,Personal Budget - Direct Payments - Domiciliary Care,REDACTED PERSONAL DATA,SN2 ,23/12/2022,599.56
59272377,Learning Disabilities,Adults,Learning Disability 26 - 64,Transfer Payments,Personal Budget - Direct Payments - Domiciliary Care,REDACTED PERSONAL DATA,SP11,23/12/2022,648.32
58699233,Highways & Transport,Highways & Transport,Rights of Way (ROW),Supplies and Services,Repairs & Maintenance,DAVID NEWMAN CONTRACTORS LTD,SN6 ,21/12/2022,"3,400.00"
56013233,Social Care,"Children, Families and Community Health Services",Placement Adoption Service,3rd Party Payments,Special Guardianship Orders,REDACTED PERSONAL DATA,B35 ,05/12/2022,676.96
58425355,Social Care,"Children, Families and Community Health Services",Placement Adoption Service,3rd Party Payments,Special Guardianship Orders,REDACTED PERSONAL DATA,B35 ,19/12/2022,676.96
56551234,Streetsmart,Streetsmart,Waterside Fleet Hires,Transport Costs,Vehicle Hire / Contract,DAWSONRENTLES SWEEPERS,HD6 ,07/12/2022,"2,954.77"
56705233,Streetsmart,Streetsmart,Waterside Fleet Hires,Transport Costs,Vehicle Hire / Contract,DAWSONRENTLES SWEEPERS,HD6 ,09/12/2022,"2,867.86"
56547233,Streetsmart,Streetsmart,Waterside Fleet Hires,Transport Costs,Vehicle Hire / Contract,DAWSONRENTLES SWEEPERS,HD6 ,07/12/2022,"3,256.00"
56550233,Streetsmart,Streetsmart,Waterside Fleet Hires,Transport Costs,Vehicle Hire / Contract,DAWSONRENTLES SWEEPERS,HD6 ,07/12/2022,"2,954.77"
56549233,Streetsmart,Streetsmart,Waterside Fleet Hires,Transport Costs,Vehicle Hire / Contract,DAWSONRENTLES SWEEPERS,HD6 ,07/12/2022,"2,150.90"
56548233,Streetsmart,Streetsmart,Waterside Fleet Hires,Transport Costs,Vehicle Hire / Contract,DAWSONRENTLES SWEEPERS,HD6 ,07/12/2022,"3,215.48"
55844234,Social Care,"Children, Families and Community Health Services",Placement Fostering Service,3rd Party Payments,Birthday Payment,REDACTED PERSONAL DATA,SN5 ,05/12/2022,268.00
59965237,Social Care,"Children, Families and Community Health Services",Placement Fostering Service,3rd Party Payments,Foster Care Additional Allowance,REDACTED PERSONAL DATA,SN5 ,30/12/2022,100.00
55844234,Social Care,"Children, Families and Community Health Services",Placement Fostering Service,3rd Party Payments,Carers Skills Payments - Advanced,REDACTED PERSONAL DATA,SN5 ,05/12/2022,"6,290.00"
55844234,Social Care,"Children, Families and Community Health Services",Placement Fostering Service,3rd Party Payments,Foster Care Basic Payments,REDACTED PERSONAL DATA,SN5 ,05/12/2022,"8,193.14"
58031233,Social Care,"Children, Families and Community Health Services",Placement Fostering Service,3rd Party Payments,Carers Skills Payments - Advanced,REDACTED PERSONAL DATA,SN5 ,19/12/2022,370.00
55844234,Social Care,"Children, Families and Community Health Services",Placement Fostering Service,3rd Party Payments,Foster Care Basic Payments,REDACTED PERSONAL DATA,SN5 ,05/12/2022,"-7,951.63"
55844234,Social Care,"Children, Families and Community Health Services",Placement Fostering Service,3rd Party Payments,Christmas Payment,REDACTED PERSONAL DATA,SN5 ,05/12/2022,268.00
55844234,Social Care,"Children, Families and Community Health Services",Placement Fostering Service,3rd Party Payments,Foster Care Basic Payments,REDACTED PERSONAL DATA,SN5 ,05/12/2022,536.00
55844234,Social Care,"Children, Families and Community Health Services",Placement Fostering Service,3rd Party Payments,Carers Skills Payments - Advanced,REDACTED PERSONAL DATA,SN5 ,05/12/2022,"-4,590.00"
55844234,Social Care,"Children, Families and Community Health Services",Placement Fostering Service,3rd Party Payments,Foster Care Additional Allowance,REDACTED PERSONAL DATA,SN5 ,05/12/2022,100.00
59965237,Social Care,"Children, Families and Community Health Services",Placement Fostering Service,3rd Party Payments,Carers Skills Payments - Advanced,REDACTED PERSONAL DATA,SN5 ,30/12/2022,370.00
58031233,Social Care,"Children, Families and Community Health Services",Placement Fostering Service,3rd Party Payments,Foster Care Additional Allowance,REDACTED PERSONAL DATA,SN5 ,19/12/2022,100.00
55844234,Social Care,"Children, Families and Community Health Services",Placement Fostering Service,3rd Party Payments,Foster Care Basic Payments,REDACTED PERSONAL DATA,SN5 ,05/12/2022,-842.61
55844234,Social Care,"Children, Families and Community Health Services",Placement Fostering Service,3rd Party Payments,Carers Skills Payments - Advanced,REDACTED PERSONAL DATA,SN5 ,05/12/2022,370.00
55844234,Social Care,"Children, Families and Community Health Services",Placement Fostering Service,3rd Party Payments,Birthday Payment,REDACTED PERSONAL DATA,SN5 ,05/12/2022,-260.10
59965237,Social Care,"Children, Families and Community Health Services",Placement Fostering Service,3rd Party Payments,Foster Care Basic Payments,REDACTED PERSONAL DATA,SN5 ,30/12/2022,536.00
58031233,Social Care,"Children, Families and Community Health Services",Placement Fostering Service,3rd Party Payments,Foster Care Basic Payments,REDACTED PERSONAL DATA,SN5 ,19/12/2022,536.00
55844234,Social Care,"Children, Families and Community Health Services",Placement Fostering Service,3rd Party Payments,Foster Care Basic Payments,REDACTED PERSONAL DATA,SN5 ,05/12/2022,867.43
56377234,Early Years Block,DSG Skills and Attainment,Free Nursery Education Commissioning - three & four  year olds,3rd Party Payments,Contracts - Child Care,REDACTED PERSONAL DATA,SN5 ,07/12/2022,987.00
58584233,Landscaping & Open Space,Culture & Heritage & Art,GWCF - Trees for Climate,Capital,Contractor Payments,DEEPER GREEN SERVICES LTD,BS26,21/12/2022,"5,610.00"
57357233,Landscaping & Open Space,Culture & Heritage & Art,GWCF - Trees for Climate,Capital,Contractor Payments,DEEPER GREEN SERVICES LTD,BS26,14/12/2022,"1,600.00"
57408233,Early Help,Early Intervention and Community Health�,"Holiday, Activities & Food Grant",Income,Grants - Department for Education,DEPARTMENT FOR EDUCATION,CV1 ,14/12/2022,"265,745.00"
57746233,Learning Disabilities,Adults,Learning Disability 26 - 64,3rd Party Payments,Supported Accommodation Scheme,REDACTED PERSONAL DATA,SN2 ,16/12/2022,"2,094.20"
57746233,Learning Disabilities,Adults,Learning Disability 26 - 64,3rd Party Payments,Supported Accommodation Scheme,REDACTED PERSONAL DATA,SN2 ,16/12/2022,"1,651.70"
57746233,Learning Disabilities,Adults,Learning Disability 26 - 64,3rd Party Payments,Supported Accommodation Scheme,REDACTED PERSONAL DATA,SN2 ,16/12/2022,"2,505.90"
57625233,Street Furniture & Lighting,Strategic Planning and Highways,LED Street Lighting,Capital,Professional Fees,DESIGNS FOR LIGHTING LTD,SO23,16/12/2022,"1,545.00"
56225233,Highways & Transport,Highways & Transport,Highways Management,Supplies and Services,Subscriptions,DEVON COUNTY COUNCIL,EX4 ,07/12/2022,"2,805.00"
57397233,Town Centre,"Economy, Growth and Place",HAZ Streets and spaces,Capital,Professional Fees,REDACTED PERSONAL DATA,GL20,14/12/2022,750.00
58352233,Social Care,"Children, Families and Community Health Services",Placement Adoption Service,3rd Party Payments,Adoption Allowances,REDACTED PERSONAL DATA,CF44,19/12/2022,500.34
55895233,Social Care,"Children, Families and Community Health Services",Placement Adoption Service,3rd Party Payments,Adoption Allowances,REDACTED PERSONAL DATA,CF44,05/12/2022,500.34
Corporate Card Transaction,Digital & Business Change,Digital & Business Change,IT Operations,Supplies and Services,License Costs,Digicert Inc,,02/12/2022,710.16
57318233,Facilities Management,"People, Culture and Organisational Resilience",Office Accommodation,3rd Party Payments,Contract Payments,DIGITAL ID LTD,SK1 ,14/12/2022,759.67
57944235,Physical Support,Adults,Physical Support 65 and over,3rd Party Payments,Nursing Care,DIVA CARE LIMITED,GL7 ,16/12/2022,"3,246.44"
57944235,Physical Support,Adults,Physical Support 65 and over,Income,Client Contribution - Nursing,DIVA CARE LIMITED,GL7 ,16/12/2022,-268.72
55667233,Social Care,"Children, Families and Community Health Services",Legal Fees,Supplies and Services,Fees,DNA WORLDWIDE GROUP,BA11,02/12/2022,500.00
59065233,Planned Maintenance Programme,HRA Capital Financing,Kitchens,Capital,"Equipment, Fixtures & Fittings",DOMESTIC APPLIANCE DISTRIBUTORS,GL20,23/12/2022,"3,815.00"
59265233,Physical Support,Adults,Physical Support 18 - 64,Transfer Payments,Personal Budget - Direct Payments - Domiciliary Care,REDACTED PERSONAL DATA,SP11,23/12/2022,"4,756.08"
55846234,Social Care,"Children, Families and Community Health Services",Placement Fostering Service,3rd Party Payments,Foster Care Basic Payments,REDACTED PERSONAL DATA,SN2 ,05/12/2022,352.00
55846234,Social Care,"Children, Families and Community Health Services",Placement Fostering Service,3rd Party Payments,Carers Skills Payments - Core,REDACTED PERSONAL DATA,SN2 ,05/12/2022,216.00
55846234,Social Care,"Children, Families and Community Health Services",Placement Fostering Service,3rd Party Payments,Foster Care Basic Payments,REDACTED PERSONAL DATA,SN2 ,05/12/2022,"5,782.86"
55846234,Social Care,"Children, Families and Community Health Services",Placement Fostering Service,3rd Party Payments,Christmas Payment,REDACTED PERSONAL DATA,SN2 ,05/12/2022,176.00
55846234,Social Care,"Children, Families and Community Health Services",Placement Fostering Service,3rd Party Payments,Birthday Payment,REDACTED PERSONAL DATA,SN2 ,05/12/2022,176.00
55846234,Social Care,"Children, Families and Community Health Services",Placement Fostering Service,3rd Party Payments,Foster Care Basic Payments,REDACTED PERSONAL DATA,SN2 ,05/12/2022,177.14
59966234,Social Care,"Children, Families and Community Health Services",Placement Fostering Service,3rd Party Payments,Foster Care Basic Payments,REDACTED PERSONAL DATA,SN2 ,30/12/2022,352.00
59966234,Social Care,"Children, Families and Community Health Services",Placement Fostering Service,3rd Party Payments,Carers Skills Payments - Core,REDACTED PERSONAL DATA,SN2 ,30/12/2022,216.00
55846234,Social Care,"Children, Families and Community Health Services",Placement Fostering Service,3rd Party Payments,Foster Care Basic Payments,REDACTED PERSONAL DATA,SN2 ,05/12/2022,-172.03
55846234,Social Care,"Children, Families and Community Health Services",Placement Fostering Service,3rd Party Payments,Foster Care Additional Allowance,REDACTED PERSONAL DATA,SN2 ,05/12/2022,18.00
58036234,Social Care,"Children, Families and Community Health Services",Placement Fostering Service,3rd Party Payments,Foster Care Additional Allowance,REDACTED PERSONAL DATA,SN2 ,19/12/2022,18.00
58036234,Social Care,"Children, Families and Community Health Services",Placement Fostering Service,3rd Party Payments,Foster Care Basic Payments,REDACTED PERSONAL DATA,SN2 ,19/12/2022,352.00
55846234,Social Care,"Children, Families and Community Health Services",Placement Fostering Service,3rd Party Payments,Foster Care Basic Payments,REDACTED PERSONAL DATA,SN2 ,05/12/2022,"-5,618.57"
58036234,Social Care,"Children, Families and Community Health Services",Placement Fostering Service,3rd Party Payments,Carers Skills Payments - Core,REDACTED PERSONAL DATA,SN2 ,19/12/2022,216.00
55846234,Social Care,"Children, Families and Community Health Services",Placement Fostering Service,3rd Party Payments,Carers Skills Payments - Core,REDACTED PERSONAL DATA,SN2 ,05/12/2022,"-1,972.00"
55846234,Social Care,"Children, Families and Community Health Services",Placement Fostering Service,3rd Party Payments,Carers Skills Payments - Core,REDACTED PERSONAL DATA,SN2 ,05/12/2022,"3,672.00"
55846234,Social Care,"Children, Families and Community Health Services",Placement Fostering Service,3rd Party Payments,Birthday Payment,REDACTED PERSONAL DATA,SN2 ,05/12/2022,-171.00
59966234,Social Care,"Children, Families and Community Health Services",Placement Fostering Service,3rd Party Payments,Foster Care Additional Allowance,REDACTED PERSONAL DATA,SN2 ,30/12/2022,18.00
54620234,High Needs Block,DSG Skills and Attainment,SEN Resourcing Assessment Panel,3rd Party Payments,Top up funding - Academies and Free Schools Pre 16,DORCAN ACADEMY,SN3 ,14/12/2022,"2,763.34"
59202246,Physical Support,Adults,Physical Support 18 - 64,Transfer Payments,Personal Budget - Direct Payments - Domiciliary Care,REDACTED PERSONAL DATA,SP11,23/12/2022,"1,503.11"
57479237,Routes to Employment,"Education, Inclusion and Skills",Adult Learning,3rd Party Payments,Contract Payments,DORSET & WILTSHIRE FIRE & RESCUE SERVICE,SP1 ,14/12/2022,"6,000.00"
58157233,Streetsmart,Streetsmart,Waterside Fleet Workshops,Supplies and Services,Materials,DP AUTOLINES,SN3 ,19/12/2022,461.20
57535242,Homelessness and Travellers,Housing Services,Leased Private Managed Accommodation,Transfer Payments,Payment of Costs,REDACTED PERSONAL DATA,SN6 ,21/12/2022,700.00
55698233,Social Care,"Children, Families and Community Health Services",Legal Fees,Supplies and Services,Fees,DR UNA MCDERMOTT,NW10,02/12/2022,432.00
57301238,Early Help,Early Intervention and Community Health�,"Holiday, Activities & Food Grant",3rd Party Payments,Contracts - Child Care,DRAYCOTT SPORTS CAMP,SN25,14/12/2022,"3,312.00"
58073233,Repairs Staffing,Repairs,Maintenance,Transfer Payments,Compensation,DRISCOLL KINGSTON SOLICITORS,L1 3,19/12/2022,"1,750.00"
59985234,Licencing,Regulatory Services,Licensing,Supplies and Services,Fees,DROVEWAY KENNELS,SN6 ,30/12/2022,"2,595.00"
58000233,Sheltered Accomodation,Special Services,Cockram Court,Premises Costs,Maintenance - Buildings,DRPK CONTRACTS LTD,BT30,16/12/2022,141.90
58000233,Sheltered Accomodation,Special Services,Cockram Court,Premises Costs,Maintenance - Buildings,DRPK CONTRACTS LTD,BT30,16/12/2022,331.10
57943233,Physical Support,Adults,Physical Support 18 - 64,3rd Party Payments,Nursing Care,DRUMMOND GRANGE NURSING HOME,EH18,16/12/2022,"6,603.00"
57716233,Learning Disabilities,Adults,Learning Disability 26 - 64,3rd Party Payments,Supported Accommodation Scheme,REDACTED PERSONAL DATA,SN25,16/12/2022,"2,573.70"
58675233,NEV,"Economy, Growth and Place",Gablecross Junction,Capital,Contractor Payments,DYER & BUTLER LTD,SO16,21/12/2022,"27,772.42"
57942233,Learning Disabilities,Adults,Learning Disability 26 - 64,3rd Party Payments,Supported Lodgings (Childrens)/Supported Living (Adults),DYNAMIC SUPPORT LTD,SN25,16/12/2022,"4,688.64"
57942233,Learning Disabilities,Adults,Learning Disability 26 - 64,3rd Party Payments,Supported Lodgings (Childrens)/Supported Living (Adults),DYNAMIC SUPPORT LTD,SN25,16/12/2022,"3,145.12"
56196233,Physical Support,Adults,Physical Support 65 and over,3rd Party Payments,Personal Budget - Domiciliary care,DYNAMIC SUPPORT LTD,SN25,07/12/2022,"14,572.80"
57942233,Learning Disabilities,Adults,Learning Disability 65 and over,3rd Party Payments,Supported Lodgings (Childrens)/Supported Living (Adults),DYNAMIC SUPPORT LTD,SN25,16/12/2022,"3,069.12"
57942233,Learning Disabilities,Adults,Learning Disability 26 - 64,Income,Client Contribution - Supported Living,DYNAMIC SUPPORT LTD,SN25,16/12/2022,16.00
57942233,Learning Disabilities,Adults,Learning Disability 26 - 64,Income,Client Contribution - Supported Living,DYNAMIC SUPPORT LTD,SN25,16/12/2022,-28.00
57942233,Learning Disabilities,Adults,Learning Disability 26 - 64,3rd Party Payments,Supported Lodgings (Childrens)/Supported Living (Adults),DYNAMIC SUPPORT LTD,SN25,16/12/2022,-532.80
57942233,Learning Disabilities,Adults,Learning Disability 26 - 64,3rd Party Payments,Supported Lodgings (Childrens)/Supported Living (Adults),DYNAMIC SUPPORT LTD,SN25,16/12/2022,"-1,534.58"
57942233,Learning Disabilities,Adults,Learning Disability 26 - 64,3rd Party Payments,Supported Lodgings (Childrens)/Supported Living (Adults),DYNAMIC SUPPORT LTD,SN25,16/12/2022,"1,797.21"
57942233,Learning Disabilities,Adults,Learning Disability 26 - 64,3rd Party Payments,Supported Lodgings (Childrens)/Supported Living (Adults),DYNAMIC SUPPORT LTD,SN25,16/12/2022,"4,166.26"
57942233,Learning Disabilities,Adults,Learning Disability 26 - 64,3rd Party Payments,Supported Lodgings (Childrens)/Supported Living (Adults),DYNAMIC SUPPORT LTD,SN25,16/12/2022,"2,695.82"
57942233,Learning Disabilities,Adults,Learning Disability 26 - 64,3rd Party Payments,Supported Lodgings (Childrens)/Supported Living (Adults),DYNAMIC SUPPORT LTD,SN25,16/12/2022,"3,069.12"
57942233,Learning Disabilities,Adults,Learning Disability 26 - 64,3rd Party Payments,Supported Lodgings (Childrens)/Supported Living (Adults),DYNAMIC SUPPORT LTD,SN25,16/12/2022,"-7,388.16"
57942233,Learning Disabilities,Adults,Learning Disability 26 - 64,3rd Party Payments,Supported Lodgings (Childrens)/Supported Living (Adults),DYNAMIC SUPPORT LTD,SN25,16/12/2022,163.38
57942233,Learning Disabilities,Adults,Learning Disability 26 - 64,3rd Party Payments,Supported Lodgings (Childrens)/Supported Living (Adults),DYNAMIC SUPPORT LTD,SN25,16/12/2022,"1,342.76"
57942233,Learning Disabilities,Adults,Learning Disability 26 - 64,3rd Party Payments,Supported Lodgings (Childrens)/Supported Living (Adults),DYNAMIC SUPPORT LTD,SN25,16/12/2022,490.15
57942233,Learning Disabilities,Adults,Learning Disability 26 - 64,3rd Party Payments,Supported Lodgings (Childrens)/Supported Living (Adults),DYNAMIC SUPPORT LTD,SN25,16/12/2022,865.80
57942233,Learning Disabilities,Adults,Learning Disability 26 - 64,3rd Party Payments,Supported Lodgings (Childrens)/Supported Living (Adults),DYNAMIC SUPPORT LTD,SN25,16/12/2022,"7,505.40"
57942233,Learning Disabilities,Adults,Learning Disability 26 - 64,3rd Party Payments,Supported Lodgings (Childrens)/Supported Living (Adults),DYNAMIC SUPPORT LTD,SN25,16/12/2022,"3,132.76"
58623235,Learning Disabilities,Adults,Learning Disability 26 - 64,3rd Party Payments,Personal Budget - Domiciliary care,DYNAMIC SUPPORT LTD,SN25,21/12/2022,632.96
57942233,Mental Health,Adults,Mental Health 18-64,3rd Party Payments,Supported Lodgings (Childrens)/Supported Living (Adults),DYNAMIC SUPPORT LTD,SN25,16/12/2022,"1,342.76"
57942233,Learning Disabilities,Adults,Learning Disability 26 - 64,Income,Client Contribution - Supported Living,DYNAMIC SUPPORT LTD,SN25,16/12/2022,48.07
57942233,Learning Disabilities,Adults,Learning Disability 26 - 64,3rd Party Payments,Supported Lodgings (Childrens)/Supported Living (Adults),DYNAMIC SUPPORT LTD,SN25,16/12/2022,-639.36
57942233,Learning Disabilities,Adults,Learning Disability 26 - 64,3rd Party Payments,Supported Lodgings (Childrens)/Supported Living (Adults),DYNAMIC SUPPORT LTD,SN25,16/12/2022,"-1,786.15"
57942233,Learning Disabilities,Adults,Learning Disability 26 - 64,3rd Party Payments,Supported Lodgings (Childrens)/Supported Living (Adults),DYNAMIC SUPPORT LTD,SN25,16/12/2022,"-1,745.55"
57942233,Learning Disabilities,Adults,Learning Disability 26 - 64,3rd Party Payments,Supported Lodgings (Childrens)/Supported Living (Adults),DYNAMIC SUPPORT LTD,SN25,16/12/2022,"-3,166.35"
57942233,Learning Disabilities,Adults,Learning Disability 26 - 64,3rd Party Payments,Supported Lodgings (Childrens)/Supported Living (Adults),DYNAMIC SUPPORT LTD,SN25,16/12/2022,"-4,302.99"
57942233,Learning Disabilities,Adults,Learning Disability 26 - 64,3rd Party Payments,Supported Lodgings (Childrens)/Supported Living (Adults),DYNAMIC SUPPORT LTD,SN25,16/12/2022,"4,329.65"
57942233,Learning Disabilities,Adults,Learning Disability 26 - 64,3rd Party Payments,Supported Lodgings (Childrens)/Supported Living (Adults),DYNAMIC SUPPORT LTD,SN25,16/12/2022,"8,577.60"
57942233,Learning Disabilities,Adults,Learning Disability 26 - 64,3rd Party Payments,Supported Lodgings (Childrens)/Supported Living (Adults),DYNAMIC SUPPORT LTD,SN25,16/12/2022,"1,534.58"
57942233,Learning Disabilities,Adults,Learning Disability 26 - 64,3rd Party Payments,Supported Lodgings (Childrens)/Supported Living (Adults),DYNAMIC SUPPORT LTD,SN25,16/12/2022,"2,859.20"
57942233,Learning Disabilities,Adults,Learning Disability 26 - 64,3rd Party Payments,Supported Lodgings (Childrens)/Supported Living (Adults),DYNAMIC SUPPORT LTD,SN25,16/12/2022,"-7,794.19"
57942233,Learning Disabilities,Adults,Learning Disability 26 - 64,3rd Party Payments,Supported Lodgings (Childrens)/Supported Living (Adults),DYNAMIC SUPPORT LTD,SN25,16/12/2022,-984.87
57942233,Learning Disabilities,Adults,Learning Disability 26 - 64,3rd Party Payments,Supported Lodgings (Childrens)/Supported Living (Adults),DYNAMIC SUPPORT LTD,SN25,16/12/2022,"7,828.21"
57942233,Learning Disabilities,Adults,Learning Disability 26 - 64,3rd Party Payments,Supported Lodgings (Childrens)/Supported Living (Adults),DYNAMIC SUPPORT LTD,SN25,16/12/2022,"6,849.68"
57942233,Learning Disabilities,Adults,Learning Disability 26 - 64,3rd Party Payments,Supported Lodgings (Childrens)/Supported Living (Adults),DYNAMIC SUPPORT LTD,SN25,16/12/2022,"6,433.20"
57942233,Physical Support,Adults,Physical Support 65 and over,3rd Party Payments,Supported Lodgings (Childrens)/Supported Living (Adults),DYNAMIC SUPPORT LTD,SN25,16/12/2022,"4,475.52"
57942233,Mental Health,Adults,Mental Health 18-64,3rd Party Payments,Supported Lodgings (Childrens)/Supported Living (Adults),DYNAMIC SUPPORT LTD,SN25,16/12/2022,"8,577.60"
57942233,Learning Disabilities,Adults,Learning Disability 65 and over,3rd Party Payments,Supported Lodgings (Childrens)/Supported Living (Adults),DYNAMIC SUPPORT LTD,SN25,16/12/2022,"-3,978.24"
57942233,Learning Disabilities,Adults,Learning Disability 65 and over,3rd Party Payments,Supported Lodgings (Childrens)/Supported Living (Adults),DYNAMIC SUPPORT LTD,SN25,16/12/2022,"4,002.88"
57942233,Learning Disabilities,Adults,Learning Disability 65 and over,3rd Party Payments,Supported Lodgings (Childrens)/Supported Living (Adults),DYNAMIC SUPPORT LTD,SN25,16/12/2022,"2,685.48"
57942233,Learning Disabilities,Adults,Learning Disability 26 - 64,Income,Client Contribution - Supported Living,DYNAMIC SUPPORT LTD,SN25,16/12/2022,-336.48
57942233,Learning Disabilities,Adults,Learning Disability 26 - 64,Income,Client Contribution - Supported Living,DYNAMIC SUPPORT LTD,SN25,16/12/2022,-84.12
57942233,Learning Disabilities,Adults,Learning Disability 26 - 64,Income,Client Contribution - Supported Living,DYNAMIC SUPPORT LTD,SN25,16/12/2022,36.05
57942233,Learning Disabilities,Adults,Learning Disability 26 - 64,Income,Client Contribution - Supported Living,DYNAMIC SUPPORT LTD,SN25,16/12/2022,140.00
57942233,Learning Disabilities,Adults,Learning Disability 26 - 64,3rd Party Payments,Supported Lodgings (Childrens)/Supported Living (Adults),DYNAMIC SUPPORT LTD,SN25,16/12/2022,"-4,475.52"
57942233,Learning Disabilities,Adults,Learning Disability 26 - 64,3rd Party Payments,Supported Lodgings (Childrens)/Supported Living (Adults),DYNAMIC SUPPORT LTD,SN25,16/12/2022,"-4,140.62"
57942233,Learning Disabilities,Adults,Learning Disability 26 - 64,3rd Party Payments,Supported Lodgings (Childrens)/Supported Living (Adults),DYNAMIC SUPPORT LTD,SN25,16/12/2022,"-3,572.30"
57942233,Learning Disabilities,Adults,Learning Disability 26 - 64,3rd Party Payments,Supported Lodgings (Childrens)/Supported Living (Adults),DYNAMIC SUPPORT LTD,SN25,16/12/2022,"1,756.39"
57942233,Learning Disabilities,Adults,Learning Disability 26 - 64,3rd Party Payments,Supported Lodgings (Childrens)/Supported Living (Adults),DYNAMIC SUPPORT LTD,SN25,16/12/2022,"3,185.97"
57942233,Learning Disabilities,Adults,Learning Disability 26 - 64,3rd Party Payments,Supported Lodgings (Childrens)/Supported Living (Adults),DYNAMIC SUPPORT LTD,SN25,16/12/2022,767.27
57942233,Learning Disabilities,Adults,Learning Disability 26 - 64,3rd Party Payments,Supported Lodgings (Childrens)/Supported Living (Adults),DYNAMIC SUPPORT LTD,SN25,16/12/2022,989.49
57942233,Learning Disabilities,Adults,Learning Disability 26 - 64,3rd Party Payments,Supported Lodgings (Childrens)/Supported Living (Adults),DYNAMIC SUPPORT LTD,SN25,16/12/2022,"6,453.62"
57942233,Learning Disabilities,Adults,Learning Disability 26 - 64,3rd Party Payments,Supported Lodgings (Childrens)/Supported Living (Adults),DYNAMIC SUPPORT LTD,SN25,16/12/2022,"3,580.30"
57942233,Learning Disabilities,Adults,Learning Disability 26 - 64,3rd Party Payments,Supported Lodgings (Childrens)/Supported Living (Adults),DYNAMIC SUPPORT LTD,SN25,16/12/2022,"-8,200.05"
57942233,Learning Disabilities,Adults,Learning Disability 26 - 64,3rd Party Payments,Supported Lodgings (Childrens)/Supported Living (Adults),DYNAMIC SUPPORT LTD,SN25,16/12/2022,641.60
57942233,Learning Disabilities,Adults,Learning Disability 26 - 64,3rd Party Payments,Supported Lodgings (Childrens)/Supported Living (Adults),DYNAMIC SUPPORT LTD,SN25,16/12/2022,-487.13
57942233,Learning Disabilities,Adults,Learning Disability 26 - 64,3rd Party Payments,Supported Lodgings (Childrens)/Supported Living (Adults),DYNAMIC SUPPORT LTD,SN25,16/12/2022,"2,358.84"
57942233,Learning Disabilities,Adults,Learning Disability 26 - 64,3rd Party Payments,Supported Lodgings (Childrens)/Supported Living (Adults),DYNAMIC SUPPORT LTD,SN25,16/12/2022,"4,475.52"
57942233,Learning Disabilities,Adults,Learning Disability 26 - 64,3rd Party Payments,Supported Lodgings (Childrens)/Supported Living (Adults),DYNAMIC SUPPORT LTD,SN25,16/12/2022,428.88
57942233,Physical Support,Adults,Physical Support 65 and over,3rd Party Payments,Supported Lodgings (Childrens)/Supported Living (Adults),DYNAMIC SUPPORT LTD,SN25,16/12/2022,"-5,114.88"
57942233,Learning Disabilities,Adults,Learning Disability 26 - 64,3rd Party Payments,Supported Lodgings (Childrens)/Supported Living (Adults),DYNAMIC SUPPORT LTD,SN25,16/12/2022,"-2,110.90"
57942233,Learning Disabilities,Adults,Learning Disability 26 - 64,3rd Party Payments,Supported Lodgings (Childrens)/Supported Living (Adults),DYNAMIC SUPPORT LTD,SN25,16/12/2022,-140.16
57942233,Learning Disabilities,Adults,Learning Disability 26 - 64,3rd Party Payments,Supported Lodgings (Childrens)/Supported Living (Adults),DYNAMIC SUPPORT LTD,SN25,16/12/2022,141.03
57942233,Learning Disabilities,Adults,Learning Disability 26 - 64,3rd Party Payments,Supported Lodgings (Childrens)/Supported Living (Adults),DYNAMIC SUPPORT LTD,SN25,16/12/2022,"2,123.98"
57942233,Learning Disabilities,Adults,Learning Disability 26 - 64,3rd Party Payments,Supported Lodgings (Childrens)/Supported Living (Adults),DYNAMIC SUPPORT LTD,SN25,16/12/2022,"-8,524.80"
57942233,Learning Disabilities,Adults,Learning Disability 26 - 64,3rd Party Payments,Supported Lodgings (Childrens)/Supported Living (Adults),DYNAMIC SUPPORT LTD,SN25,16/12/2022,"5,114.88"
57942233,Learning Disabilities,Adults,Learning Disability 26 - 64,3rd Party Payments,Supported Lodgings (Childrens)/Supported Living (Adults),DYNAMIC SUPPORT LTD,SN25,16/12/2022,267.32
57942233,Learning Disabilities,Adults,Learning Disability 26 - 64,3rd Party Payments,Supported Lodgings (Childrens)/Supported Living (Adults),DYNAMIC SUPPORT LTD,SN25,16/12/2022,"1,072.00"
57942233,Physical Support,Adults,Physical Support 65 and over,3rd Party Payments,Supported Lodgings (Childrens)/Supported Living (Adults),DYNAMIC SUPPORT LTD,SN25,16/12/2022,"5,114.88"
57942233,Physical Support,Adults,Physical Support 65 and over,3rd Party Payments,Supported Lodgings (Childrens)/Supported Living (Adults),DYNAMIC SUPPORT LTD,SN25,16/12/2022,"7,505.40"
57942233,Mental Health,Adults,Mental Health 18-64,3rd Party Payments,Supported Lodgings (Childrens)/Supported Living (Adults),DYNAMIC SUPPORT LTD,SN25,16/12/2022,"1,501.08"
57942233,Learning Disabilities,Adults,Learning Disability 65 and over,3rd Party Payments,Supported Lodgings (Childrens)/Supported Living (Adults),DYNAMIC SUPPORT LTD,SN25,16/12/2022,"-3,069.12"
57942233,Learning Disabilities,Adults,Learning Disability 26 - 64,3rd Party Payments,Supported Lodgings (Childrens)/Supported Living (Adults),DYNAMIC SUPPORT LTD,SN25,16/12/2022,"8,250.83"
57942233,Learning Disabilities,Adults,Learning Disability 26 - 64,3rd Party Payments,Supported Lodgings (Childrens)/Supported Living (Adults),DYNAMIC SUPPORT LTD,SN25,16/12/2022,"1,572.56"
57942233,Learning Disabilities,Adults,Learning Disability 26 - 64,3rd Party Payments,Supported Lodgings (Childrens)/Supported Living (Adults),DYNAMIC SUPPORT LTD,SN25,16/12/2022,671.36
57942233,Learning Disabilities,Adults,Learning Disability 26 - 64,3rd Party Payments,Supported Lodgings (Childrens)/Supported Living (Adults),DYNAMIC SUPPORT LTD,SN25,16/12/2022,"1,858.48"
57942233,Learning Disabilities,Adults,Learning Disability 26 - 64,3rd Party Payments,Supported Lodgings (Childrens)/Supported Living (Adults),DYNAMIC SUPPORT LTD,SN25,16/12/2022,123.40
57942233,Learning Disabilities,Adults,Learning Disability 26 - 64,3rd Party Payments,Supported Lodgings (Childrens)/Supported Living (Adults),DYNAMIC SUPPORT LTD,SN25,16/12/2022,"1,536.84"
57942233,Learning Disabilities,Adults,Learning Disability 26 - 64,3rd Party Payments,Supported Lodgings (Childrens)/Supported Living (Adults),DYNAMIC SUPPORT LTD,SN25,16/12/2022,"2,787.72"
57942233,Learning Disabilities,Adults,Learning Disability 26 - 64,3rd Party Payments,Supported Lodgings (Childrens)/Supported Living (Adults),DYNAMIC SUPPORT LTD,SN25,16/12/2022,"1,390.40"
56195233,Learning Disabilities,Adults,Learning Disability 26 - 64,3rd Party Payments,Personal Budget - Domiciliary care,DYNAMIC SUPPORT LTD,SN25,07/12/2022,632.96
57942233,Physical Support,Adults,Physical Support 65 and over,3rd Party Payments,Supported Lodgings (Childrens)/Supported Living (Adults),DYNAMIC SUPPORT LTD,SN25,16/12/2022,"8,577.60"
56197233,Physical Support,Adults,Physical Support 65 and over,3rd Party Payments,Personal Budget - Domiciliary care,DYNAMIC SUPPORT LTD,SN25,07/12/2022,"7,286.40"
57942233,Mental Health,Adults,Mental Health 18-64,3rd Party Payments,Supported Lodgings (Childrens)/Supported Living (Adults),DYNAMIC SUPPORT LTD,SN25,16/12/2022,"1,715.52"
57942233,Learning Disabilities,Adults,Learning Disability 26 - 64,Income,Client Contribution - Supported Living,DYNAMIC SUPPORT LTD,SN25,16/12/2022,-18.12
57942233,Learning Disabilities,Adults,Learning Disability 26 - 64,3rd Party Payments,Supported Lodgings (Childrens)/Supported Living (Adults),DYNAMIC SUPPORT LTD,SN25,16/12/2022,733.26
57942233,Learning Disabilities,Adults,Learning Disability 26 - 64,3rd Party Payments,Supported Lodgings (Childrens)/Supported Living (Adults),DYNAMIC SUPPORT LTD,SN25,16/12/2022,"-6,413.90"
57942233,Learning Disabilities,Adults,Learning Disability 26 - 64,3rd Party Payments,Supported Lodgings (Childrens)/Supported Living (Adults),DYNAMIC SUPPORT LTD,SN25,16/12/2022,"7,433.92"
57942233,Learning Disabilities,Adults,Learning Disability 26 - 64,3rd Party Payments,Supported Lodgings (Childrens)/Supported Living (Adults),DYNAMIC SUPPORT LTD,SN25,16/12/2022,"-3,580.30"
57942233,Learning Disabilities,Adults,Learning Disability 26 - 64,3rd Party Payments,Supported Lodgings (Childrens)/Supported Living (Adults),DYNAMIC SUPPORT LTD,SN25,16/12/2022,"7,352.23"
57942233,Learning Disabilities,Adults,Learning Disability 26 - 64,3rd Party Payments,Supported Lodgings (Childrens)/Supported Living (Adults),DYNAMIC SUPPORT LTD,SN25,16/12/2022,"3,645.48"
57942233,Learning Disabilities,Adults,Learning Disability 26 - 64,3rd Party Payments,Supported Lodgings (Childrens)/Supported Living (Adults),DYNAMIC SUPPORT LTD,SN25,16/12/2022,"3,788.44"
57942233,Learning Disabilities,Adults,Learning Disability 26 - 64,3rd Party Payments,Supported Lodgings (Childrens)/Supported Living (Adults),DYNAMIC SUPPORT LTD,SN25,16/12/2022,"6,504.68"
57942233,Learning Disabilities,Adults,Learning Disability 26 - 64,3rd Party Payments,Supported Lodgings (Childrens)/Supported Living (Adults),DYNAMIC SUPPORT LTD,SN25,16/12/2022,"2,685.48"
57942233,Learning Disabilities,Adults,Learning Disability 26 - 64,3rd Party Payments,Supported Lodgings (Childrens)/Supported Living (Adults),DYNAMIC SUPPORT LTD,SN25,16/12/2022,536.12
57942233,Mental Health,Adults,Mental Health 18-64,3rd Party Payments,Supported Lodgings (Childrens)/Supported Living (Adults),DYNAMIC SUPPORT LTD,SN25,16/12/2022,"-1,534.58"
57942233,Mental Health,Adults,Mental Health 18-64,3rd Party Payments,Supported Lodgings (Childrens)/Supported Living (Adults),DYNAMIC SUPPORT LTD,SN25,16/12/2022,"7,505.40"
57942233,Learning Disabilities,Adults,Learning Disability 26 - 64,Income,Client Contribution - Supported Living,DYNAMIC SUPPORT LTD,SN25,16/12/2022,420.60
57942233,Learning Disabilities,Adults,Learning Disability 26 - 64,3rd Party Payments,Supported Lodgings (Childrens)/Supported Living (Adults),DYNAMIC SUPPORT LTD,SN25,16/12/2022,"-2,841.60"
57942233,Learning Disabilities,Adults,Learning Disability 26 - 64,3rd Party Payments,Supported Lodgings (Childrens)/Supported Living (Adults),DYNAMIC SUPPORT LTD,SN25,16/12/2022,"-2,679.22"
57942233,Learning Disabilities,Adults,Learning Disability 26 - 64,3rd Party Payments,Supported Lodgings (Childrens)/Supported Living (Adults),DYNAMIC SUPPORT LTD,SN25,16/12/2022,"-5,114.88"
57942233,Learning Disabilities,Adults,Learning Disability 26 - 64,3rd Party Payments,Supported Lodgings (Childrens)/Supported Living (Adults),DYNAMIC SUPPORT LTD,SN25,16/12/2022,612.71
57942233,Learning Disabilities,Adults,Learning Disability 26 - 64,3rd Party Payments,Supported Lodgings (Childrens)/Supported Living (Adults),DYNAMIC SUPPORT LTD,SN25,16/12/2022,"1,572.48"
57942233,Learning Disabilities,Adults,Learning Disability 26 - 64,3rd Party Payments,Supported Lodgings (Childrens)/Supported Living (Adults),DYNAMIC SUPPORT LTD,SN25,16/12/2022,"2,501.80"
57942233,Learning Disabilities,Adults,Learning Disability 26 - 64,3rd Party Payments,Supported Lodgings (Childrens)/Supported Living (Adults),DYNAMIC SUPPORT LTD,SN25,16/12/2022,"5,646.92"
57942233,Learning Disabilities,Adults,Learning Disability 26 - 64,3rd Party Payments,Supported Lodgings (Childrens)/Supported Living (Adults),DYNAMIC SUPPORT LTD,SN25,16/12/2022,142.96
57942233,Learning Disabilities,Adults,Learning Disability 26 - 64,3rd Party Payments,Supported Lodgings (Childrens)/Supported Living (Adults),DYNAMIC SUPPORT LTD,SN25,16/12/2022,"7,219.48"
57942233,Physical Support,Adults,Physical Support 65 and over,3rd Party Payments,Supported Lodgings (Childrens)/Supported Living (Adults),DYNAMIC SUPPORT LTD,SN25,16/12/2022,"-8,524.80"
57942233,Mental Health,Adults,Mental Health 18-64,3rd Party Payments,Supported Lodgings (Childrens)/Supported Living (Adults),DYNAMIC SUPPORT LTD,SN25,16/12/2022,"-8,524.80"
57942233,Learning Disabilities,Adults,Learning Disability 26 - 64,3rd Party Payments,Supported Lodgings (Childrens)/Supported Living (Adults),DYNAMIC SUPPORT LTD,SN25,16/12/2022,-142.08
57942233,Learning Disabilities,Adults,Learning Disability 26 - 64,3rd Party Payments,Supported Lodgings (Childrens)/Supported Living (Adults),DYNAMIC SUPPORT LTD,SN25,16/12/2022,-20.30
57942233,Learning Disabilities,Adults,Learning Disability 26 - 64,3rd Party Payments,Supported Lodgings (Childrens)/Supported Living (Adults),DYNAMIC SUPPORT LTD,SN25,16/12/2022,"-1,032.37"
